Workbook

Sheet Planilha Orçamentária
A1: Ministério da Integração e do Desenvolvimento Regional
A2: Companhia de desenvolvimento dos Vales do São Francisco e do Parnaíba
A4: PLANILHA ORÇAMENTÁRIA - ORÇAMENTO NÃO DESONERADO
A5: OBRA: | B5: =UPPER("ELABORAÇÃO DE PROJETO “AS IS”, DE INSTRUMENTAÇÃO, DA PASSARELA ACESSO DA TOMADA D’ÁGUA, DE RECUPERAÇÃO DAS COMPORTAS E ESTUDO DE ESTABILIDADE DA BARRAGEM DE BICO DA PEDRA, LOCALIZADA EM JANAÚBA NO ESTADO DE MINAS GERAIS") -> ELABORAÇÃO DE PROJETO “AS IS”, DE INSTRUMENTAÇÃO, DA PASSARELA ACESSO DA TOMADA D’ÁGUA, DE RECUPERAÇÃO DAS COMPORTAS E ESTUDO DE ESTABILIDADE DA BARRAGEM DE BICO DA PEDRA, LOCALIZADA EM JANAÚBA NO ESTADO DE MINAS GERAIS | G5: BDI (serv.): | H5: ='BDI serv'!D23 -> 0.2581 | I5: Bancos
A6: LOCAL: | B6: BARRAGEM BICO DA PEDRA (JANAÚBA - MG) | G6: BDI (forn.): | H6: ='BDI forn'!E6 -> 0.147 | I6: 06/2025 - SINAPI/MG
A7: DATA BASE: | B7: 2025-07-01 | F7: Encargos sociais Horistas: | H7: ='Encargos Sociais'!E47 -> 1.1679 | I7: 04/2025 - SICRO/MG
A8: PRAZO: | B8: 150 DIAS | F8: Encargos sociais - Mensalista: | H8: ='Encargos Sociais'!F47 -> 0.7393 | I8: 01/2025 - SETOP/MG
G9: Desconto | H9: 0 | I9: 01/2025 - SUDECAP/MG | J9: APLICAR DESCONTO NA CÉLULA INDICADA
I10: 07-2025 - SBC
A11: ITEM | B11: REFERÊNCIA | D11: DESCRIÇÃO | E11: UNID. | F11: QUANT. | G11: CUSTO UNITÁRIO | H11: PREÇO UNITÁRIO | I11: PREÇO TOTAL | J11: TIPO de BDI | K11: CLASSIF
B12: FONTE | C12: CÓDIGO
A13: 1 | D13: Serviços preliminares | I13: =SUM(I14,I16,I19,I22,I25) -> 215974.64
A14: 1.1 | D14: Plano de trabalho detalhado, incluindo a logística de execução dos levantamentos de campo e ensaios geotecnicos | I14: =SUM(I15) -> 3069.56
A15: 1.1.1 | B15: PROPRIA | C15: CPU.12 | D15: Plano de trabalho detalhado, incluindo a logística de execução dos levantamentos de campo e ensaios geotecnicos | E15: UN | F15: 1 | G15: =TRUNC((1-$H$9)*(SUMIFS(CPU!$H:$H,CPU!$B:$B,'Planilha Orçamentária'!$A15,CPU!$I:$I,"ss")+SUMIFS(CPU!$H:$H,CPU!$B:$B,'Planilha Orçamentária'!$A15,CPU!$I:$I,"mdo")),2) -> 2439.84 | H15: =TRUNC(IF(J15="SERV",G15*(1+$H$5),G15*(1+$H$6)),2) -> 3069.56 | I15: =TRUNC((F15*H15),2) -> 3069.56 | J15: serv
A16: 1.2 | D16: Vistoria e laudo da barragem e parte externa da tomada d'água | I16: =SUM(I17:I18) -> 28118.25
A17: 1.2.1 | B17: PROPRIA | C17: CPU.01 | D17: Mobilização da equipe de vistoria | E17: UN | F17: 1 | G17: =TRUNC((1-$H$9)*(SUMIFS(CPU!$H:$H,CPU!$B:$B,'Planilha Orçamentária'!$A17,CPU!$I:$I,"ss")+SUMIFS(CPU!$H:$H,CPU!$B:$B,'Planilha Orçamentária'!$A17,CPU!$I:$I,"mdo")),2) -> 3634.58 | H17: =TRUNC(IF(J17="SERV",G17*(1+$H$5),G17*(1+$H$6)),2) -> 4572.66 | I17: =TRUNC((F17*H17),2) -> 4572.66 | J17: serv
A18: 1.2.2 | B18: PROPRIA | C18: CPU.05 | D18: Vistoria e laudo da barragem, tomada d'água e equipamentos hidromecânicos | E18: UN | F18: 1 | G18: =TRUNC((1-$H$9)*(SUMIFS(CPU!$H:$H,CPU!$B:$B,'Planilha Orçamentária'!$A18,CPU!$I:$I,"ss")+SUMIFS(CPU!$H:$H,CPU!$B:$B,'Planilha Orçamentária'!$A18,CPU!$I:$I,"mdo")),2) -> 18715.2 | H18: =TRUNC(IF(J18="SERV",G18*(1+$H$5),G18*(1+$H$6)),2) -> 23545.59 | I18: =TRUNC((F18*H18),2) -> 23545.59 | J18: serv
A19: 1.3 | D19: Vistoria subaquática da tomada d'água e comportas | I19: =SUM(I20:I21) -> 42445.58
A20: 1.3.1 | B20: PRÓPRIA | C20: CPU.02 | D20: Mobilização da Equipe de mergulho, Camara Hiperbarica e todos os equipamentos de mergulho envolvidos na operação | E20: UN | F20: 1 | G20: =TRUNC((1-$H$9)*(SUMIFS(CPU!$H:$H,CPU!$B:$B,'Planilha Orçamentária'!$A20,CPU!$I:$I,"ss")+SUMIFS(CPU!$H:$H,CPU!$B:$B,'Planilha Orçamentária'!$A20,CPU!$I:$I,"mdo")),2) -> 21055.29 | H20: =TRUNC(IF(J20="SERV",G20*(1+$H$5),G20*(1+$H$6)),2) -> 26489.66 | I20: =TRUNC((F20*H20),2) -> 26489.66 | J20: serv
A21: 1.3.2 | B21: SICRO3 | C21: CPU.03 | D21: Operação de mergulho dependente em profundidade de até 30 m - inclusive descompressão | E21: UN | F21: 1 | G21: =TRUNC((1-$H$9)*(SUMIFS(CPU!$H:$H,CPU!$B:$B,'Planilha Orçamentária'!$A21,CPU!$I:$I,"ss")+SUMIFS(CPU!$H:$H,CPU!$B:$B,'Planilha Orçamentária'!$A21,CPU!$I:$I,"mdo")),2) -> 12682.56 | H21: =TRUNC(IF(J21="SERV",G21*(1+$H$5),G21*(1+$H$6)),2) -> 15955.92 | I21: =TRUNC((F21*H21),2) -> 15955.92 | J21: serv
A22: 1.4 | D22: Levantamento topográfico | I22: =SUM(I23:I24) -> 34458.27
A23: 1.4.1 | B23: PRÓPRIA | C23: CPU.16 | D23: Mobilização e desmobilização de equipe de levantamento topgráfico | E23: UN | F23: 1 | G23: =TRUNC((1-$H$9)*(SUMIFS(CPU!$H:$H,CPU!$B:$B,'Planilha Orçamentária'!$A23,CPU!$I:$I,"ss")+SUMIFS(CPU!$H:$H,CPU!$B:$B,'Planilha Orçamentária'!$A23,CPU!$I:$I,"mdo")),2) -> 3066.75 | H23: =TRUNC(IF(J23="SERV",G23*(1+$H$5),G23*(1+$H$6)),2) -> 3858.27 | I23: =TRUNC((F23*H23),2) -> 3858.27 | J23: serv
A24: 1.4.2 | B24: SETOP | C24: CO-27369 | D24: LEVANTAMENTO PLANIALTIMÉTRICO E CADASTRAL TERRENO MAIOR QUE 50.001 M2 | E24: M² | F24: 68000 | G24: =TRUNC(((1-$H$9)*0.36),2) -> 0.36 | H24: =TRUNC(IF(J24="SERV",G24*(1+$H$5),G24*(1+$H$6)),2) -> 0.45 | I24: =TRUNC((F24*H24),2) -> 30600 | J24: serv
A25: 1.5 | D25: Investigação Geológica e Geotécnica | I25: =SUM(I26:I38) -> 107882.98
A26: 1.5.1 | B26: PRÓPRIA | C26: CPU.04 | D26: MOBILIZAÇÃO E DESMOBILIZAÇÃO DE EQUIPAMENTO DE SONDAGEM A PERCUSSÃO COM ENSAIO DE PENETRAÇÃO PADRÃO (SPT) | E26: UN | F26: 1 | G26: =TRUNC((1-$H$9)*(SUMIFS(CPU!$H:$H,CPU!$B:$B,'Planilha Orçamentária'!$A26,CPU!$I:$I,"ss")+SUMIFS(CPU!$H:$H,CPU!$B:$B,'Planilha Orçamentária'!$A26,CPU!$I:$I,"mdo")),2) -> 604.8 | H26: =TRUNC(IF(J26="SERV",G26*(1+$H$5),G26*(1+$H$6)),2) -> 760.89 | I26: =TRUNC((F26*H26),2) -> 760.89 | J26: serv
A27: 1.5.2 | B27: SETOP | C27: CO-28388 | D27: SONDAGEM A PERCUSSÃO COM ENSAIO DE PENETRAÇÃO PADRÃO (SPT), DIÂMETRO 2.1/2", EXCLUSIVE MOBILIZAÇÃO E DESMOBILIZAÇÃO | E27: M | F27: 200 | G27: =TRUNC(((1-$H$9)*79.09),2) -> 79.09 | H27: 99.5 | I27: =TRUNC((F27*H27),2) -> 19900 | J27: serv
A28: 1.5.3 | B28: SUDECAP | C28: 65.06.01 | D28: MOBILIZACAO E DESMOBILIZACAO - SONDAGEM ROTATIVA | E28: UN | F28: 1 | G28: =TRUNC(((1-$H$9)*3000),2) -> 3000 | H28: 3774.3 | I28: =TRUNC((F28*H28),2) -> 3774.3 | J28: serv
A29: 1.5.4 | B29: SBC | C29: 000015 | D29: SONDAGEM ROTATIVA COROA WIDIA | E29: M | F29: 20 | G29: =TRUNC(((1-$H$9)*1692.74),2) -> 1692.74 | H29: 2129.63 | I29: 42592.6 | J29: serv | K29: =(VLOOKUP(C30,SICRO!A:D,4,FALSE))*(1-$H$9) -> 889.95
A30: 1.5.5 | B30: SICRO3 | C30: 3816196 | D30: Fechamento dos Furos - Injeção de nata de cimento | E30: M³ | F30: =(((0.0635)^2)*PI()/4)*(F29+F27)*1.5 -> 1.045084176 | G30: =TRUNC(((1-$H$9)*889.95),2) -> 889.95 | H30: 1119.64 | I30: =TRUNC((F30*H30),2) -> 1170.11 | J30: serv
A31: 1.5.6 | B31: PRÓPRIA | C31: CPU.14 | D31: Mobilização e desmobilização - Coleta de amostra indeformada | E31: UN | F31: 1 | G31: =TRUNC((1-$H$9)*(SUMIFS(CPU!$H:$H,CPU!$B:$B,'Planilha Orçamentária'!$A31,CPU!$I:$I,"ss")+SUMIFS(CPU!$H:$H,CPU!$B:$B,'Planilha Orçamentária'!$A31,CPU!$I:$I,"mdo")),2) -> 604.8 | H31: =TRUNC(IF(J31="SERV",G31*(1+$H$5),G31*(1+$H$6)),2) -> 760.89 | I31: =TRUNC((F31*H31),2) -> 760.89 | J31: serv
A32: 1.5.7 | B32: SUDECAP | C32: 65.08.22 | D32: RETIRADA DE AMOSTRA INDEFORMADA EM BLOCOS 30X30X30CM (NBR 9604:2016), PROF = 1 A 2 M | E32: UN | F32: 2 | G32: =TRUNC(((1-$H$9)*1800),2) -> 1800 | H32: 2264.58 | I32: 4529.16 | J32: serv
A33: 1.5.8 | B33: PRÓPRIA | C33: CPU.15 | D33: Reaterro com compactação adequada dos pontos de coleta de amostra, Inclusive com fornecimento de solo | E33: M³ | F33: =1.5*1.5*1.5*F32 -> 6.75 | G33: =TRUNC((1-$H$9)*(SUMIFS(CPU!$H:$H,CPU!$B:$B,'Planilha Orçamentária'!$A33,CPU!$I:$I,"ss")+SUMIFS(CPU!$H:$H,CPU!$B:$B,'Planilha Orçamentária'!$A33,CPU!$I:$I,"mdo")),2) -> 66.02 | H33: =TRUNC(IF(J33="SERV",G33*(1+$H$5),G33*(1+$H$6)),2) -> 83.05 | I33: =TRUNC((F33*H33),2) -> 560.58 | J33: serv
A34: 1.5.9 | B34: SETOP | C34: CO-6334 | D34: Granulometria por peneiramento e sedimentação | E34: UN | F34: 2 | G34: =TRUNC(((1-$H$9)*247.24),2) -> 247.24 | H34: 311.05 | I34: 622.1 | J34: serv
A35: 1.5.10 | B35: SUDECAP | C35: 67.01.30 | D35: COMPRESSAO TRIAXIAL LENTO SATURADO (CD) MÍNIMO 3 CORPOS DE PROVA | E35: UN | F35: 6 | G35: =TRUNC(((1-$H$9)*1140.54),2) -> 1140.54 | H35: 1434.91 | I35: =TRUNC((F35*H35),2) -> 8609.46 | J35: serv
A36: 1.5.11 | B36: SUDECAP | C36: 67.01.28 | D36: COMPRESSAO TRIAXIAL RAPIDO PRE-ADENSADO SATURADO (R-SAT/CIU-SAT) C/MEDIDAS PRESSÃO NEUTRA MÍNIMO 3 CORPOS DE PROVA | E36: UN | F36: 3 | G36: =TRUNC(((1-$H$9)*5250),2) -> 5250 | H36: 6605.02 | I36: 19815.06 | J36: serv
A37: 1.5.12 | B37: SETOP | C37: CO-6358 | D37: Determinação do coeficiente de permeabilidade de solos argilosos à carga variável | E37: UN | F37: 6 | G37: =TRUNC(((1-$H$9)*589.03),2) -> 589.03 | H37: 741.05 | I37: 4446.3 | J37: serv
A38: 1.5.13 | B38: PROPRIA | C38: CPU.13 | D38: Emissão de ART para ensaios geotecnicos | E38: UN | F38: 1 | G38: =TRUNC((1-$H$9)*(SUMIFS(CPU!$H:$H,CPU!$B:$B,'Planilha Orçamentária'!$A38,CPU!$I:$I,"ss")+SUMIFS(CPU!$H:$H,CPU!$B:$B,'Planilha Orçamentária'!$A38,CPU!$I:$I,"mdo")),2) -> 271.47 | H38: 341.53 | I38: =TRUNC((F38*H38),2) -> 341.53 | J38: serv
A40: 2 | D40: ESTUDOS E PROJETOS | I40: =SUM(I41,I43,I45,I47,I49,I51,I53) -> 119198.09
A41: 2.1 | D41: Laudo de vistoria e Projeto executivo de manutenção e/ou substituição das comportas | I41: =SUM(I42:I42) -> 13849.81
A42: 2.1.1 | B42: PRÓPRIA | C42: CPU.06 | D42: Projeto executivo de manutenção e/ou substituição das comportas e seus compontentes | E42: UN | F42: 1 | G42: =TRUNC((1-$H$9)*(SUMIFS(CPU!$H:$H,CPU!$B:$B,'Planilha Orçamentária'!$A42,CPU!$I:$I,"ss")+SUMIFS(CPU!$H:$H,CPU!$B:$B,'Planilha Orçamentária'!$A42,CPU!$I:$I,"mdo")),2) -> 11008.52 | H42: =TRUNC(IF(J42="SERV",G42*(1+$H$5),G42*(1+$H$6)),2) -> 13849.81 | I42: =TRUNC((F42*H42),2) -> 13849.81 | J42: serv
A43: 2.2 | D43: Passarela de acesso a torre de tomada d'água | I43: =SUM(I44:I44) -> 18107.98
A44: 2.2.1 | B44: PROPRIA | C44: CPU.07 | D44: Projeto da passarela | E44: UN | F44: 1 | G44: =TRUNC((1-$H$9)*(SUMIFS(CPU!$H:$H,CPU!$B:$B,'Planilha Orçamentária'!$A44,CPU!$I:$I,"ss")+SUMIFS(CPU!$H:$H,CPU!$B:$B,'Planilha Orçamentária'!$A44,CPU!$I:$I,"mdo")),2) -> 14393.12 | H44: =TRUNC(IF(J44="SERV",G44*(1+$H$5),G44*(1+$H$6)),2) -> 18107.98 | I44: =TRUNC((F44*H44),2) -> 18107.98 | J44: serv
A45: 2.3 | D45: Projeto "As is" | I45: =SUM(I46:I46) -> 26757.77
A46: 2.3.1 | B46: PROPRIA | C46: CPU.08 | D46: Elaboração projeto "As Is" completo | E46: UN | F46: 1 | G46: =TRUNC((1-$H$9)*(SUMIFS(CPU!$H:$H,CPU!$B:$B,'Planilha Orçamentária'!$A46,CPU!$I:$I,"ss")+SUMIFS(CPU!$H:$H,CPU!$B:$B,'Planilha Orçamentária'!$A46,CPU!$I:$I,"mdo")),2) -> 21268.4 | H46: =TRUNC(IF(J46="SERV",G46*(1+$H$5),G46*(1+$H$6)),2) -> 26757.77 | I46: 26757.77 | J46: serv
A47: 2.4 | D47: Estudo de percolação | I47: =SUM(I48:I48) -> 22646.3
A48: 2.4.1 | B48: PRÓPRIA | C48: CPU.09 | D48: Elaboração de estudo de percolação da barragem, incluindo maciço, fundação e ombreiras | E48: UN | F48: 1 | G48: =TRUNC((1-$H$9)*(SUMIFS(CPU!$H:$H,CPU!$B:$B,'Planilha Orçamentária'!$A48,CPU!$I:$I,"ss")+SUMIFS(CPU!$H:$H,CPU!$B:$B,'Planilha Orçamentária'!$A48,CPU!$I:$I,"mdo")),2) -> 18000.4 | H48: =TRUNC(IF(J48="SERV",G48*(1+$H$5),G48*(1+$H$6)),2) -> 22646.3 | I48: 22646.3 | J48: serv
A49: 2.5 | D49: Estudo de estabilidade | I49: =SUM(I50:I50) -> 19239.77
A50: 2.5.1 | B50: PRÓPRIA | C50: CPU.10 | D50: Elaboração de estudo de estabilidade da barragem conforme os critérios e atuais | E50: UN | F50: 1 | G50: =TRUNC((1-$H$9)*(SUMIFS(CPU!$H:$H,CPU!$B:$B,'Planilha Orçamentária'!$A50,CPU!$I:$I,"ss")+SUMIFS(CPU!$H:$H,CPU!$B:$B,'Planilha Orçamentária'!$A50,CPU!$I:$I,"mdo")),2) -> 15292.72 | H50: =TRUNC(IF(J50="SERV",G50*(1+$H$5),G50*(1+$H$6)),2) -> 19239.77 | I50: 19239.77 | J50: serv
A51: 2.6 | D51: Projeto de Instrumentação | I51: =SUM(I52:I52) -> 18254.93
A52: 2.6.1 | B52: PRÓPRIA | C52: CPU.11 | D52: Elaboração de projeto de instrumentação e definição dos níveis de referência | E52: UN | F52: 1 | G52: =TRUNC((1-$H$9)*(SUMIFS(CPU!$H:$H,CPU!$B:$B,'Planilha Orçamentária'!$A52,CPU!$I:$I,"ss")+SUMIFS(CPU!$H:$H,CPU!$B:$B,'Planilha Orçamentária'!$A52,CPU!$I:$I,"mdo")),2) -> 14509.92 | H52: =TRUNC(IF(J52="SERV",G52*(1+$H$5),G52*(1+$H$6)),2) -> 18254.93 | I52: 18254.93 | J52: serv
A53: 2.7 | D53: Anotação de Responsabilidade técnica pelos projetos | I53: =SUM(I54:I54) -> 341.53
A54: 2.7.1 | B54: PRÓPRIA | C54: =C38 -> CPU.13 | D54: ART dos Projetos | E54: UN | F54: 1 | G54: =CPU!H140 -> 271.47 | H54: =TRUNC(IF(J54="SERV",G54*(1+$H$5),G54*(1+$H$6)),2) -> 341.53 | I54: =TRUNC((F54*H54),2) -> 341.53 | J54: serv
D56: TOTAL Sem BDI: | I56: =TRUNC(SUMPRODUCT(F15:F55,G15:G55),2) -> 266570.24
D57: BDI: | I57: =I58-I56 -> 68602.49
D58: TOTAL COM BDI: | I58: =SUM(I40,I13) -> 335172.73 | L58: =TRUNC(SUMPRODUCT(F15:F55,H15:H55),2) -> 335172.74
L59: =328494.02 -> 328494.02
A60: NOTA: - O DESCONTO DEVE SER APLICADO NA CÉLULA INDICADA NO CABEÇALHO. - O DESCONDO É APLICADO NO CUSTO UNITÁRIO. - NAS CÉLULAS COM VALORES MONERÁRIOS RESULTANTES DE UM PRODUTO É REALIZADO O TRUNCAMENTO PARA DUAS CASA DECIMAIS | L60: =L58-L59 -> 6678.72

Sheet CPU
B1: Ministério da Integração e do Desenvolvimento Regional
B2: Companhia de Desenvolvimento dos Vales do São Francisco e do Parnaíba
B3: ='Planilha Orçamentária'!A3 -> 0
B4: COMPOSIÇÕES DE PREÇOS UNITÁRIOS - ORÇAMENTO NÃO DESONERADO
B5: OBRA: | C5: ='Planilha Orçamentária'!B5 -> ELABORAÇÃO DE PROJETO “AS IS”, DE INSTRUMENTAÇÃO, DA PASSARELA ACESSO DA TOMADA D’ÁGUA, DE RECUPERAÇÃO DAS COMPORTAS E ESTUDO DE ESTABILIDADE DA BARRAGEM DE BICO DA PEDRA, LOCALIZADA EM JANAÚBA NO ESTADO DE MINAS GERAIS | E5: BDI (serv.): | F5: ='BDI serv'!D23 -> 0.2581
B6: LOCAL: | C6: ='Planilha Orçamentária'!B6 -> BARRAGEM BICO DA PEDRA (JANAÚBA - MG)
B7: DATA BASE: | C7: ='Planilha Orçamentária'!B7 -> 2025-07-01 | D7: SETOP 10/2024; SICRO 01/2025; SINAPI 02/2025
B8: PRAZO: | C8: ='Planilha Orçamentária'!B8 -> 150 DIAS
B10: REFERÊNCIA | C10: CÓDIGO | D10: DESCRIÇÃO | E10: UNIDADE | F10: ÍNDICE | G10: CUSTO UNITÁRIO | H10: PREÇO TOTAL
B11: ='Planilha Orçamentária'!A17 -> 1.2.1 | C11: =VLOOKUP($B11,'Planilha Orçamentária'!A$11:F$2005,3,0) -> CPU.01 | D11: =VLOOKUP($B11,'Planilha Orçamentária'!A$11:F$2005,4,0) -> Mobilização da equipe de vistoria | E11: un | H11: =SUM(H18,H17,H14,H12) -> 3634.58 | I11: s
B12: =B11 -> 1.2.1 | D12: MATERIAL | H12: =H13 -> 1060.17 | I12: ss
B13: CODEVASF | C13: DP | D13: DIÁRIA + ALIMENTAÇÃO | E13: DIA | F13: 3 | G13: 353.39 | H13: =TRUNC((F13*G13),2) -> 1060.17 | I13: i | J13: =_xlfn.ISFORMULA(G13) -> FALSE
B14: =B11 -> 1.2.1 | D14: EQUIPAMENTOS | H14: =SUM(H15:H16) -> 2574.41 | I14: ss | J14: =_xlfn.ISFORMULA(G14) -> FALSE
B15: CODEVASF | C15: PRÓPRIA | D15: Veículo tipo pick-up, cabine dupla - 2.0 16V 4x4 diesel Aut. | E15: DIA | F15: 3 | G15: =TRUNC(('CPU-VEICULO_PickUp'!$C$11),2) -> 315.47 | H15: =TRUNC((F15*G15),2) -> 946.41 | I15: i | J15: TRUE
B16: 2025-02-01 | C16: COTAÇÃO | D16: Passagem aérea | E16: UN | F16: 2 | G16: =TRUNC(('Passagens aérea'!B4),2) -> 814 | H16: =TRUNC((F16*G16),2) -> 1628 | I16: ca | J16: TRUE
B17: =B11 -> 1.2.1 | D17: SERVIÇOS | I17: ss | J17: FALSE
B18: =B11 -> 1.2.1 | D18: MÃO DE OBRA | I18: ss | J18: FALSE
I19: x | J19: FALSE
B20: ='Planilha Orçamentária'!A20 -> 1.3.1 | C20: =VLOOKUP($B20,'Planilha Orçamentária'!A$11:F$2005,3,0) -> CPU.02 | D20: =VLOOKUP($B20,'Planilha Orçamentária'!A$11:F$2005,4,0) -> Mobilização da Equipe de mergulho, Camara Hiperbarica e todos os equipamentos de mergulho envolvidos na operação | E20: un | H20: =SUM(H21,H24,H31) -> 21055.29 | I20: S | J20: FALSE
B21: =B20 -> 1.3.1 | D21: MATERIAL | H21: =SUM(H22:H22) -> 5300.85 | I21: ss | J21: FALSE
B22: CODEVASF | C22: DP | D22: DIÁRIA + ALIMENTAÇÃO | E22: DIA | F22: =5*3 -> 15 | G22: 353.39 | H22: =TRUNC((F22*G22),2) -> 5300.85 | I22: i | J22: FALSE
B23: =B20 -> 1.3.1 | D23: EQUIPAMENTOS | H23: 0 | I23: ss | J23: FALSE
B24: =B20 -> 1.3.1 | D24: SERVIÇOS | H24: =SUM(H25:H30) -> 15754.44 | I24: ss | J24: FALSE
B25: 2025-02-01 | C25: COTAÇÃO | D25: Passagem aérea | E25: UN | F25: 5 | G25: ='Passagens aérea'!B4 -> 814 | H25: =TRUNC((F25*G25),2) -> 4070 | I25: ca | J25: TRUE
B26: CODEVASF | C26: PRÓPRIA | D26: Veículo tipo pick-up, cabine dupla - 2.0 16V 4x4 diesel Aut. | E26: DIA | F26: 3 | G26: =TRUNC(('CPU-VEICULO_PickUp'!$C$11),2) -> 315.47 | H26: =TRUNC((F26*G26),2) -> 946.41 | I26: ca | J26: TRUE
B27: SICRO3 | C27: 5915324 | D27: Transporte com caminhão carroceria de 5 t - rodovia pavimentada | E27: TxKM | F27: =Memorial!H12 -> 8353.333333 | G27: =VLOOKUP(C27,SICRO!A:D,4,FALSE) -> 1.24 | H27: =TRUNC((F27*G27),2) -> 10358.13 | I27: ca | J27: TRUE
B28: SINAPI | C28: 100952 | D28: TRANSPORTE GERADOR - TRANSPORTE COM CAMINHÃO CARROCERIA COM GUINDAUTO (MUNCK), MOMENTO MÁXIMO DE CARGA 11,7 TM, EM VIA URBANA PAVIMENTADA, DMT ATÉ 30KM (UNIDADE: TXKM). AF_07/2020 | E28: TxKM | F28: 30 | G28: =VLOOKUP(C28,COMPOSIÇÃO!B:E,4,FALSE) -> 2.88 | H28: =TRUNC((F28*G28),2) -> 86.4 | J28: TRUE
B29: SINAPI | C29: 100951 | D29: TRANSPORTE GERADOR - TRANSPORTE COM CAMINHÃO CARROCERIA COM GUINDAUTO (MUNCK), MOMENTO MÁXIMO DE CARGA 11,7 TM, EM VIA URBANA EM REVESTIMENTO PRIMÁRIO (UNIDADE: TXKM). AF_07/2020 | E29: TxKM | F29: =Memorial!H8*2 -> 10 | G29: =VLOOKUP(C29,COMPOSIÇÃO!B:E,4,FALSE) -> 3.13 | H29: 31.3 | J29: TRUE
B30: SINAPI | C30: 100953 | D30: TRANSPORTE COM CAMINHÃO CARROCERIA COM GUINDAUTO (MUNCK), MOMENTO MÁXIMO DE CARGA 11,7 TM, EM VIA URBANA PAVIMENTADA, ADICIONAL PARA DMT EXCEDENTE A 30 KM (UNIDADE: TXKM). AF_07/2020 | E30: TxKM | F30: =Memorial!H7*2-F28 -> 230 | G30: =VLOOKUP(C30,COMPOSIÇÃO!B:E,4,FALSE) -> 1.14 | H30: 262.2 | J30: TRUE
B31: =B20 -> 1.3.1 | D31: MÃO DE OBRA | H31: 0 | I31: mdo | J31: FALSE
I32: x | J32: FALSE
B33: ='Planilha Orçamentária'!A21 -> 1.3.2 | C33: =VLOOKUP($B33,'Planilha Orçamentária'!A$11:F$2005,3,0) -> CPU.03 | D33: =VLOOKUP($B33,'Planilha Orçamentária'!A$11:F$2005,4,0) -> Operação de mergulho dependente em profundidade de até 30 m - inclusive descompressão | E33: UN | H33: =SUM(H34,H35,H48,H49) -> 12682.56 | I33: S | J33: FALSE
B34: =B33 -> 1.3.2 | D34: MATERIAL | I34: ss | J34: FALSE
B35: =B33 -> 1.3.2 | D35: EQUIPAMENTOS | H35: =SUM(H36:H47) -> 5657.6 | I35: ss | J35: FALSE
B36: SICRO3 | C36: E9243 | D36: Câmara hiperbárica com filtro, serpentina e reservatório de ar para mergulho raso - D = 1,80 m e H = 2,22 m | E36: Custo Produtivo | F36: =1*32 -> 32 | G36: =TRUNC((VLOOKUP(C36,EQUIPAMENTO!A:K,10,FALSE)),2) -> 93.65 | H36: =TRUNC((F36*G36),2) -> 2996.8 | I36: ca | J36: TRUE
B37: SICRO3 | C37: E9243 | D37: Câmara hiperbárica com filtro, serpentina e reservatório de ar para mergulho raso - D = 1,80 m e H = 2,22 m | E37: Custo Improdutivo | F37: =0.5*32 -> 16 | G37: =TRUNC((VLOOKUP(C37,EQUIPAMENTO!A:K,11,FALSE)),2) -> 78.77 | H37: =TRUNC((F37*G37),2) -> 1260.32 | I37: ca | J37: TRUE
B38: SICRO3 | C38: E9245 | D38: Estação transmissora de superfície para comunicação com fio | E38: Custo Produtivo | F38: =1*32 -> 32 | G38: =TRUNC((VLOOKUP(C38,EQUIPAMENTO!A:K,10,FALSE)),2) -> 0.79 | H38: 25.28 | I38: ca | J38: TRUE
B39: SICRO3 | C39: E9245 | D39: Estação transmissora de superfície para comunicação com fio | E39: Custo Improdutivo | F39: =0.5*32 -> 16 | G39: =TRUNC((VLOOKUP(C39,EQUIPAMENTO!A:K,11,FALSE)),2) -> 0.55 | H39: 8.8 | I39: ca | J39: TRUE
B40: SICRO3 | C40: E9242 | D40: Estação transmissora de superfície para televisionamento | E40: Custo Produtivo | F40: =1*32 -> 32 | G40: =TRUNC((VLOOKUP(C40,EQUIPAMENTO!A:K,10,FALSE)),2) -> 1.75 | H40: 56 | I40: ca | J40: TRUE
B41: SICRO3 | C41: E9242 | D41: Estação transmissora de superfície para televisionamento | E41: Custo Improdutivo | F41: =0.5*32 -> 16 | G41: =TRUNC((VLOOKUP(C41,EQUIPAMENTO!A:K,11,FALSE)),2) -> 1.22 | H41: 19.52 | I41: ca | J41: TRUE
B42: SICRO3 | C42: E9066 | D42: Grupo gerador - 14 kVA | E42: Custo Produtivo | F42: =1*32 -> 32 | G42: =TRUNC((VLOOKUP(C42,EQUIPAMENTO!A:K,10,FALSE)),2) -> 18.98 | H42: 607.36 | I42: ca | J42: TRUE
B43: SICRO3 | C43: E9066 | D43: Grupo gerador - 14 kVA | E43: Custo Improdutivo | F43: =0.5*32 -> 16 | G43: =TRUNC((VLOOKUP(C43,EQUIPAMENTO!A:K,11,FALSE)),2) -> 4.73 | H43: 75.68 | I43: ca | J43: TRUE
B44: SICRO3 | C44: E9246 | D44: Painel de controle de ar com manômetros e pneufatômetros | E44: Custo Produtivo | F44: =1*32 -> 32 | G44: =TRUNC((VLOOKUP(C44,EQUIPAMENTO!A:K,10,FALSE)),2) -> 1.51 | H44: 48.32 | I44: ca | J44: TRUE
B45: SICRO3 | C45: E9246 | D45: Painel de controle de ar com manômetros e pneufatômetros | E45: Custo Improdutivo | F45: =0.5*32 -> 16 | G45: =TRUNC((VLOOKUP(C45,EQUIPAMENTO!A:K,11,FALSE)),2) -> 1.05 | H45: 16.8 | I45: ca | J45: TRUE
B46: SICRO3 | C46: E9248 | D46: Sistema de ar comprimido para mergulho até 30 m com pressão de trabalho de 1,4 MPa - 7,46 kW | E46: Custo Produtivo | F46: =1*32 -> 32 | G46: =TRUNC((VLOOKUP(C46,EQUIPAMENTO!A:K,10,FALSE)),2) -> 14.81 | H46: 473.92 | I46: ca | J46: TRUE
B47: SICRO3 | C47: E9248 | D47: Sistema de ar comprimido para mergulho até 30 m com pressão de trabalho de 1,4 MPa - 7,46 kW | E47: Custo Improdutivo | F47: =0.5*32 -> 16 | G47: =TRUNC((VLOOKUP(C47,EQUIPAMENTO!A:K,11,FALSE)),2) -> 4.3 | H47: 68.8 | I47: ca | J47: TRUE
B48: =B33 -> 1.3.2 | D48: SERVIÇOS | I48: ss | J48: FALSE
B49: =B33 -> 1.3.2 | D49: MÃO DE OBRA | H49: =SUM(H50:H52) -> 7024.96 | I49: ss | J49: FALSE
B50: SICRO3 | C50: P9926 | D50: Mergulhador raso auxiliar de superfície | E50: H | F50: =2*32 -> 64 | G50: =TRUNC((VLOOKUP(C50,'MÃO DE OBRA'!A:D,4,FALSE)),2) -> 36.83 | H50: =TRUNC((F50*G50),2) -> 2357.12 | I50: ca | J50: TRUE
B51: SICRO3 | C51: P9924 | D51: Mergulhador raso dependente | E51: H | F51: =2*32 -> 64 | G51: =TRUNC((VLOOKUP(C51,'MÃO DE OBRA'!A:D,4,FALSE)),2) -> 52.68 | H51: 3371.52 | I51: ca | J51: TRUE
B52: SICRO3 | C52: P9922 | D52: Mergulhador raso dependente de emergência | E52: H | F52: =1*32 -> 32 | G52: =TRUNC((VLOOKUP(C52,'MÃO DE OBRA'!A:D,4,FALSE)),2) -> 40.51 | H52: 1296.32 | I52: ca | J52: TRUE
J53: FALSE
B54: ='Planilha Orçamentária'!A26 -> 1.5.1 | C54: =VLOOKUP($B54,'Planilha Orçamentária'!A$11:F$2005,3,0) -> CPU.04 | D54: =VLOOKUP($B54,'Planilha Orçamentária'!A$11:F$2005,4,0) -> MOBILIZAÇÃO E DESMOBILIZAÇÃO DE EQUIPAMENTO DE SONDAGEM A PERCUSSÃO COM ENSAIO DE PENETRAÇÃO PADRÃO (SPT) | E54: un | H54: =SUM(H55,H56,H57) -> 604.8 | I54: s | J54: FALSE
B55: =B54 -> 1.5.1 | D55: MATERIAL | I55: ss | J55: FALSE
B56: =B54 -> 1.5.1 | D56: EQUIPAMENTOS | I56: ss | J56: FALSE
B57: =B54 -> 1.5.1 | D57: SERVIÇOS | H57: =H58 -> 604.8 | I57: ss | J57: FALSE
B58: SETOP | C58: CO-28389 | D58: MOBILIZAÇÃO E DESMOBILIZAÇÃO DE EQUIPAMENTO DE SONDAGEM A PERCUSSÃO COM ENSAIO DE PENETRAÇÃO PADRÃO (SPT) (CUSTO VARIÁVEL), EXCLUSIVE CUSTO FIXO | E58: km | F58: =Memorial!H5*2 -> 270 | G58: 2.24 | H58: =TRUNC((F58*G58),2) -> 604.8 | J58: FALSE
B59: =B54 -> 1.5.1 | D59: MÃO DE OBRA | I59: ss | J59: FALSE
J60: FALSE
B61: ='Planilha Orçamentária'!A18 -> 1.2.2 | C61: =VLOOKUP($B61,'Planilha Orçamentária'!A$11:F$2005,3,0) -> CPU.05 | D61: =VLOOKUP($B61,'Planilha Orçamentária'!A$11:F$2005,4,0) -> Vistoria e laudo da barragem, tomada d'água e equipamentos hidromecânicos | E61: un | H61: =SUM(H62,H63,H64,H65) -> 18715.2 | I61: S | J61: FALSE
B62: =B61 -> 1.2.2 | D62: MATERIAL | I62: ss | J62: FALSE
B63: =B61 -> 1.2.2 | D63: EQUIPAMENTOS | I63: ss | J63: FALSE
B64: =B61 -> 1.2.2 | D64: SERVIÇOS | I64: ss | J64: FALSE
B65: =B61 -> 1.2.2 | D65: MÃO DE OBRA | H65: =SUM(H66:H69) -> 18715.2 | I65: ss | J65: FALSE
B66: SINAPI | C66: 90778 | D66: ENGENHEIRO CIVIL PLENO COM ENCARGOS COMPLEMENTARES | E66: H | F66: =40+24 -> 64 | G66: =VLOOKUP(C66,COMPOSIÇÃO!B:E,4,FALSE) -> 135.75 | H66: =TRUNC((F66*G66),2) -> 8688 | I66: ca | J66: TRUE
B67: SINAPI | C67: 90778 | D67: ENGENHEIRO MECÂNICO PLENO COM ENCARGOS COMPLEMENTARES - COM BASE EM 90778 | E67: H | F67: =24 -> 24 | G67: =VLOOKUP(C67,COMPOSIÇÃO!B:E,4,FALSE) -> 135.75 | H67: =TRUNC((F67*G67),2) -> 3258 | I67: ca | J67: TRUE
B68: SINAPI | C68: 90779 | D68: ENGENHEIRO MECÂNICO SENIOR COM ENCARGOS COMPLEMENTARES - COM BASE EM 90779 | E68: H | F68: =20 -> 20 | G68: =VLOOKUP(C68,COMPOSIÇÃO!B:E,4,FALSE) -> 169.23 | H68: =TRUNC((F68*G68),2) -> 3384.6 | I68: ca | J68: TRUE
B69: SINAPI | C69: 90779 | D69: ENGENHEIRO CIVIL SENIOR COM ENCARGOS COMPLEMENTARES | E69: H | F69: 20 | G69: =VLOOKUP(C69,COMPOSIÇÃO!B:E,4,FALSE) -> 169.23 | H69: =TRUNC((F69*G69),2) -> 3384.6 | I69: ca | J69: TRUE
J70: FALSE
B71: ='Planilha Orçamentária'!A42 -> 2.1.1 | C71: =VLOOKUP($B71,'Planilha Orçamentária'!A$11:F$2005,3,0) -> CPU.06 | D71: =VLOOKUP($B71,'Planilha Orçamentária'!A$11:F$2005,4,0) -> Projeto executivo de manutenção e/ou substituição das comportas e seus compontentes | E71: un | H71: =SUM(H72,H73,H75,H76) -> 11008.52 | I71: s | J71: FALSE
B72: =B71 -> 2.1.1 | D72: MATERIAL | H72: 0 | I72: ss | J72: FALSE
B73: =B71 -> 2.1.1 | D73: EQUIPAMENTOS | H73: =H74 -> 72.24 | I73: ss | J73: FALSE
B74: COTAÇÃO | C74: CT-2 | D74: Progamas de desenho assistido pelo computador (Softwares CAD) | E74: h | F74: =F77+F79 -> 84 | G74: =TRUNC((COTAÇÃO!$R$12),2) -> 0.86 | H74: =TRUNC((F74*G74),2) -> 72.24 | J74: TRUE
B75: =B71 -> 2.1.1 | D75: SERVIÇOS | H75: 0 | I75: ss | J75: FALSE
B76: =B72 -> 2.1.1 | D76: MÃO DE OBRA | H76: =SUM(H77:H79) -> 10936.28 | I76: mdo | J76: FALSE
B77: SINAPI | C77: 90778 | D77: ENGENHEIRO MECÂNICO PLENO COM ENCARGOS COMPLEMENTARES - COM BASE EM 90778 | E77: H | F77: 40 | G77: =VLOOKUP(C77,COMPOSIÇÃO!B:E,4,FALSE) -> 135.75 | H77: =TRUNC((F77*G77),2) -> 5430 | I77: ca | J77: =_xlfn.ISFORMULA(G77) -> TRUE
B78: SINAPI | C78: 90779 | D78: ENGENHEIRO MECÂNICO SENIOR COM ENCARGOS COMPLEMENTARES - COM BASE EM 90779 | E78: H | F78: 20 | G78: =VLOOKUP(C78,COMPOSIÇÃO!B:E,4,FALSE) -> 169.23 | H78: =TRUNC((F78*G78),2) -> 3384.6 | I78: ca | J78: TRUE
B79: SINAPI | C79: 90775 | D79: DESENHISTA PROJETISTA COM ENCARGOS COMPLEMENTARES | E79: H | F79: 44 | G79: =VLOOKUP(C79,COMPOSIÇÃO!B:E,4,FALSE) -> 48.22 | H79: 2121.68 | I79: ca | J79: TRUE
J80: FALSE
B81: 2.2.1 | C81: =VLOOKUP($B81,'Planilha Orçamentária'!A$11:F$2005,3,0) -> CPU.07 | D81: =VLOOKUP($B81,'Planilha Orçamentária'!A$11:F$2005,4,0) -> Projeto da passarela | E81: un | H81: =SUM(H82,H83,H85,H86) -> 14393.12 | I81: s | J81: FALSE
B82: =B81 -> 2.2.1 | D82: MATERIAL | H82: 0 | I82: ss | J82: FALSE
B83: =B81 -> 2.2.1 | D83: EQUIPAMENTOS | H83: =H84 -> 72.24 | I83: ss | J83: FALSE
B84: COTAÇÃO | C84: CT-2 | D84: Progamas de desenho assistido pelo computador (Softwares CAD) | E84: h | F84: =F87+F89 -> 84 | G84: =TRUNC((COTAÇÃO!$R$12),2) -> 0.86 | H84: =TRUNC((F84*G84),2) -> 72.24 | J84: TRUE
B85: =B81 -> 2.2.1 | D85: SERVIÇOS | H85: 0 | I85: ss | J85: FALSE
B86: =B82 -> 2.2.1 | D86: MÃO DE OBRA | H86: =SUM(H87:H89) -> 14320.88 | I86: mdo | J86: FALSE
B87: SINAPI | C87: 90778 | D87: ENGENHEIRO CIVIL PLENO COM ENCARGOS COMPLEMENTARES - COM BASE EM 90778 | E87: H | F87: 40 | G87: =VLOOKUP(C87,COMPOSIÇÃO!B:E,4,FALSE) -> 135.75 | H87: =TRUNC((F87*G87),2) -> 5430 | I87: ca | J87: TRUE
B88: SINAPI | C88: 90779 | D88: ENGENHEIRO CIVIL SENIOR COM ENCARGOS COMPLEMENTARES - COM BASE EM 90779 | E88: H | F88: 40 | G88: =VLOOKUP(C88,COMPOSIÇÃO!B:E,4,FALSE) -> 169.23 | H88: 6769.2 | I88: ca | J88: TRUE
B89: SINAPI | C89: 90775 | D89: DESENHISTA PROJETISTA COM ENCARGOS COMPLEMENTARES | E89: H | F89: 44 | G89: =VLOOKUP(C89,COMPOSIÇÃO!B:E,4,FALSE) -> 48.22 | H89: 2121.68 | I89: ca | J89: TRUE
I90: x | J90: FALSE
B91: 2.3.1 | C91: =VLOOKUP($B91,'Planilha Orçamentária'!A$11:F$2005,3,0) -> CPU.08 | D91: =VLOOKUP($B91,'Planilha Orçamentária'!A$11:F$2005,4,0) -> Elaboração projeto "As Is" completo | E91: un | H91: =SUM(H92,H93,H95,H96) -> 21268.4 | I91: S | J91: FALSE
B92: =B91 -> 2.3.1 | D92: MATERIAL | I92: ss | J92: FALSE
B93: =B91 -> 2.3.1 | D93: EQUIPAMENTOS | H93: =H94 -> 137.6 | I93: ss | J93: FALSE
B94: COTAÇÃO | C94: CT-2 | D94: Progamas de desenho assistido pelo computador (Softwares CAD) | E94: h | F94: =F99+F97 -> 160 | G94: =TRUNC((COTAÇÃO!$R$12),2) -> 0.86 | H94: =TRUNC((F94*G94),2) -> 137.6 | J94: TRUE
B95: =B91 -> 2.3.1 | D95: SERVIÇOS | I95: ss | J95: FALSE
B96: =B91 -> 2.3.1 | D96: MÃO DE OBRA | H96: =SUM(H97:H99) -> 21130.8 | I96: mdo | J96: FALSE
B97: SINAPI | C97: 90777 | D97: ENGENHEIRO CIVIL DE OBRA JUNIOR COM ENCARGOS COMPLEMENTARES | E97: H | F97: 80 | G97: =VLOOKUP(C97,COMPOSIÇÃO!B:E,4,FALSE) -> 131.3 | H97: =TRUNC((F97*G97),2) -> 10504 | I97: ca | J97: TRUE
B98: SINAPI | C98: 90779 | D98: Engenheiro Civil De Obra Senior Com Encargos Complementares | E98: H | F98: 40 | G98: =VLOOKUP(C98,COMPOSIÇÃO!B:E,4,FALSE) -> 169.23 | H98: 6769.2 | I98: ca | J98: TRUE
B99: SINAPI | C99: 90775 | D99: DESENHISTA PROJETISTA COM ENCARGOS COMPLEMENTARES | E99: H | F99: 80 | G99: =VLOOKUP(C99,COMPOSIÇÃO!B:E,4,FALSE) -> 48.22 | H99: 3857.6 | I99: ca | J99: TRUE
I100: x | J100: FALSE
B101: 2.4.1 | C101: =VLOOKUP($B101,'Planilha Orçamentária'!A$11:F$2005,3,0) -> CPU.09 | D101: =VLOOKUP($B101,'Planilha Orçamentária'!A$11:F$2005,4,0) -> Elaboração de estudo de percolação da barragem, incluindo maciço, fundação e ombreiras | E101: un | H101: =SUM(H102,H103,H106,H107) -> 18000.4 | I101: s | J101: FALSE
B102: =B101 -> 2.4.1 | D102: MATERIAL | I102: ss | J102: FALSE
B103: =B101 -> 2.4.1 | D103: EQUIPAMENTOS | H103: =SUM(H104:H105) -> 371.2 | I103: ss | J103: FALSE
B104: COTAÇÃO | C104: CT-1 | D104: Programas geotecnicos com soluções por equilíbrio limite e elementos finitos | E104: H | F104: =F108 -> 80 | G104: =TRUNC((COTAÇÃO!$R$6),2) -> 3.78 | H104: =TRUNC((F104*G104),2) -> 302.4 | J104: TRUE
B105: COTAÇÃO | C105: CT-2 | D105: Progamas de desenho assistido pelo computador (Softwares CAD) | E105: H | F105: =F108 -> 80 | G105: =TRUNC((COTAÇÃO!$R$12),2) -> 0.86 | H105: =TRUNC((F105*G105),2) -> 68.8 | J105: TRUE
B106: =B101 -> 2.4.1 | D106: SERVIÇOS | I106: ss | J106: FALSE
B107: =B101 -> 2.4.1 | D107: MÃO DE OBRA | H107: =SUM(H108:H109) -> 17629.2 | I107: mdo | J107: FALSE
B108: SINAPI | C108: 90778 | D108: ENGENHEIRO CIVIL DE OBRA PLENO COM ENCARGOS COMPLEMENTARES | E108: H | F108: 80 | G108: =VLOOKUP(C108,COMPOSIÇÃO!B:E,4,FALSE) -> 135.75 | H108: =TRUNC((F108*G108),2) -> 10860 | I108: ca | J108: TRUE
B109: SINAPI | C109: 90779 | D109: Engenheiro Civil De Obra Senior Com Encargos Complementares | E109: H | F109: =5*8 -> 40 | G109: =VLOOKUP(C109,COMPOSIÇÃO!B:E,4,FALSE) -> 169.23 | H109: 6769.2 | I109: ca | J109: TRUE
J110: FALSE
B111: ='Planilha Orçamentária'!A50 -> 2.5.1 | C111: =VLOOKUP($B111,'Planilha Orçamentária'!A$11:F$2005,3,0) -> CPU.10 | D111: =VLOOKUP($B111,'Planilha Orçamentária'!A$11:F$2005,4,0) -> Elaboração de estudo de estabilidade da barragem conforme os critérios e atuais | E111: un | H111: =SUM(H112,H113,H116,H117) -> 15292.72 | I111: s | J111: FALSE
B112: =B111 -> 2.5.1 | D112: MATERIAL | I112: ss | J112: FALSE
B113: =B111 -> 2.5.1 | D113: EQUIPAMENTOS | H113: =SUM(H114:H115) -> 371.2 | I113: ss | J113: FALSE
B114: COTAÇÃO | C114: CT-1 | D114: Programas geotecnicos com soluções por equilíbrio limite e elementos finitos | E114: H | F114: =F118 -> 80 | G114: =TRUNC((COTAÇÃO!$R$6),2) -> 3.78 | H114: =TRUNC((F114*G114),2) -> 302.4 | J114: TRUE
B115: COTAÇÃO | C115: CT-2 | D115: Progamas de desenho assistido pelo computador (Softwares CAD) | E115: H | F115: =F118 -> 80 | G115: =TRUNC((COTAÇÃO!$R$12),2) -> 0.86 | H115: =TRUNC((F115*G115),2) -> 68.8 | J115: TRUE
B116: =B111 -> 2.5.1 | D116: SERVIÇOS | I116: ss | J116: FALSE
B117: =B111 -> 2.5.1 | D117: MÃO DE OBRA | H117: =SUM(H118:H119) -> 14921.52 | I117: mdo | J117: FALSE
B118: SINAPI | C118: 90778 | D118: ENGENHEIRO CIVIL DE OBRA PLENO COM ENCARGOS COMPLEMENTARES | E118: H | F118: =10*8 -> 80 | G118: =VLOOKUP(C118,COMPOSIÇÃO!B:E,4,FALSE) -> 135.75 | H118: =TRUNC((F118*G118),2) -> 10860 | I118: ca | J118: TRUE
B119: SINAPI | C119: 90779 | D119: Engenheiro Civil De Obra Senior Com Encargos Complementares | E119: H | F119: =3*8 -> 24 | G119: =VLOOKUP(C119,COMPOSIÇÃO!B:E,4,FALSE) -> 169.23 | H119: 4061.52 | I119: ca | J119: TRUE
J120: FALSE
B121: ='Planilha Orçamentária'!A52 -> 2.6.1 | C121: =VLOOKUP($B121,'Planilha Orçamentária'!A$11:F$2005,3,0) -> CPU.11 | D121: =VLOOKUP($B121,'Planilha Orçamentária'!A$11:F$2005,4,0) -> Elaboração de projeto de instrumentação e definição dos níveis de referência | E121: un | H121: =SUM(H122,H123,H126,H127) -> 14509.92 | I121: S | J121: FALSE
B122: =B121 -> 2.6.1 | D122: MATERIAL | H122: 0 | I122: SS | J122: FALSE
B123: =B121 -> 2.6.1 | D123: EQUIPAMENTOS | H123: =SUM(H124:H125) -> 189.04 | I123: SS | J123: FALSE
B124: COTAÇÃO | C124: CT-1 | D124: Programas geotecnicos com soluções por equilíbrio limite e elementos finitos | E124: H | F124: =F128 -> 40 | G124: =TRUNC((COTAÇÃO!$R$6),2) -> 3.78 | H124: =TRUNC((F124*G124),2) -> 151.2 | J124: TRUE
B125: COTAÇÃO | C125: CT-2 | D125: Progamas de desenho assistido pelo computador (Softwares CAD) | E125: H | F125: =F130 -> 44 | G125: =TRUNC((COTAÇÃO!$R$12),2) -> 0.86 | H125: =TRUNC((F125*G125),2) -> 37.84 | J125: TRUE
B126: =B121 -> 2.6.1 | D126: SERVIÇOS | H126: 0 | I126: ss | J126: FALSE
B127: =B122 -> 2.6.1 | D127: MÃO DE OBRA | H127: =SUM(H128:H130) -> 14320.88 | I127: mdo | J127: FALSE
B128: SINAPI | C128: 90778 | D128: ENGENHEIRO CIVIL DE OBRA PLENO COM ENCARGOS COMPLEMENTARES | E128: H | F128: 40 | G128: =VLOOKUP(C128,COMPOSIÇÃO!B:E,4,FALSE) -> 135.75 | H128: =TRUNC((F128*G128),2) -> 5430 | I128: ca | J128: TRUE
B129: SINAPI | C129: 90779 | D129: Engenheiro Civil De Obra Senior Com Encargos Complementares | E129: H | F129: 40 | G129: =VLOOKUP(C129,COMPOSIÇÃO!B:E,4,FALSE) -> 169.23 | H129: 6769.2 | I129: ca | J129: TRUE
B130: SINAPI | C130: 90775 | D130: DESENHISTA PROJETISTA COM ENCARGOS COMPLEMENTARES | E130: H | F130: 44 | G130: =VLOOKUP(C130,COMPOSIÇÃO!B:E,4,FALSE) -> 48.22 | H130: 2121.68 | I130: ca | J130: TRUE
I131: x | J131: FALSE
B132: ='Planilha Orçamentária'!A15 -> 1.1.1 | C132: =VLOOKUP($B132,'Planilha Orçamentária'!A$11:F$2005,3,0) -> CPU.12 | D132: =VLOOKUP($B132,'Planilha Orçamentária'!A$11:F$2005,4,0) -> Plano de trabalho detalhado, incluindo a logística de execução dos levantamentos de campo e ensaios geotecnicos | E132: un | H132: =SUM(H133,H134,H135,H136) -> 2439.84 | I132: S | J132: FALSE
B133: =B132 -> 1.1.1 | D133: MATERIAL | H133: 0 | I133: ss | J133: FALSE
B134: =B132 -> 1.1.1 | D134: EQUIPAMENTOS | H134: 0 | I134: ss | J134: FALSE
B135: =B132 -> 1.1.1 | D135: SERVIÇOS | H135: 0 | I135: ss | J135: FALSE
B136: =B133 -> 1.1.1 | D136: MÃO DE OBRA | H136: =SUM(H137:H138) -> 2439.84 | I136: mdo | J136: FALSE
B137: SINAPI | C137: 90778 | D137: ENGENHEIRO CIVIL DE OBRA PLENO COM ENCARGOS COMPLEMENTARES | E137: H | F137: 8 | G137: =VLOOKUP(C137,COMPOSIÇÃO!B:E,4,FALSE) -> 135.75 | H137: =TRUNC((F137*G137),2) -> 1086 | I137: ca | J137: TRUE
B138: SINAPI | C138: 90779 | D138: Engenheiro Civil De Obra Senior Com Encargos Complementares | E138: H | F138: 8 | G138: =VLOOKUP(C138,COMPOSIÇÃO!B:E,4,FALSE) -> 169.23 | H138: 1353.84 | I138: ca | J138: TRUE
J139: FALSE
B140: ='Planilha Orçamentária'!A38 -> 1.5.13 | C140: =VLOOKUP($B140,'Planilha Orçamentária'!A$11:F$2005,3,0) -> CPU.13 | D140: =VLOOKUP($B140,'Planilha Orçamentária'!A$11:F$2005,4,0) -> Emissão de ART para ensaios geotecnicos | E140: un | H140: =SUM(H141,H142,H143,H145) -> 271.47 | I140: S | J140: FALSE
B141: =B140 -> 1.5.13 | D141: MATERIAL | H141: 0 | I141: ss | J141: =_xlfn.ISFORMULA(G141) -> FALSE
B142: =B140 -> 1.5.13 | D142: EQUIPAMENTOS | H142: 0 | I142: ss | J142: FALSE
B143: =B140 -> 1.5.13 | D143: SERVIÇOS | H143: =H144 -> 271.47 | I143: ss | J143: FALSE
B144: CREA-MG | C144: CONSULTA | D144: ART para contratos acima de R$ 15.000 | E144: un | F144: 1 | G144: 271.47 | H144: =TRUNC((F144*G144),2) -> 271.47 | I144: ca | J144: FALSE
B145: =B141 -> 1.5.13 | D145: MÃO DE OBRA | I145: mdo | J145: FALSE
J146: FALSE
B147: ='Planilha Orçamentária'!A31 -> 1.5.6 | C147: =VLOOKUP($B147,'Planilha Orçamentária'!A$11:F$2005,3,0) -> CPU.14 | D147: =VLOOKUP($B147,'Planilha Orçamentária'!A$11:F$2005,4,0) -> Mobilização e desmobilização - Coleta de amostra indeformada | E147: un | H147: =SUM(H148,H149,H150) -> 604.8 | I147: s | J147: FALSE
B148: =B147 -> 1.5.6 | D148: MATERIAL | I148: ss | J148: FALSE
B149: =B147 -> 1.5.6 | D149: EQUIPAMENTOS | I149: ss | J149: FALSE
B150: =B147 -> 1.5.6 | D150: SERVIÇOS | H150: =H151 -> 604.8 | I150: ss | J150: FALSE
B151: SETOP | C151: CO-28389 | D151: BASE EM - CO-28389 - MOBILIZAÇÃO E DESMOBILIZAÇÃO DE EQUIPAMENTO DE SONDAGEM A PERCUSSÃO COM ENSAIO DE PENETRAÇÃO PADRÃO (SPT) (CUSTO VARIÁVEL), EXCLUSIVE CUSTO FIXO | E151: km | F151: =Memorial!H5*2 -> 270 | G151: 2.24 | H151: =TRUNC((F151*G151),2) -> 604.8 | J151: FALSE
B152: =B147 -> 1.5.6 | D152: MÃO DE OBRA | I152: ss | J152: FALSE
J153: FALSE
B154: ='Planilha Orçamentária'!A33 -> 1.5.8 | C154: =VLOOKUP($B154,'Planilha Orçamentária'!A$11:F$2005,3,0) -> CPU.15 | D154: =VLOOKUP($B154,'Planilha Orçamentária'!A$11:F$2005,4,0) -> Reaterro com compactação adequada dos pontos de coleta de amostra, Inclusive com fornecimento de solo | E154: M³ | H154: =SUM(H155,H157,H158) -> 66.028 | I154: s | J154: FALSE
B155: =B154 -> 1.5.8 | D155: MATERIAL | H155: =H156 -> 43.408 | I155: ss | J155: FALSE
B156: SINAPI | C156: 6081 | D156: Argila Ou Barro Para Aterro/Reaterro (Com Transporte Ate 10 Km) | E156: M3 | F156: 0.8 | G156: 54.26 | H156: =F156*G156 -> 43.408 | I156: i | J156: FALSE
B157: =B154 -> 1.5.8 | D157: EQUIPAMENTOS | I157: ss | J157: FALSE
B158: =B154 -> 1.5.8 | D158: SERVIÇOS | H158: =H159 -> 22.62 | I158: ss | J158: FALSE
B159: SINAPI | C159: 104737 | D159: REATERRO MANUAL DE VALAS, COM PLACA VIBRATÓRIA. AF_08/2023 | E159: M³ | F159: 1 | G159: =TRUNC((VLOOKUP(C159,COMPOSIÇÃO!B:E,4,FALSE)),2) -> 22.62 | H159: =TRUNC((F159*G159),2) -> 22.62 | J159: TRUE
B160: =B154 -> 1.5.8 | D160: MÃO DE OBRA | I160: ss | J160: FALSE
J161: FALSE
B162: ='Planilha Orçamentária'!A23 -> 1.4.1 | C162: =VLOOKUP($B162,'Planilha Orçamentária'!A$11:F$2005,3,0) -> CPU.16 | D162: =VLOOKUP($B162,'Planilha Orçamentária'!A$11:F$2005,4,0) -> Mobilização e desmobilização de equipe de levantamento topgráfico | E162: un | H162: =SUM(H168,H167,H165,H163) -> 3066.75 | I162: s | J162: FALSE
B163: =B162 -> 1.4.1 | D163: MATERIAL | H163: =H164 -> 2120.34 | I163: ss | J163: FALSE
B164: CODEVASF | C164: DP | D164: DIÁRIA + ALIMENTAÇÃO | E164: DIA | F164: =2*3 -> 6 | G164: 353.39 | H164: =TRUNC((F164*G164),2) -> 2120.34 | I164: i | J164: FALSE
B165: =B162 -> 1.4.1 | D165: EQUIPAMENTOS | H165: =SUM(H166:H166) -> 946.41 | I165: ss | J165: FALSE
B166: CODEVASF | C166: PRÓPRIA | D166: Veículo tipo pick-up, cabine dupla - 2.0 16V 4x4 diesel Aut. | E166: DIA | F166: 3 | G166: =TRUNC(('CPU-VEICULO_PickUp'!C11),2) -> 315.47 | H166: =TRUNC((F166*G166),2) -> 946.41 | I166: i | J166: TRUE
B167: =B162 -> 1.4.1 | D167: SERVIÇOS | I167: ss
B168: =B162 -> 1.4.1 | D168: MÃO DE OBRA | I168: ss

Sheet BDI serv
B1: Ministério da Integração e do Desenvolvimento Regional
B2: Companhia de Desenvolvimento dos Vales do São Francisco e do Parnaíba
A4: COMPOSIÇÃO DE BDI - SERVIÇOS - ONERADO
A5: OBRA: | B5: ='Planilha Orçamentária'!B5 -> ELABORAÇÃO DE PROJETO “AS IS”, DE INSTRUMENTAÇÃO, DA PASSARELA ACESSO DA TOMADA D’ÁGUA, DE RECUPERAÇÃO DAS COMPORTAS E ESTUDO DE ESTABILIDADE DA BARRAGEM DE BICO DA PEDRA, LOCALIZADA EM JANAÚBA NO ESTADO DE MINAS GERAIS | D5: BDI (serv.): | E5: =D23 -> 0.2581
A6: LOCAL: | B6: ='Planilha Orçamentária'!B6 -> BARRAGEM BICO DA PEDRA (JANAÚBA - MG) | D6: BDI (forn.): | E6: ='BDI forn'!D23 -> 0.147
A7: DATA BASE: | B7: ='Planilha Orçamentária'!B7 -> 2025-07-01
A8: PRAZO: | B8: ='Planilha Orçamentária'!B8 -> 150 DIAS
A9: ITEM | B9: DESCRIÇÃO | C9: SIGLA | D9: % APLICADO | E9: REFERÊNCIA TCU (ACÓRDÃO Nº 2622/2013)
E10: 1º QUARTIL | F10: 2º QUARTIL | G10: 3º QUARTIL
A11: 1 | B11: ADMINISTRAÇÃO CENTRAL | C11: AC | D11: =E11 -> 0.04 | E11: 0.04 | F11: 0.0552 | G11: 0.0785
A12: 2 | B12: IMPOSTOS | C12: T | D12: =SUM(D13:D16) -> 0.0865
A13: 2.1 | B13: ISS (*) | D13: 0.05 | E13: - | F13: - | G13: -
A14: 2.2 | B14: PIS | D14: 0.0065 | E14: - | F14: - | G14: -
A15: 2.3 | B15: Cofins | D15: 0.03 | E15: - | F15: - | G15: -
A16: 2.4 | B16: Contribuição previdênciária sobre a receita bruta (CPRB) | E16: - | F16: - | G16: -
A17: 3 | B17: SEGURO, GARANTIA E RISCO | D17: =SUM(D18:D20) -> 0.0227
A18: 3.1 | B18: Seguro | C18: S | D18: =E18 -> 0.0081 | E18: 0.0081 | F18: 0.0122 | G18: 0.0199
A19: 3.2 | B19: Garantia | C19: G
A20: 3.3 | B20: Risco | C20: R | D20: =E20 -> 0.0146 | E20: 0.0146 | F20: 0.0232 | G20: 0.0316
A21: 4 | B21: DESPESAS FINANCEIRAS | C21: DF | D21: =E21 -> 0.0094 | E21: 0.0094 | F21: 0.0102 | G21: 0.01363
A22: 5 | B22: LUCRO | C22: L | D22: =E22 -> 0.0714 | E22: 0.0714 | F22: 0.084 | G22: 0.1043
B23: BDI ADOTADO: | D23: =ROUND(((((1+D11+D17)*(1+D21)*(1+D22))/(1-D12))-1),4) -> 0.2581
A24: Considerações: O BDI foi calculado através da seguinte fórmula, regulamentada pelo Acórdão Nº 2622/2013 – TCU. * O percentual de ISSQN aqui utilizado refere-se ao município de Porteirinha/MG, conforme Lei Complementar 1899/2007 - Art. 1º (Item 7.02C). Conforme Art. 112, § 14, na base de cálculo do ISSQN considerou-se dedução do percentual abaixo discriminado.

Sheet BDI forn
A1: Ministério da Integração e do Desenvolvimento Regional
A2: Companhia de Desenvolvimento dos Vales do São Francisco e do Parnaíba
A3: ='Planilha Orçamentária'!A3:I3 -> 0
A4: COMPOSIÇÃO DE BDI - FORNECIMENTO - ONERADO
A5: OBRA: | B5: ='Planilha Orçamentária'!B5 -> ELABORAÇÃO DE PROJETO “AS IS”, DE INSTRUMENTAÇÃO, DA PASSARELA ACESSO DA TOMADA D’ÁGUA, DE RECUPERAÇÃO DAS COMPORTAS E ESTUDO DE ESTABILIDADE DA BARRAGEM DE BICO DA PEDRA, LOCALIZADA EM JANAÚBA NO ESTADO DE MINAS GERAIS | D5: BDI (serv.): | E5: ='BDI serv'!D23 -> 0.2581
A6: LOCAL: | B6: ='Planilha Orçamentária'!B6 -> BARRAGEM BICO DA PEDRA (JANAÚBA - MG) | D6: BDI (forn.): | E6: =D23 -> 0.147
A7: DATA BASE: | B7: ='Planilha Orçamentária'!B7 -> 2025-07-01
A8: PRAZO: | B8: ='Planilha Orçamentária'!B8 -> 150 DIAS
A9: ITEM | B9: DESCRIÇÃO | C9: SIGLA | D9: % APLICADO | E9: REFERÊNCIA TCU (ACÓRDÃO Nº 2622/2013)
E10: 1º QUARTIL | F10: 2º QUARTIL | G10: 3º QUARTIL
A11: 1 | B11: ADMINISTRAÇÃO CENTRAL | C11: AC | D11: 0.04 | E11: 0.015 | F11: 0.0345 | G11: 0.0449
A12: 2 | B12: IMPOSTOS | C12: T | D12: =SUM(D13:D16) -> 0.0365
A13: 2.1 | B13: ISS (*) | E13: - | F13: - | G13: -
A14: 2.2 | B14: PIS | D14: 0.0065 | E14: - | F14: - | G14: -
A15: 2.3 | B15: Cofins | D15: 0.03 | E15: - | F15: - | G15: -
A16: 2.4 | B16: Contribuição previdênciária sobre a receita bruta (CPRB) | E16: - | F16: - | G16: -
A17: 3 | B17: SEGURO, GARANTIA E RISCO | D17: =SUM(D18:D20) -> 0.0086
A18: 3.1 | B18: Seguro | C18: S | D18: =E18 -> 0.003 | E18: 0.003 | F18: 0.0048 | G18: 0.0082
A19: 3.2 | B19: Garantia | C19: G
A20: 3.3 | B20: Risco | C20: R | D20: =E20 -> 0.0056 | E20: 0.0056 | F20: 0.0085 | G20: 0.0089
A21: 4 | B21: DESPESAS FINANCEIRAS | C21: DF | D21: =E21 -> 0.0085 | E21: 0.0085 | F21: 0.0085 | G21: 0.0111
A22: 5 | B22: LUCRO | C22: L | D22: 0.045 | E22: 0.035 | F22: 0.0511 | G22: 0.0622
B23: BDI ADOTADO: | D23: =ROUND(((((1+D11+D17)*(1+D21)*(1+D22))/(1-D12))-1),4) -> 0.147
A24: Considerações: O BDI foi calculado através da seguinte fórmula, regulamentada pelo Acórdão Nº 2622/2013 – TCU.

Sheet Cronograma
B1: Ministério da Integração e do Desenvolvimento Regional
B2: Companhia de Desenvolvimento dos Vales do São Francisco e do Parnaíba
A4: CRONOGRAMA FÍSICO-FINANCEIRO NÃO-DESONERADO
A5: OBRA: | B5: ='Planilha Orçamentária'!B5 -> ELABORAÇÃO DE PROJETO “AS IS”, DE INSTRUMENTAÇÃO, DA PASSARELA ACESSO DA TOMADA D’ÁGUA, DE RECUPERAÇÃO DAS COMPORTAS E ESTUDO DE ESTABILIDADE DA BARRAGEM DE BICO DA PEDRA, LOCALIZADA EM JANAÚBA NO ESTADO DE MINAS GERAIS | D5: BDI (serv.): | E5: ='BDI serv'!D23 -> 0.2581
A6: LOCAL: | B6: ='Planilha Orçamentária'!B6 -> BARRAGEM BICO DA PEDRA (JANAÚBA - MG) | D6: BDI (forn.): | E6: ='BDI forn'!E6 -> 0.147
A7: DATA BASE: | B7: ='Planilha Orçamentária'!B7 -> 2025-07-01
A8: PRAZO: | B8: ='Planilha Orçamentária'!B8 -> 150 DIAS
A9: ITEM | B9: DESCRIÇÃO | C9: TOTAL POR ETAPA | D9: MESES | I9: TOTAL
D10: 1 | E10: 2 | F10: 3 | G10: 4 | H10: 5
A11: 1.1 | B11: =VLOOKUP(A11,'Planilha Orçamentária'!$A$13:$D$91,4) -> Plano de trabalho detalhado, incluindo a logística de execução dos levantamentos de campo e ensaios geotecnicos | C11: =SUMIF('Planilha Orçamentária'!$A$13:$A$55,A11,'Planilha Orçamentária'!$I$13:$I$55) -> 3069.56 | D11: =$C11*D12 -> 3069.56 | I11: =SUM(D11:H11) -> 3069.56 | J11: R$
C12: =C11/C11 -> 1 | D12: 1 | I12: 1 | J12: %
A13: 1.2 | B13: =VLOOKUP(A13,'Planilha Orçamentária'!$A$13:$D$91,4) -> Vistoria e laudo da barragem e parte externa da tomada d'água | C13: =SUMIF('Planilha Orçamentária'!$A$13:$A$55,A13,'Planilha Orçamentária'!$I$13:$I$55) -> 28118.25 | D13: =$C13*D14 -> 28118.25 | I13: 28118.25 | J13: R$
C14: =C13/C13 -> 1 | D14: 1 | I14: 1 | J14: %
A15: 1.3 | B15: =VLOOKUP(A15,'Planilha Orçamentária'!$A$13:$D$91,4) -> Vistoria subaquática da tomada d'água e comportas | C15: =SUMIF('Planilha Orçamentária'!$A$13:$A$55,A15,'Planilha Orçamentária'!$I$13:$I$55) -> 42445.58 | D15: =$C15*D16 -> 42445.58 | I15: 42445.58 | J15: R$
C16: =C15/C15 -> 1 | D16: 1 | I16: 1 | J16: %
A17: 1.4 | B17: =VLOOKUP(A17,'Planilha Orçamentária'!$A$13:$D$91,4) -> Levantamento topográfico | C17: =SUMIF('Planilha Orçamentária'!$A$13:$A$55,A17,'Planilha Orçamentária'!$I$13:$I$55) -> 34458.27 | D17: =$C17*D18 -> 17229.135 | E17: =$C17*E18 -> 17229.135 | I17: 34458.27 | J17: R$
C18: =C17/C17 -> 1 | D18: 0.5 | E18: 0.5 | I18: 1 | J18: %
A19: 1.5 | B19: =VLOOKUP(A19,'Planilha Orçamentária'!$A$13:$D$91,4) -> Investigação Geológica e Geotécnica | C19: =SUMIF('Planilha Orçamentária'!$A$13:$A$55,A19,'Planilha Orçamentária'!$I$13:$I$55) -> 107882.98 | D19: =$C19*D20 -> 53941.49 | E19: =$C19*E20 -> 53941.49 | I19: =SUM(D19:H19) -> 107882.98 | J19: R$
C20: =C19/C19 -> 1 | D20: 0.5 | E20: 0.5 | I20: 1 | J20: %
A21: 2.1 | B21: =VLOOKUP(A21,'Planilha Orçamentária'!$A$13:$D$91,4) -> Laudo de vistoria e Projeto executivo de manutenção e/ou substituição das comportas | C21: =SUMIF('Planilha Orçamentária'!$A$13:$A$55,A21,'Planilha Orçamentária'!$I$13:$I$55) -> 13849.81 | E21: =$C21*E22 -> 13849.81 | I21: 13849.81 | J21: R$
C22: =C21/C21 -> 1 | E22: 1 | I22: 1 | J22: %
A23: 2.2 | B23: =VLOOKUP(A23,'Planilha Orçamentária'!$A$13:$D$91,4) -> Passarela de acesso a torre de tomada d'água | C23: =SUMIF('Planilha Orçamentária'!$A$13:$A$55,A23,'Planilha Orçamentária'!$I$13:$I$55) -> 18107.98 | F23: =$C23*F24 -> 9053.99 | G23: =$C23*G24 -> 9053.99 | I23: 18107.98 | J23: R$
C24: =C23/C23 -> 1 | F24: 0.5 | G24: 0.5 | I24: 1 | J24: %
A25: 2.3 | B25: =VLOOKUP(A25,'Planilha Orçamentária'!$A$13:$D$91,4) -> Projeto "As is" | C25: =SUMIF('Planilha Orçamentária'!$A$13:$A$55,A25,'Planilha Orçamentária'!$I$13:$I$55) -> 26757.77 | H25: =$C25*H26 -> 26757.77 | I25: 26757.77 | J25: R$
C26: =C25/C25 -> 1 | H26: 1 | I26: 1 | J26: %
A27: 2.4 | B27: =VLOOKUP(A27,'Planilha Orçamentária'!$A$13:$D$91,4) -> Estudo de percolação | C27: =SUMIF('Planilha Orçamentária'!$A$13:$A$55,A27,'Planilha Orçamentária'!$I$13:$I$55) -> 22646.3 | F27: =$C27*F28 -> 22646.3 | I27: 22646.3 | J27: R$
C28: =C27/C27 -> 1 | F28: 1 | I28: 1 | J28: %
A29: 2.5 | B29: =VLOOKUP(A29,'Planilha Orçamentária'!$A$13:$D$91,4) -> Estudo de estabilidade | C29: =SUMIF('Planilha Orçamentária'!$A$13:$A$55,A29,'Planilha Orçamentária'!$I$13:$I$55) -> 19239.77 | G29: =$C29*G30 -> 19239.77 | I29: 19239.77 | J29: R$
C30: =C29/C29 -> 1 | G30: 1 | I30: 1 | J30: %
A31: 2.6 | B31: =VLOOKUP(A31,'Planilha Orçamentária'!$A$13:$D$91,4) -> Projeto de Instrumentação | C31: =SUMIF('Planilha Orçamentária'!$A$13:$A$55,A31,'Planilha Orçamentária'!$I$13:$I$55) -> 18254.93 | H31: =$C31*H32 -> 18254.93 | I31: 18254.93 | J31: R$
C32: =C31/C31 -> 1 | H32: 1 | I32: 1 | J32: %
A33: 2.7 | B33: =VLOOKUP(A33,'Planilha Orçamentária'!$A$13:$D$91,4) -> Anotação de Responsabilidade técnica pelos projetos | C33: =SUMIF('Planilha Orçamentária'!$A$13:$A$55,A33,'Planilha Orçamentária'!$I$13:$I$55) -> 341.53 | H33: =$C33*H34 -> 341.53 | I33: =SUM(D33:H33) -> 341.53 | J33: R$
C34: =C33/C33 -> 1 | H34: 1 | I34: 1 | J34: %
B35: VALOR TOTAL: | C35: =SUMIF($J$11:$J$32,"R$",C$11:C$32) -> 334831.2 | D35: 144804.015 | E35: 85020.435 | F35: 31700.29 | G35: 28293.76 | H35: 45012.7 | I35: =SUMIF($J$11:$J$34,"R$",I$11:I$34) -> 335172.73 | K35: verificacao
B36: VALOR ACUMULADO: | D36: =D35 -> 144804.015 | E36: =E35+D36 -> 229824.45 | F36: =F35+E36 -> 261524.74 | G36: =G35+F36 -> 289818.5 | H36: 334831.2 | I36: =I35 -> 335172.73 | K36: =IF(I36='Planilha Orçamentária'!I58,"Ok","VERIFICAR ERRO") -> Ok
B37: FÍSICO PARCIAL: | D37: =SUMIF($J$13:$J$32,"R$",D$13:D$32)/$C$35 -> 0.4233012186 | E37: =SUMIF($J$13:$J$32,"R$",E$13:E$32)/$C$35 -> 0.2539202888 | F37: =SUMIF($J$13:$J$32,"R$",F$13:F$32)/$C$35 -> 0.09467543646 | G37: =SUMIF($J$13:$J$32,"R$",G$13:G$32)/$C$35 -> 0.08450156377 | H37: =SUMIF($J$13:$J$32,"R$",H$13:H$32)/$C$35 -> 0.1344340073 | I37: =I35/$C$35 -> 1.001020006
B38: AVANÇO FÍSICO: | D38: =D35/$C$35 -> 0.4324687036 | E38: 0.2539202888 | F38: 0.09467543646 | G38: 0.08450156377 | H38: 0.1344340073 | I38: =SUM(D38:H38) -> 1

Sheet Encargos Sociais
B1: Ministério da Integração e do Desenvolvimento Regional
B2: Companhia de Desenvolvimento dos Vales do São Francisco e do Parnaíba
A3: ='Planilha Orçamentária'!A3:I3 -> 0
A4: COMPOSIÇÃO DE ENCARGOS SOCIAIS SOBRE A MÃO DE OBRA
A5: OBRA: | B5: ='Planilha Orçamentária'!B5 -> ELABORAÇÃO DE PROJETO “AS IS”, DE INSTRUMENTAÇÃO, DA PASSARELA ACESSO DA TOMADA D’ÁGUA, DE RECUPERAÇÃO DAS COMPORTAS E ESTUDO DE ESTABILIDADE DA BARRAGEM DE BICO DA PEDRA, LOCALIZADA EM JANAÚBA NO ESTADO DE MINAS GERAIS | D5: BDI (serv.): | E5: ='BDI serv'!D23 -> 0.2581
A6: LOCAL: | B6: ='Planilha Orçamentária'!B6 -> BARRAGEM BICO DA PEDRA (JANAÚBA - MG) | D6: BDI (forn.): | E6: ='BDI forn'!E6 -> 0.147
A7: DATA BASE: | B7: ='Planilha Orçamentária'!B7 -> 2025-07-01
A8: PRAZO: | B8: ='Planilha Orçamentária'!B8 -> 150 DIAS
A9: Encargos Sociais – Minas Gerais VIGÊNCIA A PARTIR DE 01/2025
A10: ENCARGOS SOCIAIS SOBRE A MÃO DE OBRA
A11: CÓDIGO | B11: DESCRIÇÃO | C11: COM DESONERAÇÃO | E11: SEM DESONERAÇÃO
C12: HORISTA % | D12: MENSALISTA % | E12: HORISTA % | F12: MENSALISTA %
A13: GRUPO A
A14: A1 | B14: INSS | C14: 0.05 | D14: 0.05 | E14: 0.2 | F14: 0.2
A15: A2 | B15: SESI | C15: 0.015 | D15: 0.015 | E15: 0.015 | F15: 0.015
A16: A3 | B16: SENAI | C16: 0.01 | D16: 0.01 | E16: 0.01 | F16: 0.01
A17: A4 | B17: INCRA | C17: 0.002 | D17: 0.002 | E17: 0.002 | F17: 0.002
A18: A5 | B18: SEBRAE | C18: 0.006 | D18: 0.006 | E18: 0.006 | F18: 0.006
A19: A6 | B19: Salário Educação | C19: 0.025 | D19: 0.025 | E19: 0.025 | F19: 0.025
A20: A7 | B20: Seguro Contra Acidentes de Trabalho | C20: 0.03 | D20: 0.03 | E20: 0.03 | F20: 0.03
A21: A8 | B21: FGTS | C21: 0.08 | D21: 0.08 | E21: 0.08 | F21: 0.08
A22: A9 | B22: SECONCI | C22: 0.012 | D22: 0.012 | E22: 0.012 | F22: 0.012
A23: A | B23: Total | C23: =SUM(C14:C22) -> 0.23 | D23: =SUM(D14:D22) -> 0.23 | E23: =SUM(E14:E22) -> 0.38 | F23: =SUM(F14:F22) -> 0.38
A24: GRUPO B
A25: B1 | B25: Repouso Semanal Remunerado | C25: 0.1776 | D25: Não incide | E25: 0.1776 | F25: Não incide
A26: B2 | B26: Feriados | C26: 0.0368 | D26: Não incide | E26: 0.0368 | F26: Não incide
A27: B3 | B27: Auxílio - Enfermidade | C27: 0.0086 | D27: 0.0065 | E27: 0.0086 | F27: 0.0065
A28: B4 | B28: 13º Salário | C28: 0.1106 | D28: 0.0833 | E28: 0.1106 | F28: 0.0833
A29: B5 | B29: Licença Paternidade | C29: 0.0007 | D29: 0.0005 | E29: 0.0007 | F29: 0.0005
A30: B6 | B30: Faltas Justificadas | C30: 0.0074 | D30: 0.0056 | E30: 0.0074 | F30: 0.0056
A31: B7 | B31: Dias de Chuvas | C31: 0.0109 | D31: Não incide | E31: 0.0109 | F31: Não incide
A32: B8 | B32: Auxílio Acidente de Trabalho | C32: 0.001 | D32: 0.0007 | E32: 0.001 | F32: 0.0007
A33: B9 | B33: Férias Gozadas | C33: 0.1384 | D33: 0.1042 | E33: 0.1384 | F33: 0.1042
A34: B10 | B34: Salário Maternidade | C34: 0.0003 | D34: 0.0003 | E34: 0.0003 | F34: 0.0003
A35: B | B35: Total | C35: =SUM(C25:C34) -> 0.4923 | D35: =SUM(D25:D34) -> 0.2011 | E35: =SUM(E25:E34) -> 0.4923 | F35: =SUM(F25:F34) -> 0.2011
A36: GRUPO C
A37: C1 | B37: Aviso Prévio Indenizado | C37: 0.0597 | D37: 0.045 | E37: 0.0597 | F37: 0.045
A38: C2 | B38: Aviso Prévio Trabalhado | C38: 0.0014 | D38: 0.0011 | E38: 0.0014 | F38: 0.0011
A39: C3 | B39: Férias Indenizadas | C39: 0.0093 | D39: 0.007 | E39: 0.0093 | F39: 0.007
A40: C4 | B40: Depósito Rescisão Sem Justa Causa | C40: 0.0278 | D40: 0.0209 | E40: 0.0278 | F40: 0.0209
A41: C5 | B41: Indenização Adicional | C41: 0.005 | D41: 0.0038 | E41: 0.005 | F41: 0.0038
A42: C | B42: Total | C42: =SUM(C37:C41) -> 0.1032 | D42: =SUM(D37:D41) -> 0.0778 | E42: =SUM(E37:E41) -> 0.1032 | F42: =SUM(F37:F41) -> 0.0778
A43: GRUPO D
A44: D1 | B44: Reincidência de Grupo A sobre Grupo B | C44: 0.1077 | D44: 0.0421 | E44: 0.1871 | F44: 0.0764
A45: D2 | B45: Reincidência de Grupo A sobre Aviso Prévio Trabalhado e Reincidência do FGTS sobre Aviso Prévio Indenizado | C45: 0.0051 | D45: 0.0039 | E45: 0.0053 | F45: 0.004
A46: D | B46: Total | C46: =SUM(C44:C45) -> 0.1128 | D46: =SUM(D44:D45) -> 0.046 | E46: =SUM(E44:E45) -> 0.1924 | F46: =SUM(F44:F45) -> 0.0804
A47: TOTAL(A+B+C+D) | C47: =C23+C35+C42+C46 -> 0.9383 | D47: =D23+D35+D42+D46 -> 0.5549 | E47: =E23+E35+E42+E46 -> 1.1679 | F47: =F23+F35+F42+F46 -> 0.7393
A48: Fonte: Informação Dias de Chuva – INMET

Sheet Memorial
A1: Ministério da Integração e do Desenvolvimento Regional
A2: Companhia de desenvolvimento dos Vales do São Francisco e do Parnaíba
A4: MEMORIAL DE CÁLCULO
A5: OBRA: | B5: ='Planilha Orçamentária'!B5:E5 -> ELABORAÇÃO DE PROJETO “AS IS”, DE INSTRUMENTAÇÃO, DA PASSARELA ACESSO DA TOMADA D’ÁGUA, DE RECUPERAÇÃO DAS COMPORTAS E ESTUDO DE ESTABILIDADE DA BARRAGEM DE BICO DA PEDRA, LOCALIZADA EM JANAÚBA NO ESTADO DE MINAS GERAIS | D5: DESLOCAMENTO - Montes claros para Barragem (km): | H5: 135
A6: LOCAL: | B6: ='Planilha Orçamentária'!B6 -> BARRAGEM BICO DA PEDRA (JANAÚBA - MG)
A7: DATA BASE: | B7: ='Planilha Orçamentária'!B7 -> 2025-07-01 | D7: VIA URBANA PAVIMENTADA - Montes Claros para Barragem (km) | H7: 130
A8: PRAZO: | B8: ='Planilha Orçamentária'!B8 -> 150 DIAS | D8: REVESTIMENTO PRIMÁRIO - Montes Claros para Barragem (km) | H8: 5
A9: ITEM | B9: DESCRIÇÃO | C9: UNID. | D9: PARÂMETRO 1 | E9: PARÂMETRO 2 | F9: PARÂMETRO 3 | G9: PARÂMETRO 4 | H9: TOTAL
A11: =CPU!B20 -> 1.3.1 | B11: =CPU!D20 -> Mobilização da Equipe de mergulho, Camara Hiperbarica e todos os equipamentos de mergulho envolvidos na operação | D11: Distância SP-Barragem | E11: Distância BH - Barragem (km) | F11: Distância BSB - Barragem (km) | G11: Peso do caminhao | H11: txkm
D12: 1114 | E12: 553 | F12: 839 | G12: 5 | H12: =G12*(AVERAGE(D12:F12))*2 -> 8353.333333

Sheet COMPOSIÇÃO
A1: SINAPI - Sistema Nacional de Pesquisa de Custos e Índices da Construção Civil
A2: RELATÓRIO DE CUSTOS DE COMPOSIÇÕES - ENCARGOS SOCIAIS SEM DESONERAÇÃO
A3: Mês de Referência: | B3: 06/2025 | D3: Encargos sociais sobre a mão de obra:
A4: Data de emissão: | B4: 11/07/2025 | D4: (SEM DESONERAÇÃO) | E4: MG
D5: Localidade | E5: BELO HORIZONTE
A6: Observação: | B6: %AS (porcentagem Atribuído São Paulo) corresponde a porcentagem do custo total da | D6: Horista | E6: 1.1679
B7: composição que foi obtida utilizando preços de insumos de São Paulo por indisponibilidade | D7: Mensalista | E7: 0.7393
B8: dos preços de insumos necessários à composição no estado em questão. Custo zerado (hífen)
B9: indica que pelo menos um dos itens da composição não tem custo/preço. | E9: MG
A10: Grupo | B10: Código da Composição | C10: Descrição | D10: Unidade | E10: Custo (R$) | F10: %AS
A11: Acessibilidade | B11: 104658 | C11: PISO PODOTÁTIL DE ALERTA OU DIRECIONAL, DE CONCRETO, ASSENTADO SOBRE ARGAMASSA. AF_03/2024 | D11: M2 | E11: 159.75 | F11: 0
A12: Acessibilidade | B12: 105002 | C12: RAMPA DE ACESSIBILIDADE EM CONCRETO MOLDADO IN LOCO, EM CALÇADA NOVA COM LARGURA MAIOR OU IGUAL À 3,00 M, FCK 25MPA, COM PISO PODOTÁTIL. AF_03/2024 | D12: UN | E12: 767.56 | F12: 0
A13: Acessibilidade | B13: 105004 | C13: RAMPA DE ACESSIBILIDADE EM CONCRETO MOLDADO IN LOCO, EM CALÇADA NOVA COM LARGURA MENOR À 3,00 M, FCK 25MPA, COM PISO PODOTÁTIL. AF_03/2024 | D13: M2 | E13: 131.33 | F13: 0
A14: Acessibilidade | B14: 105003 | C14: RAMPA DE ACESSIBILIDADE EM CONCRETO MOLDADO IN LOCO, EM CALÇADA PRÉ EXISTENTE COM LARGURA MAIOR OU IGUAL À 3,00 M, FCK 25MPA, COM PISO PODOTÁTIL. AF_03/2024 | D14: UN | E14: 1227.9 | F14: 0.0488
A15: Acessibilidade | B15: 105005 | C15: RAMPA DE ACESSIBILIDADE EM CONCRETO MOLDADO IN LOCO, EM CALÇADA PRÉ EXISTENTE COM LARGURA MENOR À 3,00 M, FCK 25MPA, COM PISO PODOTÁTIL. AF_03/2024 | D15: M2 | E15: 216.57 | F15: 0.0512
A16: Acessibilidade | B16: 105006 | C16: RAMPA DE ACESSIBILIDADE EM CONCRETO PRÉ MOLDADO, EM CALÇADA NOVA COM LARGURA MAIOR OU IGUAL À 3,00 M, FCK 25MPA, COM PISO PODOTÁTIL. AF_03/2024 | D16: UN | E16: 0
A17: Acessibilidade | B17: 104999 | C17: RAMPA DE ACESSIBILIDADE EM CONCRETO PRÉ MOLDADO, EM CALÇADA PRÉ EXISTENTE COM LARGURA MAIOR OU IGUAL À 3,00 M, FCK 25MPA, COM PISO PODOTÁTIL. AF_03/2024 | D17: UN | E17: 0
A18: Acessibilidade | B18: 105000 | C18: RAMPA DE ACESSIBILIDADE PARA ACESSO A EDIFICAÇÕES COM INCLINAÇÃO DE 8,33% EM CONCRETO MOLDADO IN LOCO, COM LARGURA DE 1,20M, FCK 25MPA, NÃO ARMADA, COM JUNTA A CADA 2M COM CORTE À SECO. AF_03/2024 | D18: M | E18: 1516.08 | F18: 0
A19: Acessibilidade | B19: 105001 | C19: RAMPA DE ACESSIBILIDADE PARA ACESSO A EDIFICAÇÕES COM INCLINAÇÃO DE 8,33% EM CONCRETO MOLDADO IN LOCO, COM LARGURA DE 1,50M, FCK 25MPA, NÃO ARMADA, COM JUNTA A CADA 2M COM CORTE À SECO. AF_03/2024 | D19: M | E19: 1550.14 | F19: 0
A20: Alvenaria Estrutural - Blocos Cerâmicos | B20: 89306 | C20: ALVENARIA ESTRUTURAL DE BLOCOS CERÂMICOS 14X19X29, (ESPESSURA DE 14 CM), UTILIZANDO COLHER DE PEDREIRO E ARGAMASSA DE ASSENTAMENTO COM PREPARO EM BETONEIRA. AF_03/2023 | D20: M2 | E20: 98.5 | F20: 0
A21: Alvenaria Estrutural - Blocos Cerâmicos | B21: 89307 | C21: ALVENARIA ESTRUTURAL DE BLOCOS CERÂMICOS 14X19X29, (ESPESSURA DE 14 CM), UTILIZANDO COLHER DE PEDREIRO E ARGAMASSA DE ASSENTAMENTO COM PREPARO MANUAL. AF_03/2023 | D21: M2 | E21: 100.51 | F21: 0
A22: Alvenaria Estrutural - Blocos Cerâmicos | B22: 89290 | C22: ALVENARIA ESTRUTURAL DE BLOCOS CERÂMICOS 14X19X29, (ESPESSURA DE 14 CM), UTILIZANDO PALHETA E ARGAMASSA DE ASSENTAMENTO COM PREPARO EM BETONEIRA. AF_03/2023 | D22: M2 | E22: 80.7 | F22: 0
A23: Alvenaria Estrutural - Blocos Cerâmicos | B23: 89291 | C23: ALVENARIA ESTRUTURAL DE BLOCOS CERÂMICOS 14X19X29, (ESPESSURA DE 14 CM), UTILIZANDO PALHETA E ARGAMASSA DE ASSENTAMENTO COM PREPARO MANUAL. AF_03/2023 | D23: M2 | E23: 82.2 | F23: 0
A24: Alvenaria Estrutural - Blocos Cerâmicos | B24: 89298 | C24: ALVENARIA ESTRUTURAL DE BLOCOS CERÂMICOS 14X19X39, (ESPESSURA DE 14 CM), UTILIZANDO COLHER DE PEDREIRO E ARGAMASSA DE ASSENTAMENTO COM PREPARO EM BETONEIRA. AF_03/2023 | D24: M2 | E24: 84.51 | F24: 0
A25: Alvenaria Estrutural - Blocos Cerâmicos | B25: 89299 | C25: ALVENARIA ESTRUTURAL DE BLOCOS CERÂMICOS 14X19X39, (ESPESSURA DE 14 CM), UTILIZANDO COLHER DE PEDREIRO E ARGAMASSA DE ASSENTAMENTO COM PREPARO MANUAL. AF_03/2023 | D25: M2 | E25: 86.31 | F25: 0
A26: Alvenaria Estrutural - Blocos Cerâmicos | B26: 89282 | C26: ALVENARIA ESTRUTURAL DE BLOCOS CERÂMICOS 14X19X39, (ESPESSURA DE 14 CM), UTILIZANDO PALHETA E ARGAMASSA DE ASSENTAMENTO COM PREPARO EM BETONEIRA. AF_03/2023 | D26: M2 | E26: 71.91 | F26: 0
A27: Alvenaria Estrutural - Blocos Cerâmicos | B27: 89283 | C27: ALVENARIA ESTRUTURAL DE BLOCOS CERÂMICOS 14X19X39, (ESPESSURA DE 14 CM), UTILIZANDO PALHETA E ARGAMASSA DE ASSENTAMENTO COM PREPARO MANUAL. AF_03/2023 | D27: M2 | E27: 73.26 | F27: 0
A28: Alvenaria Estrutural - Blocos de Concreto | B28: 89480 | C28: ALVENARIA DE BLOCOS DE CONCRETO ESTRUTURAL 14X19X29 CM (ESPESSURA 14 CM), FBK = 14 MPA, UTILIZANDO COLHER DE PEDREIRO. AF_10/2022 | D28: M2 | E28: 170.89 | F28: 0
A29: Alvenaria Estrutural - Blocos de Concreto | B29: 89464 | C29: ALVENARIA DE BLOCOS DE CONCRETO ESTRUTURAL 14X19X29 CM (ESPESSURA 14 CM), FBK = 14,0 MPA, UTILIZANDO PALHETA. AF_10/2022 | D29: M2 | E29: 149.12 | F29: 0
A30: Alvenaria Estrutural - Blocos de Concreto | B30: 89478 | C30: ALVENARIA DE BLOCOS DE CONCRETO ESTRUTURAL 14X19X29 CM (ESPESSURA 14 CM), FBK = 4,5 MPA, UTILIZANDO COLHER DE PEDREIRO. AF_10/2022 | D30: M2 | E30: 147.24 | F30: 0
A31: Alvenaria Estrutural - Blocos de Concreto | B31: 89462 | C31: ALVENARIA DE BLOCOS DE CONCRETO ESTRUTURAL 14X19X29 CM (ESPESSURA 14 CM), FBK = 4,5 MPA, UTILIZANDO PALHETA. AF_10/2022 | D31: M2 | E31: 126.54 | F31: 0
A32: Alvenaria Estrutural - Blocos de Concreto | B32: 104444 | C32: ALVENARIA DE BLOCOS DE CONCRETO ESTRUTURAL 14X19X29 CM (ESPESSURA 14 CM), FBK = 8 MPA, UTILIZANDO COLHER DE PEDREIRO. AF_10/2022 | D32: M2 | E32: 0
A33: Alvenaria Estrutural - Blocos de Concreto | B33: 104442 | C33: ALVENARIA DE BLOCOS DE CONCRETO ESTRUTURAL 14X19X29 CM (ESPESSURA 14 CM), FBK = 8 MPA, UTILIZANDO PALHETA. AF_10/2022 | D33: M2 | E33: 0
A34: Alvenaria Estrutural - Blocos de Concreto | B34: 89472 | C34: ALVENARIA DE BLOCOS DE CONCRETO ESTRUTURAL 14X19X39 CM (ESPESSURA 14 CM), FBK = 14 MPA, UTILIZANDO COLHER DE PEDREIRO. AF_10/2022 | D34: M2 | E34: 130.84 | F34: 0
A35: Alvenaria Estrutural - Blocos de Concreto | B35: 89455 | C35: ALVENARIA DE BLOCOS DE CONCRETO ESTRUTURAL 14X19X39 CM (ESPESSURA 14 CM), FBK = 14 MPA, UTILIZANDO PALHETA. AF_10/2022 | D35: M2 | E35: 117.06 | F35: 0
A36: Alvenaria Estrutural - Blocos de Concreto | B36: 89470 | C36: ALVENARIA DE BLOCOS DE CONCRETO ESTRUTURAL 14X19X39 CM (ESPESSURA 14 CM), FBK = 4,5 MPA, UTILIZANDO COLHER DE PEDREIRO. AF_10/2022 | D36: M2 | E36: 109.09 | F36: 0
A37: Alvenaria Estrutural - Blocos de Concreto | B37: 89453 | C37: ALVENARIA DE BLOCOS DE CONCRETO ESTRUTURAL 14X19X39 CM (ESPESSURA 14 CM), FBK = 4,5 MPA, UTILIZANDO PALHETA. AF_10/2022 | D37: M2 | E37: 96.38 | F37: 0
A38: Alvenaria Estrutural - Blocos de Concreto | B38: 104443 | C38: ALVENARIA DE BLOCOS DE CONCRETO ESTRUTURAL 14X19X39 CM (ESPESSURA 14 CM), FBK = 8 MPA, UTILIZANDO COLHER DE PEDREIRO. AF_10/2022 | D38: M2 | E38: 0
A39: Alvenaria Estrutural - Blocos de Concreto | B39: 104441 | C39: ALVENARIA DE BLOCOS DE CONCRETO ESTRUTURAL 14X19X39 CM (ESPESSURA 14 CM), FBK = 8 MPA, UTILIZANDO PALHETA. AF_10/2022 | D39: M2 | E39: 0
A40: Alvenaria de Vedação | B40: 103354 | C40: ALVENARIA DE VEDAÇÃO DE BLOCOS CERÂMICOS FURADOS NA HORIZONTAL DE 11,5X14X24 CM (ESPESSURA 11,5 CM) E ARGAMASSA DE ASSENTAMENTO COM PREPARO EM BETONEIRA. AF_12/2021 | D40: M2 | E40: 92.2 | F40: 0
A41: Alvenaria de Vedação | B41: 103355 | C41: ALVENARIA DE VEDAÇÃO DE BLOCOS CERÂMICOS FURADOS NA HORIZONTAL DE 11,5X14X24 CM (ESPESSURA 11,5 CM) E ARGAMASSA DE ASSENTAMENTO COM PREPARO MANUAL. AF_12/2021 | D41: M2 | E41: 93.4 | F41: 0
A42: Alvenaria de Vedação | B42: 103330 | C42: ALVENARIA DE VEDAÇÃO DE BLOCOS CERÂMICOS FURADOS NA HORIZONTAL DE 11,5X19X19 CM (ESPESSURA 11,5 CM) E ARGAMASSA DE ASSENTAMENTO COM PREPARO EM BETONEIRA. AF_12/2021 | D42: M2 | E42: 84.98 | F42: 0
A43: Alvenaria de Vedação | B43: 103331 | C43: ALVENARIA DE VEDAÇÃO DE BLOCOS CERÂMICOS FURADOS NA HORIZONTAL DE 11,5X19X19 CM (ESPESSURA 11,5 CM) E ARGAMASSA DE ASSENTAMENTO COM PREPARO MANUAL. AF_12/2021 | D43: M2 | E43: 86.1 | F43: 0
A44: Alvenaria de Vedação | B44: 103358 | C44: ALVENARIA DE VEDAÇÃO DE BLOCOS CERÂMICOS FURADOS NA HORIZONTAL DE 11,5X19X29 CM (ESPESSURA 11,5 CM) E ARGAMASSA DE ASSENTAMENTO COM PREPARO EM BETONEIRA. AF_12/2021 | D44: M2 | E44: 71.58 | F44: 0
A45: Alvenaria de Vedação | B45: 103359 | C45: ALVENARIA DE VEDAÇÃO DE BLOCOS CERÂMICOS FURADOS NA HORIZONTAL DE 11,5X19X29 CM (ESPESSURA 11,5 CM) E ARGAMASSA DE ASSENTAMENTO COM PREPARO MANUAL. AF_12/2021 | D45: M2 | E45: 72.53 | F45: 0
A46: Alvenaria de Vedação | B46: 103366 | C46: ALVENARIA DE VEDAÇÃO DE BLOCOS CERÂMICOS FURADOS NA HORIZONTAL DE 11,5X19X39 CM (ESPESSURA 11,5 CM) E ARGAMASSA DE ASSENTAMENTO COM PREPARO EM BETONEIRA. AF_12/2021 | D46: M2 | E46: 62.29 | F46: 0
A47: Alvenaria de Vedação | B47: 103367 | C47: ALVENARIA DE VEDAÇÃO DE BLOCOS CERÂMICOS FURADOS NA HORIZONTAL DE 11,5X19X39 CM (ESPESSURA 11,5 CM) E ARGAMASSA DE ASSENTAMENTO COM PREPARO MANUAL. AF_12/2021 | D47: M2 | E47: 63.15 | F47: 0
A48: Alvenaria de Vedação | B48: 103360 | C48: ALVENARIA DE VEDAÇÃO DE BLOCOS CERÂMICOS FURADOS NA HORIZONTAL DE 14X19X29 CM (ESPESSURA 14 CM) E ARGAMASSA DE ASSENTAMENTO COM PREPARO EM BETONEIRA. AF_12/2021 | D48: M2 | E48: 83.78 | F48: 0
A49: Alvenaria de Vedação | B49: 103361 | C49: ALVENARIA DE VEDAÇÃO DE BLOCOS CERÂMICOS FURADOS NA HORIZONTAL DE 14X19X29 CM (ESPESSURA 14 CM) E ARGAMASSA DE ASSENTAMENTO COM PREPARO MANUAL. AF_12/2021 | D49: M2 | E49: 84.99 | F49: 0
A50: Alvenaria de Vedação | B50: 103368 | C50: ALVENARIA DE VEDAÇÃO DE BLOCOS CERÂMICOS FURADOS NA HORIZONTAL DE 14X19X39 CM (ESPESSURA 14 CM) E ARGAMASSA DE ASSENTAMENTO COM PREPARO EM BETONEIRA. AF_12/2021 | D50: M2 | E50: 70.72 | F50: 0
A51: Alvenaria de Vedação | B51: 103369 | C51: ALVENARIA DE VEDAÇÃO DE BLOCOS CERÂMICOS FURADOS NA HORIZONTAL DE 14X19X39 CM (ESPESSURA 14 CM) E ARGAMASSA DE ASSENTAMENTO COM PREPARO MANUAL. AF_12/2021 | D51: M2 | E51: 71.82 | F51: 0
A52: Alvenaria de Vedação | B52: 103334 | C52: ALVENARIA DE VEDAÇÃO DE BLOCOS CERÂMICOS FURADOS NA HORIZONTAL DE 14X9X19 CM (ESPESSURA 14 CM, BLOCO DEITADO) E ARGAMASSA DE ASSENTAMENTO COM PREPARO EM BETONEIRA. AF_12/2021 | D52: M2 | E52: 150.22 | F52: 0
A53: Alvenaria de Vedação | B53: 103335 | C53: ALVENARIA DE VEDAÇÃO DE BLOCOS CERÂMICOS FURADOS NA HORIZONTAL DE 14X9X19 CM (ESPESSURA 14 CM, BLOCO DEITADO) E ARGAMASSA DE ASSENTAMENTO COM PREPARO MANUAL. AF_12/2021 | D53: M2 | E53: 152.32 | F53: 0
A54: Alvenaria de Vedação | B54: 103362 | C54: ALVENARIA DE VEDAÇÃO DE BLOCOS CERÂMICOS FURADOS NA HORIZONTAL DE 19X19X29 CM (ESPESSURA 19 CM) E ARGAMASSA DE ASSENTAMENTO COM PREPARO EM BETONEIRA. AF_12/2021 | D54: M2 | E54: 101.13 | F54: 0
A55: Alvenaria de Vedação | B55: 103363 | C55: ALVENARIA DE VEDAÇÃO DE BLOCOS CERÂMICOS FURADOS NA HORIZONTAL DE 19X19X29 CM (ESPESSURA 19 CM) E ARGAMASSA DE ASSENTAMENTO COM PREPARO MANUAL. AF_12/2021 | D55: M2 | E55: 102.49 | F55: 0
A56: Alvenaria de Vedação | B56: 103370 | C56: ALVENARIA DE VEDAÇÃO DE BLOCOS CERÂMICOS FURADOS NA HORIZONTAL DE 19X19X39 CM (ESPESSURA 19 CM) E ARGAMASSA DE ASSENTAMENTO COM PREPARO EM BETONEIRA. AF_12/2021 | D56: M2 | E56: 88.8 | F56: 0
A57: Alvenaria de Vedação | B57: 103371 | C57: ALVENARIA DE VEDAÇÃO DE BLOCOS CERÂMICOS FURADOS NA HORIZONTAL DE 19X19X39 CM (ESPESSURA 19 CM) E ARGAMASSA DE ASSENTAMENTO COM PREPARO MANUAL. AF_12/2021 | D57: M2 | E57: 90.03 | F57: 0
A58: Alvenaria de Vedação | B58: 103332 | C58: ALVENARIA DE VEDAÇÃO DE BLOCOS CERÂMICOS FURADOS NA HORIZONTAL DE 9X14X19 CM (ESPESSURA 9 CM) E ARGAMASSA DE ASSENTAMENTO COM PREPARO EM BETONEIRA. AF_12/2021 | D58: M2 | E58: 125.63 | F58: 0
A59: Alvenaria de Vedação | B59: 103333 | C59: ALVENARIA DE VEDAÇÃO DE BLOCOS CERÂMICOS FURADOS NA HORIZONTAL DE 9X14X19 CM (ESPESSURA 9 CM) E ARGAMASSA DE ASSENTAMENTO COM PREPARO MANUAL. AF_12/2021 | D59: M2 | E59: 126.84 | F59: 0
A60: Alvenaria de Vedação | B60: 103352 | C60: ALVENARIA DE VEDAÇÃO DE BLOCOS CERÂMICOS FURADOS NA HORIZONTAL DE 9X14X24 CM (ESPESSURA 9 CM) E ARGAMASSA DE ASSENTAMENTO COM PREPARO EM BETONEIRA. AF_12/2021 | D60: M2 | E60: 107.39 | F60: 0
A61: Alvenaria de Vedação | B61: 103353 | C61: ALVENARIA DE VEDAÇÃO DE BLOCOS CERÂMICOS FURADOS NA HORIZONTAL DE 9X14X24 CM (ESPESSURA 9 CM) E ARGAMASSA DE ASSENTAMENTO COM PREPARO MANUAL. AF_12/2021 | D61: M2 | E61: 108.5 | F61: 0
A62: Alvenaria de Vedação | B62: 103328 | C62: ALVENARIA DE VEDAÇÃO DE BLOCOS CERÂMICOS FURADOS NA HORIZONTAL DE 9X19X19 CM (ESPESSURA 9 CM) E ARGAMASSA DE ASSENTAMENTO COM PREPARO EM BETONEIRA. AF_12/2021 | D62: M2 | E62: 98.1 | F62: 0
A63: Alvenaria de Vedação | B63: 103329 | C63: ALVENARIA DE VEDAÇÃO DE BLOCOS CERÂMICOS FURADOS NA HORIZONTAL DE 9X19X19 CM (ESPESSURA 9 CM) E ARGAMASSA DE ASSENTAMENTO COM PREPARO MANUAL. AF_12/2021 | D63: M2 | E63: 99.15 | F63: 0
A64: Alvenaria de Vedação | B64: 103356 | C64: ALVENARIA DE VEDAÇÃO DE BLOCOS CERÂMICOS FURADOS NA HORIZONTAL DE 9X19X29 CM (ESPESSURA 9 CM) E ARGAMASSA DE ASSENTAMENTO COM PREPARO EM BETONEIRA. AF_12/2021 | D64: M2 | E64: 62.18 | F64: 0
A65: Alvenaria de Vedação | B65: 103357 | C65: ALVENARIA DE VEDAÇÃO DE BLOCOS CERÂMICOS FURADOS NA HORIZONTAL DE 9X19X29 CM (ESPESSURA 9 CM) E ARGAMASSA DE ASSENTAMENTO COM PREPARO MANUAL. AF_12/2021 | D65: M2 | E65: 63.07 | F65: 0
A66: Alvenaria de Vedação | B66: 103364 | C66: ALVENARIA DE VEDAÇÃO DE BLOCOS CERÂMICOS FURADOS NA HORIZONTAL DE 9X19X39 CM (ESPESSURA 9 CM) E ARGAMASSA DE ASSENTAMENTO COM PREPARO EM BETONEIRA. AF_12/2021 | D66: M2 | E66: 51.96 | F66: 0
A67: Alvenaria de Vedação | B67: 103365 | C67: ALVENARIA DE VEDAÇÃO DE BLOCOS CERÂMICOS FURADOS NA HORIZONTAL DE 9X19X39 CM (ESPESSURA 9 CM) E ARGAMASSA DE ASSENTAMENTO COM PREPARO MANUAL. AF_12/2021 | D67: M2 | E67: 52.32 | F67: 0
A68: Alvenaria de Vedação | B68: 103350 | C68: ALVENARIA DE VEDAÇÃO DE BLOCOS CERÂMICOS FURADOS NA HORIZONTAL DE 9X9X19 CM (ESPESSURA 9 CM) E ARGAMASSA DE ASSENTAMENTO COM PREPARO EM BETONEIRA. AF_12/2021 | D68: M2 | E68: 181.96 | F68: 0
A69: Alvenaria de Vedação | B69: 103351 | C69: ALVENARIA DE VEDAÇÃO DE BLOCOS CERÂMICOS FURADOS NA HORIZONTAL DE 9X9X19 CM (ESPESSURA 9 CM) E ARGAMASSA DE ASSENTAMENTO COM PREPARO MANUAL. AF_12/2021 | D69: M2 | E69: 183.5 | F69: 0
A70: Alvenaria de Vedação | B70: 103344 | C70: ALVENARIA DE VEDAÇÃO DE BLOCOS CERÂMICOS FURADOS NA VERTICAL DE 11,5X19X29 CM (ESPESSURA 11,5 CM) E ARGAMASSA DE ASSENTAMENTO COM PREPARO EM BETONEIRA. AF_12/2021 | D70: M2 | E70: 84.03 | F70: 0
A71: Alvenaria de Vedação | B71: 103345 | C71: ALVENARIA DE VEDAÇÃO DE BLOCOS CERÂMICOS FURADOS NA VERTICAL DE 11,5X19X29 CM (ESPESSURA 11,5 CM) E ARGAMASSA DE ASSENTAMENTO COM PREPARO MANUAL. AF_12/2021 | D71: M2 | E71: 85.44 | F71: 0
A72: Alvenaria de Vedação | B72: 103348 | C72: ALVENARIA DE VEDAÇÃO DE BLOCOS CERÂMICOS FURADOS NA VERTICAL DE 11,5X19X39 CM (ESPESSURA 11,5 CM) E ARGAMASSA DE ASSENTAMENTO COM PREPARO EM BETONEIRA. AF_12/2021 | D72: M2 | E72: 70.74 | F72: 0
A73: Alvenaria de Vedação | B73: 103349 | C73: ALVENARIA DE VEDAÇÃO DE BLOCOS CERÂMICOS FURADOS NA VERTICAL DE 11,5X19X39 CM (ESPESSURA 11,5 CM) E ARGAMASSA DE ASSENTAMENTO COM PREPARO MANUAL. AF_12/2021 | D73: M2 | E73: 72.01 | F73: 0
A74: Alvenaria de Vedação | B74: 103346 | C74: ALVENARIA DE VEDAÇÃO DE BLOCOS CERÂMICOS FURADOS NA VERTICAL DE 14X19X29 CM (ESPESSURA 14 CM) E ARGAMASSA DE ASSENTAMENTO COM PREPARO EM BETONEIRA. AF_12/2021 | D74: M2 | E74: 93.54 | F74: 0
A75: Alvenaria de Vedação | B75: 103347 | C75: ALVENARIA DE VEDAÇÃO DE BLOCOS CERÂMICOS FURADOS NA VERTICAL DE 14X19X29 CM (ESPESSURA 14 CM) E ARGAMASSA DE ASSENTAMENTO COM PREPARO MANUAL. AF_12/2021 | D75: M2 | E75: 95.03 | F75: 0
A76: Alvenaria de Vedação | B76: 103324 | C76: ALVENARIA DE VEDAÇÃO DE BLOCOS CERÂMICOS FURADOS NA VERTICAL DE 14X19X39 CM (ESPESSURA 14 CM) E ARGAMASSA DE ASSENTAMENTO COM PREPARO EM BETONEIRA. AF_12/2021 | D76: M2 | E76: 80 | F76: 0
A77: Alvenaria de Vedação | B77: 103325 | C77: ALVENARIA DE VEDAÇÃO DE BLOCOS CERÂMICOS FURADOS NA VERTICAL DE 14X19X39 CM (ESPESSURA 14 CM) E ARGAMASSA DE ASSENTAMENTO COM PREPARO MANUAL. AF_12/2021 | D77: M2 | E77: 81.36 | F77: 0
A78: Alvenaria de Vedação | B78: 103326 | C78: ALVENARIA DE VEDAÇÃO DE BLOCOS CERÂMICOS FURADOS NA VERTICAL DE 19X19X39 CM (ESPESSURA 19 CM) E ARGAMASSA DE ASSENTAMENTO COM PREPARO EM BETONEIRA. AF_12/2021 | D78: M2 | E78: 94.12 | F78: 0
A79: Alvenaria de Vedação | B79: 103327 | C79: ALVENARIA DE VEDAÇÃO DE BLOCOS CERÂMICOS FURADOS NA VERTICAL DE 19X19X39 CM (ESPESSURA 19 CM) E ARGAMASSA DE ASSENTAMENTO COM PREPARO MANUAL. AF_12/2021 | D79: M2 | E79: 95.71 | F79: 0
A80: Alvenaria de Vedação | B80: 103322 | C80: ALVENARIA DE VEDAÇÃO DE BLOCOS CERÂMICOS FURADOS NA VERTICAL DE 9X19X39 CM (ESPESSURA 9 CM) E ARGAMASSA DE ASSENTAMENTO COM PREPARO EM BETONEIRA. AF_12/2021 | D80: M2 | E80: 59.63 | F80: 0
A81: Alvenaria de Vedação | B81: 103323 | C81: ALVENARIA DE VEDAÇÃO DE BLOCOS CERÂMICOS FURADOS NA VERTICAL DE 9X19X39 CM (ESPESSURA 9 CM) E ARGAMASSA DE ASSENTAMENTO COM PREPARO MANUAL. AF_12/2021 | D81: M2 | E81: 60.83 | F81: 0
A82: Alvenaria de Vedação | B82: 103338 | C82: ALVENARIA DE VEDAÇÃO DE BLOCOS VAZADOS DE CONCRETO APARENTE DE 14X19X39 CM (ESPESSURA 14 CM) E ARGAMASSA DE ASSENTAMENTO COM PREPARO EM BETONEIRA. AF_12/2021 | D82: M2 | E82: 124.29 | F82: 0
A83: Alvenaria de Vedação | B83: 103339 | C83: ALVENARIA DE VEDAÇÃO DE BLOCOS VAZADOS DE CONCRETO APARENTE DE 14X19X39 CM (ESPESSURA 14 CM) E ARGAMASSA DE ASSENTAMENTO COM PREPARO MANUAL. AF_12/2021 | D83: M2 | E83: 125.46 | F83: 0
A84: Alvenaria de Vedação | B84: 103340 | C84: ALVENARIA DE VEDAÇÃO DE BLOCOS VAZADOS DE CONCRETO APARENTE DE 19X19X39 CM (ESPESSURA 19 CM) E ARGAMASSA DE ASSENTAMENTO COM PREPARO EM BETONEIRA. AF_12/2021 | D84: M2 | E84: 150.31 | F84: 0
A85: Alvenaria de Vedação | B85: 103341 | C85: ALVENARIA DE VEDAÇÃO DE BLOCOS VAZADOS DE CONCRETO APARENTE DE 19X19X39 CM (ESPESSURA 19 CM) E ARGAMASSA DE ASSENTAMENTO COM PREPARO MANUAL. AF_12/2021 | D85: M2 | E85: 151.78 | F85: 0
A86: Alvenaria de Vedação | B86: 103336 | C86: ALVENARIA DE VEDAÇÃO DE BLOCOS VAZADOS DE CONCRETO APARENTE DE 9X19X39 CM (ESPESSURA 9 CM) E ARGAMASSA DE ASSENTAMENTO COM PREPARO EM BETONEIRA. AF_12/2021 | D86: M2 | E86: 94.46 | F86: 0
A87: Alvenaria de Vedação | B87: 103337 | C87: ALVENARIA DE VEDAÇÃO DE BLOCOS VAZADOS DE CONCRETO APARENTE DE 9X19X39 CM (ESPESSURA 9 CM) E ARGAMASSA DE ASSENTAMENTO COM PREPARO MANUAL. AF_12/2021 | D87: M2 | E87: 95.46 | F87: 0
A88: Alvenaria de Vedação | B88: 103342 | C88: ALVENARIA DE VEDAÇÃO DE BLOCOS VAZADOS DE CONCRETO DE 14X19X29 CM (ESPESSURA 14 CM) E ARGAMASSA DE ASSENTAMENTO COM PREPARO EM BETONEIRA. AF_12/2021 | D88: M2 | E88: 127.57 | F88: 0
A89: Alvenaria de Vedação | B89: 103343 | C89: ALVENARIA DE VEDAÇÃO DE BLOCOS VAZADOS DE CONCRETO DE 14X19X29 CM (ESPESSURA 14 CM) E ARGAMASSA DE ASSENTAMENTO COM PREPARO MANUAL. AF_12/2021 | D89: M2 | E89: 128.87 | F89: 0
A90: Alvenaria de Vedação | B90: 103318 | C90: ALVENARIA DE VEDAÇÃO DE BLOCOS VAZADOS DE CONCRETO DE 14X19X39 CM (ESPESSURA 14 CM) E ARGAMASSA DE ASSENTAMENTO COM PREPARO EM BETONEIRA. AF_12/2021 | D90: M2 | E90: 109.36 | F90: 0
A91: Alvenaria de Vedação | B91: 103319 | C91: ALVENARIA DE VEDAÇÃO DE BLOCOS VAZADOS DE CONCRETO DE 14X19X39 CM (ESPESSURA 14 CM) E ARGAMASSA DE ASSENTAMENTO COM PREPARO MANUAL. AF_12/2021 | D91: M2 | E91: 110.53 | F91: 0
A92: Alvenaria de Vedação | B92: 103320 | C92: ALVENARIA DE VEDAÇÃO DE BLOCOS VAZADOS DE CONCRETO DE 19X19X39 CM (ESPESSURA 19 CM) E ARGAMASSA DE ASSENTAMENTO COM PREPARO EM BETONEIRA. AF_12/2021 | D92: M2 | E92: 131.36 | F92: 0
A93: Alvenaria de Vedação | B93: 103321 | C93: ALVENARIA DE VEDAÇÃO DE BLOCOS VAZADOS DE CONCRETO DE 19X19X39 CM (ESPESSURA 19 CM) E ARGAMASSA DE ASSENTAMENTO COM PREPARO MANUAL. AF_12/2021 | D93: M2 | E93: 132.83 | F93: 0
A94: Alvenaria de Vedação | B94: 103316 | C94: ALVENARIA DE VEDAÇÃO DE BLOCOS VAZADOS DE CONCRETO DE 9X19X39 CM (ESPESSURA 9 CM) E ARGAMASSA DE ASSENTAMENTO COM PREPARO EM BETONEIRA. AF_12/2021 | D94: M2 | E94: 84.29 | F94: 0
A95: Alvenaria de Vedação | B95: 103317 | C95: ALVENARIA DE VEDAÇÃO DE BLOCOS VAZADOS DE CONCRETO DE 9X19X39 CM (ESPESSURA 9 CM) E ARGAMASSA DE ASSENTAMENTO COM PREPARO MANUAL. AF_12/2021 | D95: M2 | E95: 85.29 | F95: 0
A96: Alvenarias Diversas | B96: 101166 | C96: ALVENARIA DE EMBASAMENTO COM BLOCO ESTRUTURAL DE CERÂMICA, DE 14X19X29CM E ARGAMASSA DE ASSENTAMENTO COM PREPARO EM BETONEIRA. AF_05/2020 | D96: M3 | E96: 677.73 | F96: 0
A97: Alvenarias Diversas | B97: 101165 | C97: ALVENARIA DE EMBASAMENTO COM BLOCO ESTRUTURAL DE CONCRETO, DE 14X19X29CM E ARGAMASSA DE ASSENTAMENTO COM PREPARO EM BETONEIRA. AF_05/2020 | D97: M3 | E97: 1084.59 | F97: 0
A98: Alvenarias Diversas | B98: 101163 | C98: ALVENARIA DE VEDAÇÃO COM BLOCO DE VIDRO VAZADO, TIPO VENEZIANA, DE 6X20X20CM E ARGAMASSA DE ASSENTAMENTO COM PREPARO EM BETONEIRA. AF_05/2020 | D98: M2 | E98: 643.71 | F98: 0
A99: Alvenarias Diversas | B99: 101164 | C99: ALVENARIA DE VEDAÇÃO COM BLOCO DE VIDRO, TIPO CANELADO, DE 8X19X19CM E ARGAMASSA DE ASSENTAMENTO COM PREPARO EM BETONEIRA. AF_05/2020 | D99: M2 | E99: 653.86 | F99: 0
A100: Alvenarias Diversas | B100: 101162 | C100: ALVENARIA DE VEDAÇÃO COM ELEMENTO VAZADO DE CERÂMICA (COBOGÓ) DE 7X20X20CM E ARGAMASSA DE ASSENTAMENTO COM PREPARO EM BETONEIRA. AF_05/2020 | D100: M2 | E100: 159.31 | F100: 0
A101: Alvenarias Diversas | B101: 101161 | C101: ALVENARIA DE VEDAÇÃO COM ELEMENTO VAZADO DE CONCRETO (COBOGÓ) DE 7X50X50CM E ARGAMASSA DE ASSENTAMENTO COM PREPARO EM BETONEIRA. AF_05/2020 | D101: M2 | E101: 250.4 | F101: 0
A102: Alvenarias Diversas | B102: 101160 | C102: ALVENARIA DE VEDAÇÃO DE BLOCO DE SOLO-CIMENTO (TIJOLO ECOLÓGICO) DE 7X15X30CM (ESPESSURA 15CM). AF_05/2020 | D102: M2 | E102: 0
A103: Alvenarias Diversas | B103: 101159 | C103: ALVENARIA DE VEDAÇÃO DE BLOCOS CERÂMICOS MACIÇOS DE 5X10X20CM (ESPESSURA 10CM) E ARGAMASSA DE ASSENTAMENTO COM PREPARO EM BETONEIRA. AF_05/2020 | D103: M2 | E103: 140.39 | F103: 0
A104: Alvenarias Diversas | B104: 101154 | C104: ALVENARIA DE VEDAÇÃO DE BLOCOS DE CONCRETO CELULAR DE 10X30X60CM (ESPESSURA 10CM) E ARGAMASSA DE ASSENTAMENTO COM PREPARO EM BETONEIRA. AF_05/2020 | D104: M2 | E104: 130.61 | F104: 0
A105: Alvenarias Diversas | B105: 101155 | C105: ALVENARIA DE VEDAÇÃO DE BLOCOS DE CONCRETO CELULAR DE 15X30X60CM (ESPESSURA 15CM) E ARGAMASSA DE ASSENTAMENTO COM PREPARO EM BETONEIRA. AF_05/2020 | D105: M2 | E105: 182.45 | F105: 0
A106: Alvenarias Diversas | B106: 101156 | C106: ALVENARIA DE VEDAÇÃO DE BLOCOS DE CONCRETO CELULAR DE 20X30X60CM (ESPESSURA 20CM) E ARGAMASSA DE ASSENTAMENTO COM PREPARO EM BETONEIRA. AF_05/2020 | D106: M2 | E106: 266.81 | F106: 0
A107: Alvenarias Diversas | B107: 101158 | C107: ALVENARIA DE VEDAÇÃO DE BLOCOS DE GESSO DE 10X50X66CM (ESPESSURA 10CM). AF_05/2020 | D107: M2 | E107: 85.81 | F107: 0
A108: Alvenarias Diversas | B108: 101157 | C108: ALVENARIA DE VEDAÇÃO DE BLOCOS DE GESSO DE 7X50X66CM (ESPESSURA 7CM). AF_05/2020 | D108: M2 | E108: 65.81 | F108: 0
A109: Argamassas | B109: 87382 | C109: ARGAMASSA INDUSTRIALIZADA MULTIUSO PARA REVESTIMENTOS E ASSENTAMENTO DA ALVENARIA, PREPARO COM MISTURADOR DE EIXO HORIZONTAL DE 160 KG. AF_08/2019 | D109: M3 | E109: 1528.56 | F109: 0
A110: Argamassas | B110: 87383 | C110: ARGAMASSA INDUSTRIALIZADA MULTIUSO PARA REVESTIMENTOS E ASSENTAMENTO DA ALVENARIA, PREPARO COM MISTURADOR DE EIXO HORIZONTAL DE 300 KG. AF_08/2019 | D110: M3 | E110: 1516.15 | F110: 0
A111: Argamassas | B111: 87384 | C111: ARGAMASSA INDUSTRIALIZADA MULTIUSO PARA REVESTIMENTOS E ASSENTAMENTO DA ALVENARIA, PREPARO COM MISTURADOR DE EIXO HORIZONTAL DE 600 KG. AF_08/2019 | D111: M3 | E111: 1498.91 | F111: 0
A112: Argamassas | B112: 87398 | C112: ARGAMASSA INDUSTRIALIZADA MULTIUSO PARA REVESTIMENTOS E ASSENTAMENTO DA ALVENARIA, PREPARO MANUAL. AF_08/2019 | D112: M3 | E112: 1721.43 | F112: 0
A113: Argamassas | B113: 87395 | C113: ARGAMASSA INDUSTRIALIZADA PARA CHAPISCO COLANTE, PREPARO COM MISTURADOR DE EIXO HORIZONTAL DE 160 KG. AF_08/2019 | D113: M3 | E113: 2965.83 | F113: 0
A114: Argamassas | B114: 87396 | C114: ARGAMASSA INDUSTRIALIZADA PARA CHAPISCO COLANTE, PREPARO COM MISTURADOR DE EIXO HORIZONTAL DE 300 KG. AF_08/2019 | D114: M3 | E114: 2973.18 | F114: 0
A115: Argamassas | B115: 87397 | C115: ARGAMASSA INDUSTRIALIZADA PARA CHAPISCO COLANTE, PREPARO COM MISTURADOR DE EIXO HORIZONTAL DE 600 KG. AF_08/2019 | D115: M3 | E115: 2979.26 | F115: 0
A116: Argamassas | B116: 87402 | C116: ARGAMASSA INDUSTRIALIZADA PARA CHAPISCO COLANTE, PREPARO MANUAL. AF_08/2019 | D116: M3 | E116: 3210.1 | F116: 0
A117: Argamassas | B117: 87391 | C117: ARGAMASSA INDUSTRIALIZADA PARA CHAPISCO ROLADO, PREPARO COM MISTURADOR DE EIXO HORIZONTAL DE 160 KG. AF_08/2019 | D117: M3 | E117: 4666.66 | F117: 0
A118: Argamassas | B118: 87393 | C118: ARGAMASSA INDUSTRIALIZADA PARA CHAPISCO ROLADO, PREPARO COM MISTURADOR DE EIXO HORIZONTAL DE 300 KG. AF_08/2019 | D118: M3 | E118: 4696.85 | F118: 0
A119: Argamassas | B119: 87394 | C119: ARGAMASSA INDUSTRIALIZADA PARA CHAPISCO ROLADO, PREPARO COM MISTURADOR DE EIXO HORIZONTAL DE 600 KG. AF_08/2019 | D119: M3 | E119: 4724.75 | F119: 0
A120: Argamassas | B120: 87401 | C120: ARGAMASSA INDUSTRIALIZADA PARA CHAPISCO ROLADO, PREPARO MANUAL. AF_08/2019 | D120: M3 | E120: 4945.75 | F120: 0
A121: Argamassas | B121: 87407 | C121: ARGAMASSA INDUSTRIALIZADA PARA REVESTIMENTOS, MISTURA E PROJEÇÃO DE 1,5 M³/H DE ARGAMASSA. AF_08/2019 | D121: M3 | E121: 1566.71 | F121: 0
A122: Argamassas | B122: 87408 | C122: ARGAMASSA INDUSTRIALIZADA PARA REVESTIMENTOS, MISTURA E PROJEÇÃO DE 2 M³/H DE ARGAMASSA. AF_08/2019 | D122: M3 | E122: 1546.14 | F122: 0
A123: Argamassas | B123: 87404 | C123: ARGAMASSA PARA REVESTIMENTO DECORATIVO MONOCAMADA (MONOCAPA), MISTURA E PROJEÇÃO DE 1,5 M3/H DE ARGAMASSA. AF_08/2019 | D123: M3 | E123: 4374.43 | F123: 0
A124: Argamassas | B124: 87405 | C124: ARGAMASSA PARA REVESTIMENTO DECORATIVO MONOCAMADA (MONOCAPA), MISTURA E PROJEÇÃO DE 2 M3/H DE ARGAMASSA. AF_08/2019 | D124: M3 | E124: 4369.02 | F124: 0
A125: Argamassas | B125: 87388 | C125: ARGAMASSA PARA REVESTIMENTO DECORATIVO MONOCAMADA (MONOCAPA), PREPARO COM MISTURADOR DE EIXO HORIZONTAL DE 160 KG. AF_08/2019 | D125: M3 | E125: 4179.55 | F125: 0
A126: Argamassas | B126: 87389 | C126: ARGAMASSA PARA REVESTIMENTO DECORATIVO MONOCAMADA (MONOCAPA), PREPARO COM MISTURADOR DE EIXO HORIZONTAL DE 300 KG. AF_08/2019 | D126: M3 | E126: 4185.37 | F126: 0
A127: Argamassas | B127: 87390 | C127: ARGAMASSA PARA REVESTIMENTO DECORATIVO MONOCAMADA (MONOCAPA), PREPARO COM MISTURADOR DE EIXO HORIZONTAL DE 600 KG. AF_08/2019 | D127: M3 | E127: 4195.82 | F127: 0
A128: Argamassas | B128: 87385 | C128: ARGAMASSA PRONTA PARA CONTRAPISO, PREPARO COM MISTURADOR DE EIXO HORIZONTAL DE 160 KG. AF_08/2019 | D128: M3 | E128: 1777.88 | F128: 0
A129: Argamassas | B129: 87386 | C129: ARGAMASSA PRONTA PARA CONTRAPISO, PREPARO COM MISTURADOR DE EIXO HORIZONTAL DE 300 KG. AF_08/2019 | D129: M3 | E129: 1757.99 | F129: 0
A130: Argamassas | B130: 87387 | C130: ARGAMASSA PRONTA PARA CONTRAPISO, PREPARO COM MISTURADOR DE EIXO HORIZONTAL DE 600 KG. AF_08/2019 | D130: M3 | E130: 1741.46 | F130: 0
A131: Argamassas | B131: 87399 | C131: ARGAMASSA PRONTA PARA CONTRAPISO, PREPARO MANUAL. AF_08/2019 | D131: M3 | E131: 1969.51 | F131: 0
A132: Argamassas | B132: 88627 | C132: ARGAMASSA TRAÇO 1:0,5:4,5 (EM VOLUME DE CIMENTO, CAL E AREIA MÉDIA ÚMIDA) PARA ASSENTAMENTO DE ALVENARIA, PREPARO MANUAL. AF_08/2019 | D132: M3 | E132: 734.64 | F132: 0
A133: Argamassas | B133: 100463 | C133: ARGAMASSA TRAÇO 1:0,5:4,5 (EM VOLUME DE CIMENTO, CAL E AREIA MÉDIA ÚMIDA), PREPARO MECÂNICO COM BETONEIRA 250 L. AF_08/2019 | D133: M3 | E133: 0
A134: Argamassas | B134: 88626 | C134: ARGAMASSA TRAÇO 1:0,5:4,5 (EM VOLUME DE CIMENTO, CAL E AREIA MÉDIA ÚMIDA), PREPARO MECÂNICO COM BETONEIRA 400 L. AF_08/2019 | D134: M3 | E134: 645.31 | F134: 0
A135: Argamassas | B135: 100488 | C135: ARGAMASSA TRAÇO 1:0,5:4,5 (EM VOLUME DE CIMENTO, CAL E AREIA MÉDIA ÚMIDA), PREPARO MECÂNICO COM BETONEIRA 600 L. AF_08/2019 | D135: M3 | E135: 631.45 | F135: 0
A136: Argamassas | B136: 100464 | C136: ARGAMASSA TRAÇO 1:0,5:4,5 (EM VOLUME DE CIMENTO, CAL E AREIA MÉDIA ÚMIDA), PREPARO MECÂNICO COM MISTURADOR DE EIXO HORIZONTAL DE 160 KG. AF_08/2019 | D136: M3 | E136: 677.46 | F136: 0
A137: Argamassas | B137: 100465 | C137: ARGAMASSA TRAÇO 1:0,5:4,5 (EM VOLUME DE CIMENTO, CAL E AREIA MÉDIA ÚMIDA), PREPARO MECÂNICO COM MISTURADOR DE EIXO HORIZONTAL DE 300 KG. AF_08/2019 | D137: M3 | E137: 630.07 | F137: 0
A138: Argamassas | B138: 100466 | C138: ARGAMASSA TRAÇO 1:0,5:4,5 (EM VOLUME DE CIMENTO, CAL E AREIA MÉDIA ÚMIDA), PREPARO MECÂNICO COM MISTURADOR DE EIXO HORIZONTAL DE 600 KG. AF_08/2019 | D138: M3 | E138: 604.31 | F138: 0
A139: Argamassas | B139: 87368 | C139: ARGAMASSA TRAÇO 1:1,5:7,5 (EM VOLUME DE CIMENTO, CAL E AREIA MÉDIA ÚMIDA) PARA EMBOÇO/MASSA ÚNICA/ASSENTAMENTO DE ALVENARIA DE VEDAÇÃO, PREPARO MANUAL. AF_08/2019 | D139: M3 | E139: 773.55 | F139: 0
A140: Argamassas | B140: 100450 | C140: ARGAMASSA TRAÇO 1:1,5:7,5 (EM VOLUME DE CIMENTO, CAL E AREIA MÉDIA ÚMIDA) PARA EMBOÇO/MASSA ÚNICA/ASSENTAMENTO DE ALVENARIA DE VEDAÇÃO, PREPARO MECÂNICO COM BETONEIRA 250 L. AF_08/2019 | D140: M3 | E140: 0
A141: Argamassas | B141: 87289 | C141: ARGAMASSA TRAÇO 1:1,5:7,5 (EM VOLUME DE CIMENTO, CAL E AREIA MÉDIA ÚMIDA) PARA EMBOÇO/MASSA ÚNICA/ASSENTAMENTO DE ALVENARIA DE VEDAÇÃO, PREPARO MECÂNICO COM BETONEIRA 400 L. AF_08/2019 | D141: M3 | E141: 663.58 | F141: 0
A142: Argamassas | B142: 87290 | C142: ARGAMASSA TRAÇO 1:1,5:7,5 (EM VOLUME DE CIMENTO, CAL E AREIA MÉDIA ÚMIDA) PARA EMBOÇO/MASSA ÚNICA/ASSENTAMENTO DE ALVENARIA DE VEDAÇÃO, PREPARO MECÂNICO COM BETONEIRA 600 L. AF_08/2019 | D142: M3 | E142: 648.14 | F142: 0
A143: Argamassas | B143: 87333 | C143: ARGAMASSA TRAÇO 1:1,5:7,5 (EM VOLUME DE CIMENTO, CAL E AREIA MÉDIA ÚMIDA) PARA EMBOÇO/MASSA ÚNICA/ASSENTAMENTO DE ALVENARIA DE VEDAÇÃO, PREPARO MECÂNICO COM MISTURADOR DE EIXO HORIZONTAL DE 300 KG. AF_08/2019 | D143: M3 | E143: 669.13 | F143: 0
A144: Argamassas | B144: 87334 | C144: ARGAMASSA TRAÇO 1:1,5:7,5 (EM VOLUME DE CIMENTO, CAL E AREIA MÉDIA ÚMIDA) PARA EMBOÇO/MASSA ÚNICA/ASSENTAMENTO DE ALVENARIA DE VEDAÇÃO, PREPARO MECÂNICO COM MISTURADOR DE EIXO HORIZONTAL DE 600 KG. AF_08/2019 | D144: M3 | E144: 620.52 | F144: 0
A145: Argamassas | B145: 105515 | C145: ARGAMASSA TRAÇO 1:1,93 (EM VOLUME DE CIMENTO E AREIA MÉDIA ÚMIDA), FCK 20MPA, PREPARO MECÂNICO COM MISTURADOR DUPLO HORIZONTAL DE ALTA TURBULÊNCIA. AF_03/2020 | D145: M3 | E145: 905.26 | F145: 0
A146: Argamassas | B146: 87367 | C146: ARGAMASSA TRAÇO 1:1:6 (EM VOLUME DE CIMENTO, CAL E AREIA MÉDIA ÚMIDA) PARA EMBOÇO/MASSA ÚNICA/ASSENTAMENTO DE ALVENARIA DE VEDAÇÃO, PREPARO MANUAL. AF_08/2019 | D146: M3 | E146: 785.51 | F146: 0
A147: Argamassas | B147: 100449 | C147: ARGAMASSA TRAÇO 1:1:6 (EM VOLUME DE CIMENTO, CAL E AREIA MÉDIA ÚMIDA) PARA EMBOÇO/MASSA ÚNICA/ASSENTAMENTO DE ALVENARIA DE VEDAÇÃO, PREPARO MECÂNICO COM BETONEIRA 250 L. AF_08/2019 | D147: M3 | E147: 0
A148: Argamassas | B148: 87286 | C148: ARGAMASSA TRAÇO 1:1:6 (EM VOLUME DE CIMENTO, CAL E AREIA MÉDIA ÚMIDA) PARA EMBOÇO/MASSA ÚNICA/ASSENTAMENTO DE ALVENARIA DE VEDAÇÃO, PREPARO MECÂNICO COM BETONEIRA 400 L. AF_08/2019 | D148: M3 | E148: 680.89 | F148: 0
A149: Argamassas | B149: 87287 | C149: ARGAMASSA TRAÇO 1:1:6 (EM VOLUME DE CIMENTO, CAL E AREIA MÉDIA ÚMIDA) PARA EMBOÇO/MASSA ÚNICA/ASSENTAMENTO DE ALVENARIA DE VEDAÇÃO, PREPARO MECÂNICO COM BETONEIRA 600 L. AF_08/2019 | D149: M3 | E149: 655.02 | F149: 0
A150: Argamassas | B150: 87331 | C150: ARGAMASSA TRAÇO 1:1:6 (EM VOLUME DE CIMENTO, CAL E AREIA MÉDIA ÚMIDA) PARA EMBOÇO/MASSA ÚNICA/ASSENTAMENTO DE ALVENARIA DE VEDAÇÃO, PREPARO MECÂNICO COM MISTURADOR DE EIXO HORIZONTAL DE 300 KG. AF_08/2019 | D150: M3 | E150: 708.58 | F150: 0
A151: Argamassas | B151: 87332 | C151: ARGAMASSA TRAÇO 1:1:6 (EM VOLUME DE CIMENTO, CAL E AREIA MÉDIA ÚMIDA) PARA EMBOÇO/MASSA ÚNICA/ASSENTAMENTO DE ALVENARIA DE VEDAÇÃO, PREPARO MECÂNICO COM MISTURADOR DE EIXO HORIZONTAL DE 600 KG. AF_08/2019 | D151: M3 | E151: 629.87 | F151: 0
A152: Argamassas | B152: 87369 | C152: ARGAMASSA TRAÇO 1:2:8 (EM VOLUME DE CIMENTO, CAL E AREIA MÉDIA ÚMIDA) PARA EMBOÇO/MASSA ÚNICA/ASSENTAMENTO DE ALVENARIA DE VEDAÇÃO, PREPARO MANUAL. AF_08/2019 | D152: M3 | E152: 792.77 | F152: 0
A153: Argamassas | B153: 100451 | C153: ARGAMASSA TRAÇO 1:2:8 (EM VOLUME DE CIMENTO, CAL E AREIA MÉDIA ÚMIDA) PARA EMBOÇO/MASSA ÚNICA/ASSENTAMENTO DE ALVENARIA DE VEDAÇÃO, PREPARO MECÂNICO COM BETONEIRA 250 L. AF_08/2019 | D153: M3 | E153: 0
A154: Argamassas | B154: 87292 | C154: ARGAMASSA TRAÇO 1:2:8 (EM VOLUME DE CIMENTO, CAL E AREIA MÉDIA ÚMIDA) PARA EMBOÇO/MASSA ÚNICA/ASSENTAMENTO DE ALVENARIA DE VEDAÇÃO, PREPARO MECÂNICO COM BETONEIRA 400 L. AF_08/2019 | D154: M3 | E154: 677.86 | F154: 0
A155: Argamassas | B155: 87335 | C155: ARGAMASSA TRAÇO 1:2:8 (EM VOLUME DE CIMENTO, CAL E AREIA MÉDIA ÚMIDA) PARA EMBOÇO/MASSA ÚNICA/ASSENTAMENTO DE ALVENARIA DE VEDAÇÃO, PREPARO MECÂNICO COM MISTURADOR DE EIXO HORIZONTAL DE 300 KG. AF_08/2019 | D155: M3 | E155: 660.28 | F155: 0
A156: Argamassas | B156: 87336 | C156: ARGAMASSA TRAÇO 1:2:8 (EM VOLUME DE CIMENTO, CAL E AREIA MÉDIA ÚMIDA) PARA EMBOÇO/MASSA ÚNICA/ASSENTAMENTO DE ALVENARIA DE VEDAÇÃO, PREPARO MECÂNICO COM MISTURADOR DE EIXO HORIZONTAL DE 600 KG. AF_08/2019 | D156: M3 | E156: 640.52 | F156: 0
A157: Argamassas | B157: 87370 | C157: ARGAMASSA TRAÇO 1:2:9 (EM VOLUME DE CIMENTO, CAL E AREIA MÉDIA ÚMIDA) PARA EMBOÇO/MASSA ÚNICA/ASSENTAMENTO DE ALVENARIA DE VEDAÇÃO, PREPARO MANUAL. AF_08/2019 | D157: M3 | E157: 767.77 | F157: 0
A158: Argamassas | B158: 100452 | C158: ARGAMASSA TRAÇO 1:2:9 (EM VOLUME DE CIMENTO, CAL E AREIA MÉDIA ÚMIDA) PARA EMBOÇO/MASSA ÚNICA/ASSENTAMENTO DE ALVENARIA DE VEDAÇÃO, PREPARO MECÂNICO COM BETONEIRA 250 L. AF_08/2019 | D158: M3 | E158: 0
A159: Argamassas | B159: 88715 | C159: ARGAMASSA TRAÇO 1:2:9 (EM VOLUME DE CIMENTO, CAL E AREIA MÉDIA ÚMIDA) PARA EMBOÇO/MASSA ÚNICA/ASSENTAMENTO DE ALVENARIA DE VEDAÇÃO, PREPARO MECÂNICO COM BETONEIRA 400 L. AF_08/2019 | D159: M3 | E159: 644.74 | F159: 0
A160: Argamassas | B160: 87294 | C160: ARGAMASSA TRAÇO 1:2:9 (EM VOLUME DE CIMENTO, CAL E AREIA MÉDIA ÚMIDA) PARA EMBOÇO/MASSA ÚNICA/ASSENTAMENTO DE ALVENARIA DE VEDAÇÃO, PREPARO MECÂNICO COM BETONEIRA 600 L. AF_08/2019 | D160: M3 | E160: 648.34 | F160: 0
A161: Argamassas | B161: 87337 | C161: ARGAMASSA TRAÇO 1:2:9 (EM VOLUME DE CIMENTO, CAL E AREIA MÉDIA ÚMIDA) PARA EMBOÇO/MASSA ÚNICA/ASSENTAMENTO DE ALVENARIA DE VEDAÇÃO, PREPARO MECÂNICO COM MISTURADOR DE EIXO HORIZONTAL DE 300 KG. AF_08/2019 | D161: M3 | E161: 655.13 | F161: 0
A162: Argamassas | B162: 100487 | C162: ARGAMASSA TRAÇO 1:2:9 (EM VOLUME DE CIMENTO, CAL E AREIA MÉDIA ÚMIDA) PARA EMBOÇO/MASSA ÚNICA/ASSENTAMENTO DE ALVENARIA DE VEDAÇÃO, PREPARO MECÂNICO COM MISTURADOR DE EIXO HORIZONTAL DE 600 KG. AF_08/2019 | D162: M3 | E162: 610.84 | F162: 0
A163: Argamassas | B163: 87380 | C163: ARGAMASSA TRAÇO 1:3 (EM VOLUME DE CIMENTO E AREIA GROSSA ÚMIDA) COM ADIÇÃO DE EMULSÃO POLIMÉRICA PARA CHAPISCO ROLADO, PREPARO MANUAL. AF_08/2019 | D163: M3 | E163: 3390.72 | F163: 0
A164: Argamassas | B164: 100461 | C164: ARGAMASSA TRAÇO 1:3 (EM VOLUME DE CIMENTO E AREIA GROSSA ÚMIDA) COM ADIÇÃO DE EMULSÃO POLIMÉRICA PARA CHAPISCO ROLADO, PREPARO MECÂNICO COM BETONEIRA 250 L. AF_08/2019 | D164: M3 | E164: 0
A165: Argamassas | B165: 87322 | C165: ARGAMASSA TRAÇO 1:3 (EM VOLUME DE CIMENTO E AREIA GROSSA ÚMIDA) COM ADIÇÃO DE EMULSÃO POLIMÉRICA PARA CHAPISCO ROLADO, PREPARO MECÂNICO COM BETONEIRA 400 L. AF_08/2019 | D165: M3 | E165: 3306.34 | F165: 0
A166: Argamassas | B166: 87323 | C166: ARGAMASSA TRAÇO 1:3 (EM VOLUME DE CIMENTO E AREIA GROSSA ÚMIDA) COM ADIÇÃO DE EMULSÃO POLIMÉRICA PARA CHAPISCO ROLADO, PREPARO MECÂNICO COM BETONEIRA 600 L. AF_08/2019 | D166: M3 | E166: 3296.05 | F166: 0
A167: Argamassas | B167: 87360 | C167: ARGAMASSA TRAÇO 1:3 (EM VOLUME DE CIMENTO E AREIA GROSSA ÚMIDA) COM ADIÇÃO DE EMULSÃO POLIMÉRICA PARA CHAPISCO ROLADO, PREPARO MECÂNICO COM MISTURADOR DE EIXO HORIZONTAL DE 160 KG. AF_08/2019 | D167: M3 | E167: 3287.2 | F167: 0
A168: Argamassas | B168: 87361 | C168: ARGAMASSA TRAÇO 1:3 (EM VOLUME DE CIMENTO E AREIA GROSSA ÚMIDA) COM ADIÇÃO DE EMULSÃO POLIMÉRICA PARA CHAPISCO ROLADO, PREPARO MECÂNICO COM MISTURADOR DE EIXO HORIZONTAL DE 300 KG. AF_08/2019 | D168: M3 | E168: 3226.94 | F168: 0
A169: Argamassas | B169: 87362 | C169: ARGAMASSA TRAÇO 1:3 (EM VOLUME DE CIMENTO E AREIA GROSSA ÚMIDA) COM ADIÇÃO DE EMULSÃO POLIMÉRICA PARA CHAPISCO ROLADO, PREPARO MECÂNICO COM MISTURADOR DE EIXO HORIZONTAL DE 600 KG. AF_08/2019 | D169: M3 | E169: 3214.89 | F169: 0
A170: Argamassas | B170: 87377 | C170: ARGAMASSA TRAÇO 1:3 (EM VOLUME DE CIMENTO E AREIA GROSSA ÚMIDA) PARA CHAPISCO CONVENCIONAL, PREPARO MANUAL. AF_08/2019 | D170: M3 | E170: 727.8 | F170: 0
A171: Argamassas | B171: 100458 | C171: ARGAMASSA TRAÇO 1:3 (EM VOLUME DE CIMENTO E AREIA GROSSA ÚMIDA) PARA CHAPISCO CONVENCIONAL, PREPARO MECÂNICO COM BETONEIRA 250 L. AF_08/2019 | D171: M3 | E171: 0
A172: Argamassas | B172: 87313 | C172: ARGAMASSA TRAÇO 1:3 (EM VOLUME DE CIMENTO E AREIA GROSSA ÚMIDA) PARA CHAPISCO CONVENCIONAL, PREPARO MECÂNICO COM BETONEIRA 400 L. AF_08/2019 | D172: M3 | E172: 604.79 | F172: 0
A173: Argamassas | B173: 87314 | C173: ARGAMASSA TRAÇO 1:3 (EM VOLUME DE CIMENTO E AREIA GROSSA ÚMIDA) PARA CHAPISCO CONVENCIONAL, PREPARO MECÂNICO COM BETONEIRA 600 L. AF_08/2019 | D173: M3 | E173: 591.15 | F173: 0
A174: Argamassas | B174: 87352 | C174: ARGAMASSA TRAÇO 1:3 (EM VOLUME DE CIMENTO E AREIA GROSSA ÚMIDA) PARA CHAPISCO CONVENCIONAL, PREPARO MECÂNICO COM MISTURADOR DE EIXO HORIZONTAL DE 160 KG. AF_08/2019 | D174: M3 | E174: 706.05 | F174: 0
A175: Argamassas | B175: 87353 | C175: ARGAMASSA TRAÇO 1:3 (EM VOLUME DE CIMENTO E AREIA GROSSA ÚMIDA) PARA CHAPISCO CONVENCIONAL, PREPARO MECÂNICO COM MISTURADOR DE EIXO HORIZONTAL DE 300 KG. AF_08/2019 | D175: M3 | E175: 610.92 | F175: 0
A176: Argamassas | B176: 87354 | C176: ARGAMASSA TRAÇO 1:3 (EM VOLUME DE CIMENTO E AREIA GROSSA ÚMIDA) PARA CHAPISCO CONVENCIONAL, PREPARO MECÂNICO COM MISTURADOR DE EIXO HORIZONTAL DE 600 KG. AF_08/2019 | D176: M3 | E176: 565.69 | F176: 0
A177: Argamassas | B177: 100480 | C177: ARGAMASSA TRAÇO 1:3 (EM VOLUME DE CIMENTO E AREIA MÉDIA ÚMIDA) COM ADIÇÃO DE IMPERMEABILIZANTE, PREPARO MANUAL. AF_08/2019 | D177: M3 | E177: 870.96 | F177: 0
A178: Argamassas | B178: 100476 | C178: ARGAMASSA TRAÇO 1:3 (EM VOLUME DE CIMENTO E AREIA MÉDIA ÚMIDA) COM ADIÇÃO DE IMPERMEABILIZANTE, PREPARO MECÂNICO COM BETONEIRA 250 L. AF_08/2019 | D178: M3 | E178: 0
A179: Argamassas | B179: 100475 | C179: ARGAMASSA TRAÇO 1:3 (EM VOLUME DE CIMENTO E AREIA MÉDIA ÚMIDA) COM ADIÇÃO DE IMPERMEABILIZANTE, PREPARO MECÂNICO COM BETONEIRA 400 L. AF_08/2019 | D179: M3 | E179: 776.59 | F179: 0
A180: Argamassas | B180: 100491 | C180: ARGAMASSA TRAÇO 1:3 (EM VOLUME DE CIMENTO E AREIA MÉDIA ÚMIDA) COM ADIÇÃO DE IMPERMEABILIZANTE, PREPARO MECÂNICO COM BETONEIRA 600 L. AF_08/2019 | D180: M3 | E180: 771.94 | F180: 0
A181: Argamassas | B181: 100477 | C181: ARGAMASSA TRAÇO 1:3 (EM VOLUME DE CIMENTO E AREIA MÉDIA ÚMIDA) COM ADIÇÃO DE IMPERMEABILIZANTE, PREPARO MECÂNICO COM MISTURADOR DE EIXO HORIZONTAL DE 160 KG. AF_08/2019 | D181: M3 | E181: 856.04 | F181: 0
A182: Argamassas | B182: 100478 | C182: ARGAMASSA TRAÇO 1:3 (EM VOLUME DE CIMENTO E AREIA MÉDIA ÚMIDA) COM ADIÇÃO DE IMPERMEABILIZANTE, PREPARO MECÂNICO COM MISTURADOR DE EIXO HORIZONTAL DE 300 KG. AF_08/2019 | D182: M3 | E182: 762.37 | F182: 0
A183: Argamassas | B183: 100479 | C183: ARGAMASSA TRAÇO 1:3 (EM VOLUME DE CIMENTO E AREIA MÉDIA ÚMIDA) COM ADIÇÃO DE IMPERMEABILIZANTE, PREPARO MECÂNICO COM MISTURADOR DE EIXO HORIZONTAL DE 600 KG. AF_08/2019 | D183: M3 | E183: 739.08 | F183: 0
A184: Argamassas | B184: 87372 | C184: ARGAMASSA TRAÇO 1:3 (EM VOLUME DE CIMENTO E AREIA MÉDIA ÚMIDA) PARA CONTRAPISO, PREPARO MANUAL. AF_08/2019 | D184: M3 | E184: 898.32 | F184: 0
A185: Argamassas | B185: 100453 | C185: ARGAMASSA TRAÇO 1:3 (EM VOLUME DE CIMENTO E AREIA MÉDIA ÚMIDA) PARA CONTRAPISO, PREPARO MECÂNICO COM BETONEIRA 250 L. AF_08/2019 | D185: M3 | E185: 0
A186: Argamassas | B186: 87298 | C186: ARGAMASSA TRAÇO 1:3 (EM VOLUME DE CIMENTO E AREIA MÉDIA ÚMIDA) PARA CONTRAPISO, PREPARO MECÂNICO COM BETONEIRA 400 L. AF_08/2019 | D186: M3 | E186: 770.18 | F186: 0
A187: Argamassas | B187: 87299 | C187: ARGAMASSA TRAÇO 1:3 (EM VOLUME DE CIMENTO E AREIA MÉDIA ÚMIDA) PARA CONTRAPISO, PREPARO MECÂNICO COM BETONEIRA 600 L. AF_08/2019 | D187: M3 | E187: 535.28 | F187: 0
A188: Argamassas | B188: 87339 | C188: ARGAMASSA TRAÇO 1:3 (EM VOLUME DE CIMENTO E AREIA MÉDIA ÚMIDA) PARA CONTRAPISO, PREPARO MECÂNICO COM MISTURADOR DE EIXO HORIZONTAL DE 160 KG. AF_08/2019 | D188: M3 | E188: 922.85 | F188: 0
A189: Argamassas | B189: 87340 | C189: ARGAMASSA TRAÇO 1:3 (EM VOLUME DE CIMENTO E AREIA MÉDIA ÚMIDA) PARA CONTRAPISO, PREPARO MECÂNICO COM MISTURADOR DE EIXO HORIZONTAL DE 300 KG. AF_08/2019 | D189: M3 | E189: 769.51 | F189: 0
A190: Argamassas | B190: 87341 | C190: ARGAMASSA TRAÇO 1:3 (EM VOLUME DE CIMENTO E AREIA MÉDIA ÚMIDA) PARA CONTRAPISO, PREPARO MECÂNICO COM MISTURADOR DE EIXO HORIZONTAL DE 600 KG. AF_08/2019 | D190: M3 | E190: 727.99 | F190: 0
A191: Argamassas | B191: 88629 | C191: ARGAMASSA TRAÇO 1:3 (EM VOLUME DE CIMENTO E AREIA MÉDIA ÚMIDA), PREPARO MANUAL. AF_08/2019 | D191: M3 | E191: 737.61 | F191: 0
A192: Argamassas | B192: 100467 | C192: ARGAMASSA TRAÇO 1:3 (EM VOLUME DE CIMENTO E AREIA MÉDIA ÚMIDA), PREPARO MECÂNICO COM BETONEIRA 250 L. AF_08/2019 | D192: M3 | E192: 0
A193: Argamassas | B193: 88628 | C193: ARGAMASSA TRAÇO 1:3 (EM VOLUME DE CIMENTO E AREIA MÉDIA ÚMIDA), PREPARO MECÂNICO COM BETONEIRA 400 L. AF_08/2019 | D193: M3 | E193: 640.65 | F193: 0
A194: Argamassas | B194: 100489 | C194: ARGAMASSA TRAÇO 1:3 (EM VOLUME DE CIMENTO E AREIA MÉDIA ÚMIDA), PREPARO MECÂNICO COM BETONEIRA 600 L. AF_08/2019 | D194: M3 | E194: 635.11 | F194: 0
A195: Argamassas | B195: 100468 | C195: ARGAMASSA TRAÇO 1:3 (EM VOLUME DE CIMENTO E AREIA MÉDIA ÚMIDA), PREPARO MECÂNICO COM MISTURADOR DE EIXO HORIZONTAL DE 160 KG. AF_08/2019 | D195: M3 | E195: 783.18 | F195: 0
A196: Argamassas | B196: 100469 | C196: ARGAMASSA TRAÇO 1:3 (EM VOLUME DE CIMENTO E AREIA MÉDIA ÚMIDA), PREPARO MECÂNICO COM MISTURADOR DE EIXO HORIZONTAL DE 300 KG. AF_08/2019 | D196: M3 | E196: 629.53 | F196: 0
A197: Argamassas | B197: 100470 | C197: ARGAMASSA TRAÇO 1:3 (EM VOLUME DE CIMENTO E AREIA MÉDIA ÚMIDA), PREPARO MECÂNICO COM MISTURADOR DE EIXO HORIZONTAL DE 600 KG. AF_08/2019 | D197: M3 | E197: 584.07 | F197: 0
A198: Argamassas | B198: 87371 | C198: ARGAMASSA TRAÇO 1:3:12 (EM VOLUME DE CIMENTO, CAL E AREIA MÉDIA ÚMIDA) PARA EMBOÇO/MASSA ÚNICA/ASSENTAMENTO DE ALVENARIA DE VEDAÇÃO, PREPARO MANUAL. AF_08/2019 | D198: M3 | E198: 759.36 | F198: 0
A199: Argamassas | B199: 87295 | C199: ARGAMASSA TRAÇO 1:3:12 (EM VOLUME DE CIMENTO, CAL E AREIA MÉDIA ÚMIDA) PARA EMBOÇO/MASSA ÚNICA/ASSENTAMENTO DE ALVENARIA DE VEDAÇÃO, PREPARO MECÂNICO COM BETONEIRA 400 L. AF_08/2019 | D199: M3 | E199: 673.85 | F199: 0
A200: Argamassas | B200: 87296 | C200: ARGAMASSA TRAÇO 1:3:12 (EM VOLUME DE CIMENTO, CAL E AREIA MÉDIA ÚMIDA) PARA EMBOÇO/MASSA ÚNICA/ASSENTAMENTO DE ALVENARIA DE VEDAÇÃO, PREPARO MECÂNICO COM BETONEIRA 600 L. AF_08/2019 | D200: M3 | E200: 635.45 | F200: 0
... 9533 more rows

Sheet INSUMO
A1: SINAPI - Sistema Nacional de Pesquisa de Custos e Índices da Construção Civil
A2: RELATÓRIO DE PREÇOS DE INSUMOS - ENGARGOS SOCIAIS SEM DESONERAÇÃO
A3: Mês de Referência: | B3: 06/2025 | E3: Encargos sociais sobre a mão de obra:
A4: Data de emissão: | B4: 11/07/2025 | E4: (SEM DESONERAÇÃO) | F4: MG
E5: Localidade | F5: BELO HORIZONTE
A6: Origem de preço: | B6: C = COLETADO | C6: CR = COEFICIENTE DE REPRESENTATIVIDADE | E6: Horista | F6: 1.1679
A7: Preço em branco para determinado estado significa que não houve coleta mínima de preços no mês de referência | E7: Mensalista | F7: 0.7393
A9: Acessar Fichas de Especificação Técnico dos Insumos | E9: Preços Medianos (R$):
A10: Classificação | B10: Código do Insumo | C10: Descrição do Insumo | D10: Unidade | E10: Origem de Preço | F10: MG
A11: SERVIÇOS | B11: 45333 | C11: ABERTURA PARA ENCAIXE DE CUBA OU LAVATORIO EM BANCADA DE MARMORE/ GRANITO OU OUTRO TIPO DE PEDRA NATURAL | D11: UN | E11: CR | F11: 115.31
A12: MATERIAL | B12: 11270 | C12: ABRACADEIRA DE LATAO PARA FIXACAO DE CABO PARA-RAIO, DIMENSOES 32 X 24 X 24 MM | D12: UN | E12: CR | F12: 3.42
A13: MATERIAL | B13: 412 | C13: ABRACADEIRA DE NYLON PARA AMARRACAO DE CABOS, COMPRIMENTO DE *230* X *7,6* MM | D13: UN | E13: CR | F13: 1.08
A14: MATERIAL | B14: 414 | C14: ABRACADEIRA DE NYLON PARA AMARRACAO DE CABOS, COMPRIMENTO DE 100 X 2,5 MM | D14: UN | E14: CR | F14: 0.06
A15: MATERIAL | B15: 410 | C15: ABRACADEIRA DE NYLON PARA AMARRACAO DE CABOS, COMPRIMENTO DE 150 X *3,6* MM | D15: UN | E15: CR | F15: 0.16
A16: MATERIAL | B16: 411 | C16: ABRACADEIRA DE NYLON PARA AMARRACAO DE CABOS, COMPRIMENTO DE 200 X *4,6* MM | D16: UN | E16: C | F16: 0.21
A17: MATERIAL | B17: 408 | C17: ABRACADEIRA DE NYLON PARA AMARRACAO DE CABOS, COMPRIMENTO DE 390 X *4,6* MM | D17: UN | E17: CR | F17: 1.04
A18: MATERIAL | B18: 39131 | C18: ABRACADEIRA EM ACO PARA AMARRACAO DE ELETRODUTOS, TIPO D, COM 1 1/2" E CUNHA DE FIXACAO | D18: UN | E18: CR | F18: 3.13
A19: MATERIAL | B19: 394 | C19: ABRACADEIRA EM ACO PARA AMARRACAO DE ELETRODUTOS, TIPO D, COM 1 1/2" E PARAFUSO DE FIXACAO | D19: UN | E19: CR | F19: 3.17
A20: MATERIAL | B20: 39130 | C20: ABRACADEIRA EM ACO PARA AMARRACAO DE ELETRODUTOS, TIPO D, COM 1 1/4" E CUNHA DE FIXACAO | D20: UN | E20: CR | F20: 2.85
A21: MATERIAL | B21: 395 | C21: ABRACADEIRA EM ACO PARA AMARRACAO DE ELETRODUTOS, TIPO D, COM 1 1/4" E PARAFUSO DE FIXACAO | D21: UN | E21: CR | F21: 3.05
A22: MATERIAL | B22: 39129 | C22: ABRACADEIRA EM ACO PARA AMARRACAO DE ELETRODUTOS, TIPO D, COM 1" E CUNHA DE FIXACAO | D22: UN | E22: CR | F22: 1.76
A23: MATERIAL | B23: 393 | C23: ABRACADEIRA EM ACO PARA AMARRACAO DE ELETRODUTOS, TIPO D, COM 1" E PARAFUSO DE FIXACAO | D23: UN | E23: C | F23: 1.84
A24: MATERIAL | B24: 39127 | C24: ABRACADEIRA EM ACO PARA AMARRACAO DE ELETRODUTOS, TIPO D, COM 1/2" E CUNHA DE FIXACAO | D24: UN | E24: CR | F24: 1.5
A25: MATERIAL | B25: 392 | C25: ABRACADEIRA EM ACO PARA AMARRACAO DE ELETRODUTOS, TIPO D, COM 1/2" E PARAFUSO DE FIXACAO | D25: UN | E25: CR | F25: 1.54
A26: MATERIAL | B26: 39133 | C26: ABRACADEIRA EM ACO PARA AMARRACAO DE ELETRODUTOS, TIPO D, COM 2 1/2" E CUNHA DE FIXACAO | D26: UN | E26: CR | F26: 4.11
A27: MATERIAL | B27: 397 | C27: ABRACADEIRA EM ACO PARA AMARRACAO DE ELETRODUTOS, TIPO D, COM 2 1/2" E PARAFUSO DE FIXACAO | D27: UN | E27: CR | F27: 4.54
A28: MATERIAL | B28: 39132 | C28: ABRACADEIRA EM ACO PARA AMARRACAO DE ELETRODUTOS, TIPO D, COM 2" E CUNHA DE FIXACAO | D28: UN | E28: CR | F28: 3.28
A29: MATERIAL | B29: 396 | C29: ABRACADEIRA EM ACO PARA AMARRACAO DE ELETRODUTOS, TIPO D, COM 2" E PARAFUSO DE FIXACAO | D29: UN | E29: CR | F29: 3.52
A30: MATERIAL | B30: 39135 | C30: ABRACADEIRA EM ACO PARA AMARRACAO DE ELETRODUTOS, TIPO D, COM 3 1/2" E CUNHA DE FIXACAO | D30: UN | E30: CR | F30: 6.57
A31: MATERIAL | B31: 39134 | C31: ABRACADEIRA EM ACO PARA AMARRACAO DE ELETRODUTOS, TIPO D, COM 3" E CUNHA DE FIXACAO | D31: UN | E31: CR | F31: 5.48
A32: MATERIAL | B32: 398 | C32: ABRACADEIRA EM ACO PARA AMARRACAO DE ELETRODUTOS, TIPO D, COM 3" E PARAFUSO DE FIXACAO | D32: UN | E32: CR | F32: 5.05
A33: MATERIAL | B33: 39128 | C33: ABRACADEIRA EM ACO PARA AMARRACAO DE ELETRODUTOS, TIPO D, COM 3/4" E CUNHA DE FIXACAO | D33: UN | E33: CR | F33: 1.64
A34: MATERIAL | B34: 400 | C34: ABRACADEIRA EM ACO PARA AMARRACAO DE ELETRODUTOS, TIPO D, COM 3/4" E PARAFUSO DE FIXACAO | D34: UN | E34: CR | F34: 1.6
A35: MATERIAL | B35: 39125 | C35: ABRACADEIRA EM ACO PARA AMARRACAO DE ELETRODUTOS, TIPO D, COM 3/8" E PARAFUSO DE FIXACAO | D35: UN | E35: CR | F35: 1.64
A36: MATERIAL | B36: 39126 | C36: ABRACADEIRA EM ACO PARA AMARRACAO DE ELETRODUTOS, TIPO D, COM 4" E CUNHA DE FIXACAO | D36: UN | E36: CR | F36: 7.39
A37: MATERIAL | B37: 399 | C37: ABRACADEIRA EM ACO PARA AMARRACAO DE ELETRODUTOS, TIPO D, COM 4" E PARAFUSO DE FIXACAO | D37: UN | E37: CR | F37: 6.51
A38: MATERIAL | B38: 39158 | C38: ABRACADEIRA EM ACO PARA AMARRACAO DE ELETRODUTOS, TIPO ECONOMICA (GOTA), COM 8" | D38: UN | E38: CR | F38: 17.49
A39: MATERIAL | B39: 39141 | C39: ABRACADEIRA EM ACO PARA AMARRACAO DE ELETRODUTOS, TIPO U SIMPLES, COM 1 1/2" | D39: UN | E39: CR | F39: 1.27
A40: MATERIAL | B40: 39140 | C40: ABRACADEIRA EM ACO PARA AMARRACAO DE ELETRODUTOS, TIPO U SIMPLES, COM 1 1/4" | D40: UN | E40: CR | F40: 1.15
A41: MATERIAL | B41: 39139 | C41: ABRACADEIRA EM ACO PARA AMARRACAO DE ELETRODUTOS, TIPO U SIMPLES, COM 1" | D41: UN | E41: CR | F41: 0.95
A42: MATERIAL | B42: 39137 | C42: ABRACADEIRA EM ACO PARA AMARRACAO DE ELETRODUTOS, TIPO U SIMPLES, COM 1/2" | D42: UN | E42: CR | F42: 0.66
A43: MATERIAL | B43: 39143 | C43: ABRACADEIRA EM ACO PARA AMARRACAO DE ELETRODUTOS, TIPO U SIMPLES, COM 2 1/2" | D43: UN | E43: CR | F43: 2.62
A44: MATERIAL | B44: 39142 | C44: ABRACADEIRA EM ACO PARA AMARRACAO DE ELETRODUTOS, TIPO U SIMPLES, COM 2" | D44: UN | E44: CR | F44: 1.87
A45: MATERIAL | B45: 39144 | C45: ABRACADEIRA EM ACO PARA AMARRACAO DE ELETRODUTOS, TIPO U SIMPLES, COM 3" | D45: UN | E45: CR | F45: 3.05
A46: MATERIAL | B46: 39138 | C46: ABRACADEIRA EM ACO PARA AMARRACAO DE ELETRODUTOS, TIPO U SIMPLES, COM 3/4" | D46: UN | E46: CR | F46: 0.7
A47: MATERIAL | B47: 39136 | C47: ABRACADEIRA EM ACO PARA AMARRACAO DE ELETRODUTOS, TIPO U SIMPLES, COM 3/8" | D47: UN | E47: CR | F47: 0.46
A48: MATERIAL | B48: 39145 | C48: ABRACADEIRA EM ACO PARA AMARRACAO DE ELETRODUTOS, TIPO U SIMPLES, COM 4" | D48: UN | E48: CR | F48: 5.03
A49: MATERIAL | B49: 12615 | C49: ABRACADEIRA PVC, PARA CALHA PLUVIAL, DIAMETRO ENTRE *80 E 100* MM, PARA DRENAGEM PLUVIAL PREDIAL | D49: UN | E49: CR | F49: 12.04
A50: MATERIAL | B50: 11927 | C50: ABRACADEIRA, GALVANIZADA/ZINCADA, ROSCA SEM FIM, PARAFUSO INOX, LARGURA FITA *12,6 A *14 MM, D = 2" A 2 1/2" | D50: UN | E50: CR | F50: 10.21
A51: MATERIAL | B51: 11928 | C51: ABRACADEIRA, GALVANIZADA/ZINCADA, ROSCA SEM FIM, PARAFUSO INOX, LARGURA FITA *12,6 A *14 MM, D = 3" A 3 3/4" | D51: UN | E51: CR | F51: 11.69
A52: MATERIAL | B52: 11929 | C52: ABRACADEIRA, GALVANIZADA/ZINCADA, ROSCA SEM FIM, PARAFUSO INOX, LARGURA FITA *12,6 A *14 MM, D = 4" A 4 3/4" | D52: UN | E52: CR | F52: 18.09
A53: MATERIAL | B53: 36801 | C53: ACABAMENTO DE METAL CROMADO PARA REGISTRO PEQUENO, DE PAREDE, 1/2" OU 3/4" | D53: UN | E53: CR | F53: 33.81
A54: MATERIAL | B54: 36246 | C54: ACABAMENTO SIMPLES/CONVENCIONAL PARA FORRO PVC, TIPO "U" OU "C", COR BRANCA, COMPRIMENTO 6 M | D54: M | E54: CR | F54: 3.9
A55: MATERIAL | B55: 37600 | C55: ACESSORIO DE LIGACAO NAO ELETRICO PARA CARGAS EXPLOSIVAS, TUBO DE 6 M | D55: UN | E55: CR
A56: MATERIAL | B56: 37599 | C56: ACESSORIO INICIADOR NAO ELETRICO, TUBO DE 6 M, TEMPO DE RETARDO DE *160* MS | D56: UN | E56: CR
A57: MATERIAL | B57: 1 | C57: ACETILENO - RECARGA DE GAS PARA CILINDRO (NAO INCLUI TROCA/MANUTENCAO DO CILINDRO) | D57: KG | E57: C | F57: 80
A58: MATERIAL | B58: 3 | C58: ACIDO CLORIDRICO / ACIDO MURIATICO, DILUICAO 10% A 12% PARA USO EM LIMPEZA | D58: L | E58: CR | F58: 20.99
A59: MATERIAL | B59: 43054 | C59: ACO CA-25, 10,0 MM, OU 12,5 MM, OU 16,0 MM, OU 20,0 MM, OU 25,0 MM, VERGALHAO | D59: KG | E59: CR | F59: 8.51
A60: MATERIAL | B60: 42402 | C60: ACO CA-25, 16,0 MM, BARRA DE TRANSFERENCIA | D60: KG | E60: CR | F60: 8.13
A61: MATERIAL | B61: 42403 | C61: ACO CA-25, 20,0 MM, BARRA DE TRANSFERENCIA | D61: KG | E61: CR | F61: 10.43
A62: MATERIAL | B62: 42404 | C62: ACO CA-25, 25,0 MM, BARRA DE TRANSFERENCIA | D62: KG | E62: CR | F62: 10.37
A63: MATERIAL | B63: 42405 | C63: ACO CA-25, 32,0 MM, BARRA DE TRANSFERENCIA | D63: KG | E63: CR | F63: 11.05
A64: MATERIAL | B64: 34341 | C64: ACO CA-25, 32,0 MM, VERGALHAO | D64: KG | E64: CR | F64: 9.59
A65: MATERIAL | B65: 43053 | C65: ACO CA-25, 6,3 MM OU 8,0 MM, VERGALHAO | D65: KG | E65: CR | F65: 7.6
A66: MATERIAL | B66: 43058 | C66: ACO CA-50, 10,0 MM, OU 12,5 MM, OU 16,0 MM, OU 20,0 MM, DOBRADO E CORTADO | D66: KG | E66: CR | F66: 7.88
A67: MATERIAL | B67: 34 | C67: ACO CA-50, 10,0 MM, VERGALHAO | D67: KG | E67: CR | F67: 7.92
A68: MATERIAL | B68: 43055 | C68: ACO CA-50, 12,5 MM OU 16,0 MM, VERGALHAO | D68: KG | E68: C | F68: 6.86
A69: MATERIAL | B69: 43056 | C69: ACO CA-50, 20,0 MM OU 25,0 MM, VERGALHAO | D69: KG | E69: CR | F69: 7.91
A70: MATERIAL | B70: 43057 | C70: ACO CA-50, 32,0 MM, VERGALHAO | D70: KG | E70: CR | F70: 8.69
A71: MATERIAL | B71: 34449 | C71: ACO CA-50, 6,3 MM, DOBRADO E CORTADO | D71: KG | E71: CR | F71: 9.29
A72: MATERIAL | B72: 32 | C72: ACO CA-50, 6,3 MM, VERGALHAO | D72: KG | E72: CR | F72: 8.35
A73: MATERIAL | B73: 33 | C73: ACO CA-50, 8,0 MM, VERGALHAO | D73: KG | E73: CR | F73: 8.4
A74: MATERIAL | B74: 43061 | C74: ACO CA-60, 4,2 MM OU 5,0 MM, DOBRADO E CORTADO | D74: KG | E74: CR | F74: 7.85
A75: MATERIAL | B75: 43059 | C75: ACO CA-60, 4,2 MM, OU 5,0 MM, OU 6,0 MM, OU 7,0 MM, VERGALHAO | D75: KG | E75: CR | F75: 7.49
A76: MATERIAL | B76: 43062 | C76: ACO CA-60, 6,0 MM OU 7,0 MM, DOBRADO E CORTADO | D76: KG | E76: CR | F76: 8.3
A77: MATERIAL | B77: 43060 | C77: ACO CA-60, 8,0 MM OU 9,5 MM, VERGALHAO | D77: KG | E77: CR | F77: 6.53
A78: MATERIAL | B78: 40410 | C78: ACOPLAMENTO RIGIDO EM FERRO FUNDIDO PARA SISTEMA DE TUBULACAO RANHURADA, DN 50 MM (2") | D78: UN | E78: C
A79: MATERIAL | B79: 40411 | C79: ACOPLAMENTO RIGIDO EM FERRO FUNDIDO PARA SISTEMA DE TUBULACAO RANHURADA, DN 65 MM (2 1/2") | D79: UN | E79: CR
A80: MATERIAL | B80: 40412 | C80: ACOPLAMENTO RIGIDO EM FERRO FUNDIDO PARA SISTEMA DE TUBULACAO RANHURADA, DN 80 MM (3") | D80: UN | E80: CR
A81: MATERIAL | B81: 44254 | C81: ADAPTADOR CPVC, ROSCAVEL, COM FLANGES E ANEL DE VEDACAO, 15 MM, CAIXA D'AGUA PARA AGUA QUENTE | D81: UN | E81: CR | F81: 30.45
A82: MATERIAL | B82: 44255 | C82: ADAPTADOR CPVC, ROSCAVEL, COM FLANGES E ANEL DE VEDACAO, 22 MM, CAIXA D'AGUA PARA AGUA QUENTE | D82: UN | E82: CR | F82: 33.75
A83: MATERIAL | B83: 44256 | C83: ADAPTADOR CPVC, ROSCAVEL, COM FLANGES E ANEL DE VEDACAO, 28 MM, CAIXA D'AGUA PARA AGUA QUENTE | D83: UN | E83: CR | F83: 38.12
A84: MATERIAL | B84: 44257 | C84: ADAPTADOR CPVC, ROSCAVEL, COM FLANGES E ANEL DE VEDACAO, 35 MM, CAIXA D'AGUA PARA AGUA QUENTE | D84: UN | E84: CR | F84: 60.31
A85: MATERIAL | B85: 44258 | C85: ADAPTADOR CPVC, ROSCAVEL, COM FLANGES E ANEL DE VEDACAO, 42 MM, CAIXA D'AGUA PARA AGUA QUENTE | D85: UN | E85: CR | F85: 68.92
A86: MATERIAL | B86: 44259 | C86: ADAPTADOR CPVC, ROSCAVEL, COM FLANGES E ANEL DE VEDACAO, 54 MM, CAIXA D'AGUA PARA AGUA QUENTE | D86: UN | E86: CR | F86: 94.6
A87: MATERIAL | B87: 37997 | C87: ADAPTADOR CPVC, SOLDAVEL, 15 MM, PARA AGUA QUENTE | D87: UN | E87: CR | F87: 18.14
A88: MATERIAL | B88: 37998 | C88: ADAPTADOR CPVC, SOLDAVEL, 22 MM, PARA AGUA QUENTE | D88: UN | E88: CR | F88: 24.28
A89: MATERIAL | B89: 55 | C89: ADAPTADOR DE COMPRESSAO EM POLIPROPILENO (PP), PARA TUBO EM PEAD, 20 MM X 1/2", PARA LIGACAO PREDIAL DE AGUA (NTS 179) | D89: UN | E89: C | F89: 4.5
A90: MATERIAL | B90: 61 | C90: ADAPTADOR DE COMPRESSAO EM POLIPROPILENO (PP), PARA TUBO EM PEAD, 20 MM X 3/4", PARA LIGACAO PREDIAL DE AGUA (NTS 179) | D90: UN | E90: CR | F90: 4.25
A91: MATERIAL | B91: 62 | C91: ADAPTADOR DE COMPRESSAO EM POLIPROPILENO (PP), PARA TUBO EM PEAD, 32 MM X 1", PARA LIGACAO PREDIAL DE AGUA (NTS 179) | D91: UN | E91: CR | F91: 8.82
A92: MATERIAL | B92: 10899 | C92: ADAPTADOR EM LATAO, ENGATE RAPIDO 2 1/2" X ROSCA INTERNA 5 FIOS 2 1/2", PARA INSTALACAO PREDIAL DE COMBATE A INCENDIO | D92: UN | E92: CR | F92: 67.9
A93: MATERIAL | B93: 10900 | C93: ADAPTADOR EM LATAO, ENGATE RAPIDO1 1/2" X ROSCA INTERNA 5 FIOS 2 1/2", PARA INSTALACAO PREDIAL DE COMBATE A INCENDIO | D93: UN | E93: CR | F93: 53.14
A94: MATERIAL | B94: 47 | C94: ADAPTADOR PVC PBA, BOLSA/ROSCA, JE, DN 100 / DE 110 MM | D94: UN | E94: CR | F94: 94.9
A95: MATERIAL | B95: 48 | C95: ADAPTADOR PVC PBA, BOLSA/ROSCA, JE, DN 50 / DE 60 MM | D95: UN | E95: CR | F95: 24.75
A96: MATERIAL | B96: 46 | C96: ADAPTADOR PVC PBA, BOLSA/ROSCA, JE, DN 75 / DE 85 MM | D96: UN | E96: CR | F96: 55.5
A97: MATERIAL | B97: 52 | C97: ADAPTADOR PVC PBA, PONTA/ROSCA, JE, DN 50 / DE 60 MM | D97: UN | E97: CR | F97: 18.8
A98: MATERIAL | B98: 43 | C98: ADAPTADOR PVC PBA, PONTA/ROSCA, JE, DN 75 / DE 85 MM | D98: UN | E98: CR | F98: 63.47
A99: MATERIAL | B99: 103 | C99: ADAPTADOR PVC SOLDAVEL CURTO COM BOLSA E ROSCA, 110 MM X 4", PARA AGUA FRIA | D99: UN | E99: CR | F99: 44.26
A100: MATERIAL | B100: 107 | C100: ADAPTADOR PVC SOLDAVEL CURTO COM BOLSA E ROSCA, 20 MM X 1/2", PARA AGUA FRIA | D100: UN | E100: CR | F100: 0.83
A101: MATERIAL | B101: 65 | C101: ADAPTADOR PVC SOLDAVEL CURTO COM BOLSA E ROSCA, 25 MM X 3/4", PARA AGUA FRIA | D101: UN | E101: CR | F101: 0.91
A102: MATERIAL | B102: 108 | C102: ADAPTADOR PVC SOLDAVEL CURTO COM BOLSA E ROSCA, 32 MM X 1", PARA AGUA FRIA | D102: UN | E102: CR | F102: 1.83
A103: MATERIAL | B103: 110 | C103: ADAPTADOR PVC SOLDAVEL CURTO COM BOLSA E ROSCA, 40 MM X 1 1/2", PARA AGUA FRIA | D103: UN | E103: CR | F103: 6.37
A104: MATERIAL | B104: 109 | C104: ADAPTADOR PVC SOLDAVEL CURTO COM BOLSA E ROSCA, 40 MM X 1 1/4", PARA AGUA FRIA | D104: UN | E104: CR | F104: 3.79
A105: MATERIAL | B105: 111 | C105: ADAPTADOR PVC SOLDAVEL CURTO COM BOLSA E ROSCA, 50 MM X 1 1/4", PARA AGUA FRIA | D105: UN | E105: CR | F105: 8.61
A106: MATERIAL | B106: 112 | C106: ADAPTADOR PVC SOLDAVEL CURTO COM BOLSA E ROSCA, 50 MM X1 1/2", PARA AGUA FRIA | D106: UN | E106: CR | F106: 4.56
A107: MATERIAL | B107: 113 | C107: ADAPTADOR PVC SOLDAVEL CURTO COM BOLSA E ROSCA, 60 MM X 2", PARA AGUA FRIA | D107: UN | E107: CR | F107: 11.43
A108: MATERIAL | B108: 104 | C108: ADAPTADOR PVC SOLDAVEL CURTO COM BOLSA E ROSCA, 75 MM X 2 1/2", PARA AGUA FRIA | D108: UN | E108: CR | F108: 19.89
A109: MATERIAL | B109: 102 | C109: ADAPTADOR PVC SOLDAVEL CURTO COM BOLSA E ROSCA, 85 MM X 3", PARA AGUA FRIA | D109: UN | E109: CR | F109: 27.43
A110: MATERIAL | B110: 95 | C110: ADAPTADOR PVC SOLDAVEL, COM FLANGE E ANEL DE VEDACAO, 20 MM X 1/2", PARA CAIXA D'AGUA | D110: UN | E110: CR | F110: 11.59
A111: MATERIAL | B111: 96 | C111: ADAPTADOR PVC SOLDAVEL, COM FLANGE E ANEL DE VEDACAO, 25 MM X 3/4", PARA CAIXA D'AGUA | D111: UN | E111: CR | F111: 12.61
A112: MATERIAL | B112: 97 | C112: ADAPTADOR PVC SOLDAVEL, COM FLANGE E ANEL DE VEDACAO, 32 MM X 1", PARA CAIXA D'AGUA | D112: UN | E112: CR | F112: 18.97
A113: MATERIAL | B113: 98 | C113: ADAPTADOR PVC SOLDAVEL, COM FLANGE E ANEL DE VEDACAO, 40 MM X 1 1/4", PARA CAIXA D'AGUA | D113: UN | E113: CR | F113: 28.39
A114: MATERIAL | B114: 99 | C114: ADAPTADOR PVC SOLDAVEL, COM FLANGE E ANEL DE VEDACAO, 50 MM X 1 1/2", PARA CAIXA D'AGUA | D114: UN | E114: CR | F114: 26.84
A115: MATERIAL | B115: 60 | C115: ADAPTADOR PVC, COM REGISTRO, PARA PEAD, 20 MM X 3/4", PARA LIGACAO PREDIAL DE AGUA | D115: UN | E115: CR | F115: 5.84
A116: MATERIAL | B116: 72 | C116: ADAPTADOR PVC, ROSCAVEL, COM FLANGES E ANEL DE VEDACAO, 1 1/2", PARA CAIXA D'AGUA | D116: UN | E116: CR | F116: 51.47
A117: MATERIAL | B117: 71 | C117: ADAPTADOR PVC, ROSCAVEL, COM FLANGES E ANEL DE VEDACAO, 1", PARA CAIXA D'AGUA | D117: UN | E117: CR | F117: 31.79
A118: MATERIAL | B118: 67 | C118: ADAPTADOR PVC, ROSCAVEL, COM FLANGES E ANEL DE VEDACAO, 1/2", PARA CAIXA D'AGUA | D118: UN | E118: CR | F118: 16.64
A119: MATERIAL | B119: 73 | C119: ADAPTADOR PVC, ROSCAVEL, COM FLANGES E ANEL DE VEDACAO, 3/4", PARA CAIXA D'AGUA | D119: UN | E119: CR | F119: 15.92
A120: MATERIAL | B120: 100 | C120: ADAPTADOR PVC, SOLDAVEL, COM FLANGES E ANEL DE VEDACAO, 60 MM X 2", PARA CAIXA D'AGUA | D120: UN | E120: CR | F120: 46.89
A121: MATERIAL | B121: 75 | C121: ADAPTADOR PVC, SOLDAVEL, COM FLANGES LIVRES, 110 MM X 4", PARA CAIXA D'AGUA | D121: UN | E121: CR | F121: 273.36
A122: MATERIAL | B122: 83 | C122: ADAPTADOR PVC, SOLDAVEL, COM FLANGES LIVRES, 75 MM X 2 1/2", PARA CAIXA D'AGUA | D122: UN | E122: CR | F122: 218.54
A123: MATERIAL | B123: 74 | C123: ADAPTADOR PVC, SOLDAVEL, COM FLANGES LIVRES, 85 MM X 3", PARA CAIXA D'AGUA | D123: UN | E123: CR | F123: 312.46
A124: MATERIAL | B124: 106 | C124: ADAPTADOR PVC, SOLDAVEL, LONGO, COM FLANGE LIVRE, 110 MM X 4", PARA CAIXA D'AGUA | D124: UN | E124: CR | F124: 395.11
A125: MATERIAL | B125: 88 | C125: ADAPTADOR PVC, SOLDAVEL, LONGO, COM FLANGE LIVRE, 32 MM X 1", PARA CAIXA D'AGUA | D125: UN | E125: CR | F125: 11.1
A126: MATERIAL | B126: 82 | C126: ADAPTADOR PVC, SOLDAVEL, LONGO, COM FLANGE LIVRE, 75 MM X 2 1/2", PARA CAIXA D'AGUA | D126: UN | E126: CR | F126: 207.93
A127: MATERIAL | B127: 105 | C127: ADAPTADOR PVC, SOLDAVEL, LONGO, COM FLANGE LIVRE, 85 MM X 3", PARA CAIXA D'AGUA | D127: UN | E127: CR | F127: 294.63
A128: MATERIAL | B128: 39719 | C128: ADESIVO / COLA DE CONTATO LIQUIDO, A BASE DE RESINAS, PARA COLAGEM DE ESPUMA PARA ISOLAMENTO TERMICO FLEXIVEL | D128: L | E128: CR | F128: 167.33
A129: MATERIAL | B129: 3410 | C129: ADESIVO / COLA PARA EPS (ISOPOR) E OUTROS MATERIAIS | D129: KG | E129: CR | F129: 37.64
A130: MATERIAL | B130: 4791 | C130: ADESIVO ACRILICO DE BASE AQUOSA / COLA DE CONTATO | D130: KG | E130: CR | F130: 53.51
A131: MATERIAL | B131: 157 | C131: ADESIVO ESTRUTURAL A BASE DE RESINA EPOXI PARA INJECAO EM TRINCAS, BICOMPONENTE, BAIXA VISCOSIDADE | D131: KG | E131: CR | F131: 131.97
A132: MATERIAL | B132: 156 | C132: ADESIVO ESTRUTURAL A BASE DE RESINA EPOXI, BICOMPONENTE, FLUIDO | D132: KG | E132: CR | F132: 46.99
A133: MATERIAL | B133: 131 | C133: ADESIVO ESTRUTURAL A BASE DE RESINA EPOXI, BICOMPONENTE, PASTOSO (TIXOTROPICO) | D133: KG | E133: CR | F133: 40.18
A134: MATERIAL | B134: 21114 | C134: ADESIVO PARA TUBOS CPVC, *75* G | D134: UN | E134: CR | F134: 32.98
A135: MATERIAL | B135: 119 | C135: ADESIVO PLASTICO PARA PVC, BISNAGA COM 75 GR | D135: UN | E135: C | F135: 8.36
A136: MATERIAL | B136: 122 | C136: ADESIVO PLASTICO PARA PVC, FRASCO COM *850* GR | D136: UN | E136: CR | F136: 64.32
A137: MATERIAL | B137: 20080 | C137: ADESIVO PLASTICO PARA PVC, FRASCO COM 175 GR | D137: UN | E137: CR | F137: 20.99
A138: MATERIAL | B138: 124 | C138: ADITIVO ACELERADOR DE PEGA E ENDURECIMENTO PARA ARGAMASSAS E CONCRETOS, LIQUIDO E ISENTO DE CLORETOS | D138: L | E138: CR | F138: 15.49
A139: MATERIAL | B139: 7334 | C139: ADITIVO ADESIVO LIQUIDO PARA ARGAMASSAS DE REVESTIMENTOS CIMENTICIOS | D139: L | E139: CR | F139: 14.62
A140: MATERIAL | B140: 45146 | C140: ADITIVO IMPERMEABILIZANTE CRISTALIZANTE PARA CONCRETO | D140: KG | E140: CR | F140: 29.71
A141: MATERIAL | B141: 123 | C141: ADITIVO IMPERMEABILIZANTE DE PEGA NORMAL PARA ARGAMASSAS E CONCRETOS SEM ARMACAO, LIQUIDO E ISENTO DE CLORETOS | D141: L | E141: C | F141: 6.34
A142: MATERIAL | B142: 127 | C142: ADITIVO IMPERMEABILIZANTE DE PEGA ULTRARRAPIDA, LIQUIDO E ISENTO DE CLORETOS | D142: L | E142: CR | F142: 15.13
A143: MATERIAL | B143: 133 | C143: ADITIVO LIQUIDO INCORPORADOR DE AR PARA CONCRETO E ARGAMASSA, LIQUIDO E ISENTO DE CLORETOS | D143: L | E143: CR | F143: 6.28
A144: MATERIAL | B144: 43617 | C144: ADITIVO PLASTIFICANTE E ESTABILIZADOR PARA ARGAMASSAS DE ASSENTAMENTO E REBOCO, LIQUIDO E ISENTO DE CLORETOS | D144: L | E144: CR | F144: 7.02
A145: MATERIAL | B145: 132 | C145: ADITIVO PLASTIFICANTE RETARDADOR DE PEGA E REDUTOR DE AGUA PARA CONCRETO, LIQUIDO E ISENTO DE CLORETOS | D145: L | E145: CR | F145: 6.51
A146: MATERIAL | B146: 43618 | C146: ADITIVO SUPERPLASTIFICANTE DE PEGA NORMAL PARA CONCRETO, LIQUIDO E ISENTO DE CLORETOS | D146: KG | E146: CR | F146: 16.4
A147: MATERIAL | B147: 37476 | C147: ADUELA/ GALERIA PRE-MOLDADA DE CONCRETO ARMADO, SECAO QUADRADA INTERNA DE 1,50 X 1,50 M (L X A), MISULA DE 20 X 20 CM, C = 1,00 M, ESPESSURA MIN = 15 CM, TB-45 E FCK DO CONCRETO = 30 MPA | D147: UN | E147: CR | F147: 3410.92
A148: MATERIAL | B148: 37478 | C148: ADUELA/ GALERIA PRE-MOLDADA DE CONCRETO ARMADO, SECAO RETANGULAR INTERNA DE 2,00 X 2,00 M (L X A), MISULA DE 20 X 20 CM, C = 1,00 M, ESPESSURA MIN = 15 CM, TB-45 E FCK DO CONCRETO = 30 MPA | D148: UN | E148: CR | F148: 4272.26
A149: MATERIAL | B149: 37477 | C149: ADUELA/ GALERIA PRE-MOLDADA DE CONCRETO ARMADO, SECAO RETANGULAR INTERNA DE 2,50 X 2,50 M (L X A), MISULA DE 20 X 20 CM, C = 1,00 M, ESPESSURA MIN = 15 CM, TB-45 E FCK DO CONCRETO = 30 MPA | D149: UN | E149: CR | F149: 5788.23
A150: MATERIAL | B150: 37479 | C150: ADUELA/ GALERIA PRE-MOLDADA DE CONCRETO ARMADO, SECAO RETANGULAR INTERNA DE 3,00 X 3,00 M (L X A), MISULA DE 20 X 20 CM, C = 1.00 M, ESPESSURA MIN = 20 CM, TB-45 E FCK DO CONCRETO = 30 MPA | D150: UN | E150: CR | F150: 6864.91
A151: MATERIAL | B151: 4319 | C151: AFASTADOR PARA TELHA DE FIBROCIMENTO CANALETE 90 OU KALHETAO | D151: UN | E151: CR | F151: 2.37
A152: MATERIAL | B152: 42409 | C152: AGENTE DE CURA, PROTETOR DA EVAPORACAO DA AGUA DE HIDRATACAO DO CONCRETO | D152: KG | E152: CR | F152: 10.33
A153: MATERIAL | B153: 40553 | C153: AGREGADO RECICLADO, TIPO RACHAO RECICLADO CINZA, CLASSE A | D153: M3 | E153: C
A154: MAO DE OBRA | B154: 6114 | C154: AJUDANTE DE ARMADOR (HORISTA) | D154: H | E154: CR | F154: 18.23
A155: MAO DE OBRA | B155: 40912 | C155: AJUDANTE DE ARMADOR (MENSALISTA) | D155: MES | E155: CR | F155: 3218.73
A156: MAO DE OBRA | B156: 247 | C156: AJUDANTE DE ELETRICISTA (HORISTA) | D156: H | E156: CR | F156: 18.23
A157: MAO DE OBRA | B157: 40919 | C157: AJUDANTE DE ELETRICISTA (MENSALISTA) | D157: MES | E157: CR | F157: 3218.73
A158: MAO DE OBRA | B158: 44499 | C158: AJUDANTE DE ESTRUTURAS METALICAS (HORISTA) | D158: H | E158: CR | F158: 18.23
A159: MAO DE OBRA | B159: 40984 | C159: AJUDANTE DE ESTRUTURAS METALICAS (MENSALISTA) | D159: MES | E159: CR | F159: 3218.73
A160: MAO DE OBRA | B160: 248 | C160: AJUDANTE DE OPERACAO EM GERAL (HORISTA) | D160: H | E160: CR | F160: 19.74
A161: MAO DE OBRA | B161: 41086 | C161: AJUDANTE DE OPERACAO EM GERAL (MENSALISTA) | D161: MES | E161: CR | F161: 3488.51
A162: MAO DE OBRA | B162: 34466 | C162: AJUDANTE DE PINTOR (HORISTA) | D162: H | E162: CR | F162: 18.23
A163: MAO DE OBRA | B163: 41083 | C163: AJUDANTE DE PINTOR (MENSALISTA) | D163: MES | E163: CR | F163: 3218.73
A164: MAO DE OBRA | B164: 252 | C164: AJUDANTE DE SERRALHEIRO (HORISTA) | D164: H | E164: CR | F164: 18.23
A165: MAO DE OBRA | B165: 40909 | C165: AJUDANTE DE SERRALHEIRO (MENSALISTA) | D165: MES | E165: CR | F165: 3218.73
A166: MAO DE OBRA | B166: 242 | C166: AJUDANTE ESPECIALIZADO (HORISTA) | D166: H | E166: CR | F166: 19.74
A167: MAO DE OBRA | B167: 41085 | C167: AJUDANTE ESPECIALIZADO (MENSALISTA) | D167: MES | E167: CR | F167: 3488.51
A168: MATERIAL | B168: 427 | C168: ALCA PREFORMADA DE CONTRA POSTE, EM ACO GALVANIZADO, PARA CABO 3/16", COMPRIMENTO *860* MM | D168: UN | E168: CR
A169: MATERIAL | B169: 417 | C169: ALCA PREFORMADA DE DISTRIBUICAO, EM ACO GALVANIZADO, PARA CABO DE ALUMINIO DIAMETRO 16 A 25 MM | D169: UN | E169: CR
A170: MATERIAL | B170: 11273 | C170: ALCA PREFORMADA DE DISTRIBUICAO, EM ACO GALVANIZADO, PARA CONDUTORES DE ALUMINIO AWG 1/0 (CAA 6/1 OU CA 7 FIOS) | D170: UN | E170: CR
A171: MATERIAL | B171: 11272 | C171: ALCA PREFORMADA DE DISTRIBUICAO, EM ACO GALVANIZADO, PARA CONDUTORES DE ALUMINIO AWG 2 (CAA 6/1 OU CA 7 FIOS) | D171: UN | E171: CR
A172: MATERIAL | B172: 11275 | C172: ALCA PREFORMADA DE SERVICO, EM ACO GALVANIZADO, PARA CONDUTORES DE ALUMINIO AWG 4 (CAA 6/1) | D172: UN | E172: CR
A173: MATERIAL | B173: 11274 | C173: ALCA PREFORMADA DE SERVICO, EM ACO GALVANIZADO, PARA CONDUTORES DE ALUMINIO AWG 6 (CAA 6/1) | D173: UN | E173: CR
A174: MATERIAL | B174: 45250 | C174: ALICATE BICO LONGO (MEIA CANA) 6", COM ISOLAMENTO ATE 1000 V | D174: UN | E174: CR | F174: 42.26
A175: MATERIAL | B175: 38470 | C175: ALICATE DE CORTE DIAGONAL 6" COM ISOLAMENTO | D175: UN | E175: CR | F175: 43.26
A176: MATERIAL | B176: 38547 | C176: ALICATE DE CRIMPAR RJ11, RJ12 E RJ45, COM CATRACA | D176: UN | E176: CR | F176: 287.18
A177: MATERIAL | B177: 38467 | C177: ALICATE DE PRESSAO 11" PARA SOLDA, TIPO C | D177: UN | E177: CR | F177: 168.04
A178: MATERIAL | B178: 38468 | C178: ALICATE DE PRESSAO 11" PARA SOLDA, TIPO U | D178: UN | E178: CR | F178: 209.76
A179: MATERIAL | B179: 38469 | C179: ALICATE DE PRESSAO PARA SOLDA DE CHAPA 18" | D179: UN | E179: CR | F179: 274.21
A180: MATERIAL | B180: 45197 | C180: ALICATE DESENCAPADOR AUTOMATICO 8" | D180: UN | E180: CR | F180: 218.69
A181: MATERIAL | B181: 38471 | C181: ALICATE PARA ANEIS DE PISTAO, CAPACIDADE *50* A 100 MM | D181: UN | E181: CR | F181: 293.28
A182: MATERIAL | B182: 45206 | C182: ALICATE PROFISSIONAL 8", UNIVERSAL, COM ISOLAMENTO ATE 1000 V | D182: UN | E182: CR | F182: 57.94
A183: MATERIAL | B183: 37370 | C183: ALIMENTACAO - HORISTA (COLETADO CAIXA - ENCARGOS COMPLEMENTARES) | D183: H | E183: C | F183: 2.12
A184: MATERIAL | B184: 40862 | C184: ALIMENTACAO - MENSALISTA (COLETADO CAIXA - ENCARGOS COMPLEMENTARES) | D184: MES | E184: C | F184: 399.66
A185: EQUIPAMENTO (AQUISIÇÃO) | B185: 10658 | C185: ALISADORA DE CONCRETO COM MOTOR A GASOLINA DE 5,5 HP, PESO COM MOTOR DE 78 KG, 4 PAS | D185: UN | E185: C
A186: MAO DE OBRA | B186: 253 | C186: ALMOXARIFE (HORISTA) | D186: H | E186: C | F186: 24.12
A187: MAO DE OBRA | B187: 40809 | C187: ALMOXARIFE (MENSALISTA) | D187: MES | E187: CR | F187: 4258.84
A188: MATERIAL | B188: 42428 | C188: ALONGADOR COM TRES ALTURAS, EM TUBO DE ACO CARBONO, PINTURA NO PROCESSO ELETROSTATICO - EQUIPAMENTO DE GINASTICA PARA ACADEMIA AO AR LIVRE / ACADEMIA DA TERCEIRA IDADE - ATI | D188: UN | E188: C
A189: MATERIAL | B189: 301 | C189: ANEL BORRACHA PARA TUBO ESGOTO PREDIAL, DN 100 MM (NBR 5688) | D189: UN | E189: C | F189: 2.93
A190: MATERIAL | B190: 296 | C190: ANEL BORRACHA PARA TUBO ESGOTO PREDIAL, DN 50 MM (NBR 5688) | D190: UN | E190: CR | F190: 1.65
A191: MATERIAL | B191: 297 | C191: ANEL BORRACHA PARA TUBO ESGOTO PREDIAL, DN 75 MM (NBR 5688) | D191: UN | E191: CR | F191: 2.43
A192: MATERIAL | B192: 299 | C192: ANEL BORRACHA, DN 100 MM, PARA TUBO SERIE REFORCADA ESGOTO PREDIAL | D192: UN | E192: CR | F192: 3.44
A193: MATERIAL | B193: 300 | C193: ANEL BORRACHA, DN 150 MM, PARA TUBO SERIE REFORCADA ESGOTO PREDIAL | D193: UN | E193: CR | F193: 11.89
A194: MATERIAL | B194: 20085 | C194: ANEL BORRACHA, DN 50 MM, PARA TUBO SERIE REFORCADA ESGOTO PREDIAL | D194: UN | E194: CR | F194: 2.17
A195: MATERIAL | B195: 298 | C195: ANEL BORRACHA, DN 75 MM, PARA TUBO SERIE REFORCADA ESGOTO PREDIAL | D195: UN | E195: CR | F195: 2.64
A196: MATERIAL | B196: 311 | C196: ANEL BORRACHA, PARA TUBO PVC DEFOFO, DN 100 MM (NBR 7665) | D196: UN | E196: CR | F196: 9.81
A197: MATERIAL | B197: 318 | C197: ANEL BORRACHA, PARA TUBO PVC DEFOFO, DN 150 MM (NBR 7665) | D197: UN | E197: CR | F197: 19.75
A198: MATERIAL | B198: 319 | C198: ANEL BORRACHA, PARA TUBO PVC DEFOFO, DN 200 MM (NBR 7665) | D198: UN | E198: CR | F198: 30.97
A199: MATERIAL | B199: 303 | C199: ANEL BORRACHA, PARA TUBO PVC, REDE COLETOR ESGOTO, DN 100 MM (NBR 7362) | D199: UN | E199: CR | F199: 3.24
A200: MATERIAL | B200: 305 | C200: ANEL BORRACHA, PARA TUBO PVC, REDE COLETOR ESGOTO, DN 150 MM (NBR 7362) | D200: UN | E200: CR | F200: 10.21
A201: MATERIAL | B201: 306 | C201: ANEL BORRACHA, PARA TUBO PVC, REDE COLETOR ESGOTO, DN 200 MM (NBR 7362) | D201: UN | E201: CR | F201: 15.48
... 4706 more rows

Sheet Passagens aérea
B1: Preço
A2: Média | B2: =AVERAGE(C9,C29,O9,O29,Z9,Z29) -> 899.2777778
A3: Mediana | B3: =MEDIAN(C9,C29,O9,O29,Z9,Z29) -> 814
A4: Menor | B4: =SMALL(B2:B3,1) -> 814
A7: SÃO PAULO - MONTES CLAROS | M7: BRASÍLIA - MONTES CLAROS | X7: BELO HORIZONTE - MONTES CLAROS
A9: 1º SEMESTRE | C9: =(678+702)/2 -> 690 | M9: 1º SEMESTRE | O9: =(878+1296+2115)/3 -> 1429.666667 | X9: 1º SEMESTRE | Z9: 814
A29: 2º SEMESTRE | C29: =(764+954)/2 -> 859 | M29: 2º SEMESTRE | O29: =(788+788+791)/3 -> 789 | X29: 2º SEMESTRE | Z29: 814

Sheet MÃO DE OBRA
A1: Código | B1: Descrição | C1: Unidade | D1: Custo (R$)
A2: P9801 | B2: Ajudante | C2: h | D2: 23.3513
A3: P9802 | B3: Ajudante especializado | C3: h | D3: 27.389
A4: P9803 | B4: Almoxarife | C4: mês | D4: 6892.3124
A5: P9804 | B5: Apontador | C5: mês | D5: 4439.8839
A6: P9805 | B6: Armador | C6: h | D6: 35.2024
A7: P9806 | B7: Auxiliar administrativo | C7: mês | D7: 4564.7979
A8: P9807 | B8: Bombeiro hidráulico | C8: h | D8: 35.7542
A9: P9808 | B9: Carpinteiro | C9: h | D9: 26.8814
A10: P9809 | B10: Encarregado administrativo | C10: mês | D10: 9380.3387
A11: P9810 | B11: Eletricista | C11: h | D11: 29.8827
A12: P9811 | B12: Encarregado especializado | C12: mês | D12: 9444.5865
A13: P9812 | B13: Engenheiro | C13: mês | D13: 26402.7353
A14: P9814 | B14: Operacional | C14: mês | D14: 4222.9112
A15: P9815 | B15: Jardineiro | C15: h | D15: 28.2415
A16: P9819 | B16: Engenheiro supervisor | C16: mês | D16: 26402.7353
A17: P9821 | B17: Pedreiro | C17: h | D17: 27.1322
A18: P9822 | B18: Pintor | C18: h | D18: 35.1931
A19: P9823 | B19: Serralheiro | C19: h | D19: 35.1397
A20: P9824 | B20: Servente | C20: h | D20: 21.4354
A21: P9825 | B21: Soldador | C21: h | D21: 44.9887
A22: P9826 | B22: Chefe setor de finanças | C22: mês | D22: 26566.4755
A23: P9827 | B23: Vigia | C23: mês | D23: 4795.6009
A24: P9830 | B24: Montador | C24: h | D24: 38.2603
A25: P9833 | B25: Auxiliar de laboratório | C25: mês | D25: 6457.7923
A26: P9837 | B26: Oceanógrafo | C26: mês | D26: 12409.2716
A27: P9840 | B27: Encarregado geral | C27: mês | D27: 13559.4041
A28: P9842 | B28: Faxineiro | C28: mês | D28: 5221.7317
A29: P9843 | B29: Operador de equipamento leve | C29: h | D29: 25.4133
A30: P9845 | B30: Operador de equipamento pesado | C30: h | D30: 35.9678
A31: P9846 | B31: Operador de equipamento especial | C31: h | D31: 46.1153
A32: P9847 | B32: Perfurador de tubulão | C32: h | D32: 23.3306
A33: P9848 | B33: Desenhista | C33: mês | D33: 10596.2344
A34: P9849 | B34: Condutor maquinista fluvial | C34: mês | D34: 5793.809
A35: P9850 | B35: Copeiro | C35: mês | D35: 5189.0419
A36: P9851 | B36: Médico do trabalho | C36: mês | D36: 18793.2286
A37: P9852 | B37: Blaster | C37: h | D37: 40.4267
A38: P9853 | B38: Pré-marcador | C38: h | D38: 23.214
A39: P9854 | B39: Recepcionista | C39: mês | D39: 5154.9562
A40: P9855 | B40: Marinheiro de máquinas | C40: mês | D40: 5392.5519
A41: P9856 | B41: Marinheiro de convés | C41: h | D41: 29.1508
A42: P9857 | B42: Marinheiro de convés - mensalista | C42: mês | D42: 5362.8194
A43: P9858 | B43: Laboratorista | C43: mês | D43: 6457.7923
A44: P9859 | B44: Trabalhador de via | C44: h | D44: 21.459
A45: P9861 | B45: Selecionador de material pétreo | C45: h | D45: 23.2602
A46: P9864 | B46: Engenheiro de segurança do trabalho | C46: mês | D46: 24638.1899
A47: P9866 | B47: Motorista de caminhão | C47: h | D47: 30.1852
A48: P9867 | B48: Técnico especializado - mensalista | C48: mês | D48: 8474.3917
A49: P9869 | B49: Encarregado de obras de artes especiais | C49: mês | D49: 9444.5865
A50: P9870 | B50: Motorista de veículo leve | C50: h | D50: 28.4394
A51: P9871 | B51: Motorista de veículo especial | C51: h | D51: 34.9157
A52: P9875 | B52: Encarregado de turma | C52: mês | D52: 6186.1723
A53: P9876 | B53: Técnico de segurança do trabalho | C53: mês | D53: 7971.3544
A54: P9878 | B54: Secretária | C54: mês | D54: 6617.4312
A55: P9880 | B55: Piloto fluvial | C55: mês | D55: 7681.1978
A56: P9882 | B56: Técnico especializado | C56: h | D56: 45.82
A57: P9883 | B57: Chefe do setor administrativo | C57: mês | D57: 9380.4342
A58: P9884 | B58: Encarregado de terraplenagem | C58: mês | D58: 9444.5865
A59: P9885 | B59: Frentista de túnel | C59: h | D59: 23.7193
A60: P9889 | B60: Técnico da qualidade | C60: mês | D60: 8883.0811
A61: P9892 | B61: Auxiliar de blaster | C61: h | D61: 35.3631
A62: P9893 | B62: Encarregado de pavimentação | C62: mês | D62: 9444.5865
A63: P9896 | B63: Porteiro | C63: mês | D63: 5217.4935
A64: P9897 | B64: Técnico de meio ambiente | C64: mês | D64: 7780.7644
A65: P9900 | B65: Comprador | C65: mês | D65: 9178.561
A66: P9901 | B66: Encarregado de superestrutura ferroviária | C66: mês | D66: 9444.5865
A67: P9903 | B67: Auxiliar técnico | C67: mês | D67: 5322.5562
A68: P9907 | B68: Comandante de longo curso | C68: mês | D68: 20406.5748
A69: P9908 | B69: Imediato | C69: mês | D69: 16496.0338
A70: P9909 | B70: Oficial de náutica | C70: mês | D70: 6710.0394
A71: P9910 | B71: Oficial de máquinas | C71: mês | D71: 6537.6874
A72: P9913 | B72: Draguista | C72: mês | D72: 6517.2139
A73: P9915 | B73: Maquinista | C73: h | D73: 33.6652
A74: P9916 | B74: Encarregado de conservação rodoviária | C74: mês | D74: 9444.5865
A75: P9920 | B75: Mestre fluvial | C75: mês | D75: 8583.8884
A76: P9921 | B76: Mergulhador raso autônomo de emergência | C76: h | D76: 38.9431
A77: P9922 | B77: Mergulhador raso dependente de emergência | C77: h | D77: 40.5121
A78: P9924 | B78: Mergulhador raso dependente | C78: h | D78: 52.6832
A79: P9925 | B79: Mergulhador raso autônomo | C79: h | D79: 48.9012
A80: P9926 | B80: Mergulhador raso auxiliar de superfície | C80: h | D80: 36.8397
A81: P9927 | B81: Frentista de túnel com periculosidade | C81: h | D81: 28.823
A82: P9930 | B82: Eletricista com periculosidade | C82: h | D82: 36.82
A83: P9931 | B83: Operador de equipamento de mergulho | C83: h | D83: 58.7273
A84: P9932 | B84: Operador de equipamento pesado com periculosidade | C84: h | D84: 44.8901
A85: P9933 | B85: Supervisor de mergulho raso | C85: mês | D85: 10832.5565
A86: P9934 | B86: Motorista de veículo especial com periculosidade | C86: h | D86: 43.547
A87: P9938 | B87: Operador de equipamento leve com periculosidade | C87: h | D87: 31.1649
A88: P9939 | B88: Operador de equipamento leve com insalubridade | C88: h | D88: 33.1912
A89: P9942 | B89: Marinheiro de convés com periculosidade | C89: h | D89: 35.9468
A90: P9944 | B90: Operador de equipamento especial com periculosidade | C90: h | D90: 58.1079
A91: P9946 | B91: Engenheiro auxiliar | C91: mês | D91: 23902.33
A92: P9947 | B92: Técnico florestal | C92: mês | D92: 7780.7644
A93: P9948 | B93: Motorista de veículo leve - mensalista | C93: mês | D93: 5249.3943
A94: P9949 | B94: Topógrafo | C94: mês | D94: 6936.533
A95: P9950 | B95: Auxiliar de topografia | C95: mês | D95: 6476.477
A96: P9951 | B96: Médico de câmara hiperbárica | C96: mês | D96: 21365.4637
A97: P9952 | B97: Pedreiro - mensalista | C97: mês | D97: 5027.4281
A98: P9953 | B98: Eletricista - mensalista | C98: mês | D98: 5522.846
A99: P9954 | B99: Servente - mensalista | C99: mês | D99: 3974.4769
A100: P9955 | B100: Engenheiro chefe | C100: mês | D100: 33456.5173
A101: P9956 | B101: Motorista de caminhão com periculosidade | C101: h | D101: 37.3973
A102: P9972 | B102: Técnico de batimetria | C102: mês | D102: 6696.4841

Sheet SICRO
A1: Código | B1: Descrição do Serviço | C1: Unidade | D1: Custo Unitário (R$)
A2: 307731 | B2: Aparelho de apoio de neoprene fretado para estruturas moldadas no local - fornecimento e instalação | C2: dm³ | D2: 143.99
A3: 307732 | B3: Aparelho de apoio de neoprene fretado para estruturas pré-moldadas - fornecimento e instalação | C3: dm³ | D3: 119.15
A4: 308308 | B4: Aparelho de apoio metálico elastomérico fixo com capacidade de 1.500 kN - fornecimento e instalação | C4: un | D4: 5410.19
A5: 308313 | B5: Aparelho de apoio metálico elastomérico fixo com capacidade de 10.000 kN - fornecimento e instalação | C5: un | D5: 33411.1
A6: 308309 | B6: Aparelho de apoio metálico elastomérico fixo com capacidade de 2.500 kN - fornecimento e instalação | C6: un | D6: 8935.21
A7: 308310 | B7: Aparelho de apoio metálico elastomérico fixo com capacidade de 4.000 kN - fornecimento e instalação | C7: un | D7: 12150.43
A8: 308311 | B8: Aparelho de apoio metálico elastomérico fixo com capacidade de 5.500 kN - fornecimento e instalação | C8: un | D8: 17145.41
A9: 308312 | B9: Aparelho de apoio metálico elastomérico fixo com capacidade de 7.500 kN - fornecimento e instalação | C9: un | D9: 23904.34
A10: 308307 | B10: Aparelho de apoio metálico elastomérico fixo com capacidade de 700 kN - fornecimento e instalação | C10: un | D10: 3280.87
A11: 308322 | B11: Aparelho de apoio metálico elastomérico multidirecional com capacidade de 1.500 kN - fornecimento e instalação | C11: un | D11: 4926.72
A12: 308327 | B12: Aparelho de apoio metálico elastomérico multidirecional com capacidade de 10.000 kN - fornecimento e instalação | C12: un | D12: 29745.36
A13: 308323 | B13: Aparelho de apoio metálico elastomérico multidirecional com capacidade de 2.500 kN - fornecimento e instalação | C13: un | D13: 7644.93
A14: 308324 | B14: Aparelho de apoio metálico elastomérico multidirecional com capacidade de 4.000 kN - fornecimento e instalação | C14: un | D14: 11309.57
A15: 308325 | B15: Aparelho de apoio metálico elastomérico multidirecional com capacidade de 5.500 kN - fornecimento e instalação | C15: un | D15: 15935.36
A16: 308326 | B16: Aparelho de apoio metálico elastomérico multidirecional com capacidade de 7.500 kN - fornecimento e instalação | C16: un | D16: 22083.11
A17: 308321 | B17: Aparelho de apoio metálico elastomérico multidirecional com capacidade de 700 kN - fornecimento e instalação | C17: un | D17: 4651.31
A18: 308315 | B18: Aparelho de apoio metálico elastomérico unidirecional com capacidade de 1.500 kN - fornecimento e instalação | C18: un | D18: 6357.34
A19: 308320 | B19: Aparelho de apoio metálico elastomérico unidirecional com capacidade de 10.000 kN - fornecimento e instalação | C19: un | D19: 45158.06
A20: 308316 | B20: Aparelho de apoio metálico elastomérico unidirecional com capacidade de 2.500 kN - fornecimento e instalação | C20: un | D20: 9117.91
A21: 308317 | B21: Aparelho de apoio metálico elastomérico unidirecional com capacidade de 4.000 kN - fornecimento e instalação | C21: un | D21: 17635.56
A22: 308318 | B22: Aparelho de apoio metálico elastomérico unidirecional com capacidade de 5.500 kN - fornecimento e instalação | C22: un | D22: 23213.8
A23: 308319 | B23: Aparelho de apoio metálico elastomérico unidirecional com capacidade de 7.500 kN - fornecimento e instalação | C23: un | D23: 25622.75
A24: 308314 | B24: Aparelho de apoio metálico elastomérico unidirecional com capacidade de 700 kN - fornecimento e instalação | C24: un | D24: 4667.07
A25: 308250 | B25: Aparelho de apoio metálico esférico fixo com capacidade de 1.000 kN - fornecimento e instalação | C25: un | D25: 7345.51
A26: 308251 | B26: Aparelho de apoio metálico esférico fixo com capacidade de 1.500 kN - fornecimento e instalação | C26: un | D26: 11454.19
A27: 308268 | B27: Aparelho de apoio metálico esférico fixo com capacidade de 10.000 kN - fornecimento e instalação | C27: un | D27: 74978.85
A28: 308252 | B28: Aparelho de apoio metálico esférico fixo com capacidade de 2.000 kN - fornecimento e instalação | C28: un | D28: 13284.26
A29: 308253 | B29: Aparelho de apoio metálico esférico fixo com capacidade de 2.500 kN - fornecimento e instalação | C29: un | D29: 16077.17
A30: 308254 | B30: Aparelho de apoio metálico esférico fixo com capacidade de 3.000 kN - fornecimento e instalação | C30: un | D30: 18923.75
A31: 308255 | B31: Aparelho de apoio metálico esférico fixo com capacidade de 3.500 kN - fornecimento e instalação | C31: un | D31: 22167.08
A32: 308256 | B32: Aparelho de apoio metálico esférico fixo com capacidade de 4.000 kN - fornecimento e instalação | C32: un | D32: 29788.56
A33: 308257 | B33: Aparelho de apoio metálico esférico fixo com capacidade de 4.500 kN - fornecimento e instalação | C33: un | D33: 32083.38
A34: 308258 | B34: Aparelho de apoio metálico esférico fixo com capacidade de 5.000 kN - fornecimento e instalação | C34: un | D34: 35831.4
A35: 308259 | B35: Aparelho de apoio metálico esférico fixo com capacidade de 5.500 kN - fornecimento e instalação | C35: un | D35: 37890.8
A36: 308260 | B36: Aparelho de apoio metálico esférico fixo com capacidade de 6.000 kN - fornecimento e instalação | C36: un | D36: 42675.56
A37: 308261 | B37: Aparelho de apoio metálico esférico fixo com capacidade de 6.500 kN - fornecimento e instalação | C37: un | D37: 46080.7
A38: 308262 | B38: Aparelho de apoio metálico esférico fixo com capacidade de 7.000 kN - fornecimento e instalação | C38: un | D38: 54644.34
A39: 308263 | B39: Aparelho de apoio metálico esférico fixo com capacidade de 7.500 kN - fornecimento e instalação | C39: un | D39: 54668.99
A40: 308264 | B40: Aparelho de apoio metálico esférico fixo com capacidade de 8.000 kN - fornecimento e instalação | C40: un | D40: 57009.66
A41: 308265 | B41: Aparelho de apoio metálico esférico fixo com capacidade de 8.500 kN - fornecimento e instalação | C41: un | D41: 58539.26
A42: 308266 | B42: Aparelho de apoio metálico esférico fixo com capacidade de 9.000 kN - fornecimento e instalação | C42: un | D42: 67301.81
A43: 308267 | B43: Aparelho de apoio metálico esférico fixo com capacidade de 9.500 kN - fornecimento e instalação | C43: un | D43: 71401.04
A44: 308288 | B44: Aparelho de apoio metálico esférico multidirecional com capacidade de 1.000 kN - fornecimento e instalação | C44: un | D44: 8264.02
A45: 308289 | B45: Aparelho de apoio metálico esférico multidirecional com capacidade de 1.500 kN - fornecimento e instalação | C45: un | D45: 11458.92
A46: 308306 | B46: Aparelho de apoio metálico esférico multidirecional com capacidade de 10.000 kN - fornecimento e instalação | C46: un | D46: 74018.37
A47: 308290 | B47: Aparelho de apoio metálico esférico multidirecional com capacidade de 2.000 kN - fornecimento e instalação | C47: un | D47: 15018.57
A48: 308291 | B48: Aparelho de apoio metálico esférico multidirecional com capacidade de 2.500 kN - fornecimento e instalação | C48: un | D48: 17950.52
A49: 308292 | B49: Aparelho de apoio metálico esférico multidirecional com capacidade de 3.000 kN - fornecimento e instalação | C49: un | D49: 20720.19
A50: 308293 | B50: Aparelho de apoio metálico esférico multidirecional com capacidade de 3.500 kN - fornecimento e instalação | C50: un | D50: 23423.5
A51: 308294 | B51: Aparelho de apoio metálico esférico multidirecional com capacidade de 4.000 kN - fornecimento e instalação | C51: un | D51: 26554.39
A52: 308295 | B52: Aparelho de apoio metálico esférico multidirecional com capacidade de 4.500 kN - fornecimento e instalação | C52: un | D52: 30643.24
A53: 308296 | B53: Aparelho de apoio metálico esférico multidirecional com capacidade de 5.000 kN - fornecimento e instalação | C53: un | D53: 34103.99
A54: 308297 | B54: Aparelho de apoio metálico esférico multidirecional com capacidade de 5.500 kN - fornecimento e instalação | C54: un | D54: 36870.92
A55: 308298 | B55: Aparelho de apoio metálico esférico multidirecional com capacidade de 6.000 kN - fornecimento e instalação | C55: un | D55: 42761.96
A56: 308299 | B56: Aparelho de apoio metálico esférico multidirecional com capacidade de 6.500 kN - fornecimento e instalação | C56: un | D56: 46204.64
A57: 308300 | B57: Aparelho de apoio metálico esférico multidirecional com capacidade de 7.000 kN - fornecimento e instalação | C57: un | D57: 49736.47
A58: 308301 | B58: Aparelho de apoio metálico esférico multidirecional com capacidade de 7.500 kN - fornecimento e instalação | C58: un | D58: 53633.71
A59: 308302 | B59: Aparelho de apoio metálico esférico multidirecional com capacidade de 8.000 kN - fornecimento e instalação | C59: un | D59: 57701.75
A60: 308303 | B60: Aparelho de apoio metálico esférico multidirecional com capacidade de 8.500 kN - fornecimento e instalação | C60: un | D60: 62904.61
A61: 308304 | B61: Aparelho de apoio metálico esférico multidirecional com capacidade de 9.000 kN - fornecimento e instalação | C61: un | D61: 66460.97
A62: 308305 | B62: Aparelho de apoio metálico esférico multidirecional com capacidade de 9.500 kN - fornecimento e instalação | C62: un | D62: 70507.52
A63: 308269 | B63: Aparelho de apoio metálico esférico unidirecional com capacidade de 1.000 kN - fornecimento e instalação | C63: un | D63: 10891.26
A64: 308270 | B64: Aparelho de apoio metálico esférico unidirecional com capacidade de 1.500 kN - fornecimento e instalação | C64: un | D64: 14919.89
A65: 308287 | B65: Aparelho de apoio metálico esférico unidirecional com capacidade de 10.000 kN - fornecimento e instalação | C65: un | D65: 81563.5
A66: 308271 | B66: Aparelho de apoio metálico esférico unidirecional com capacidade de 2.000 kN - fornecimento e instalação | C66: un | D66: 18159.96
A67: 308272 | B67: Aparelho de apoio metálico esférico unidirecional com capacidade de 2.500 kN - fornecimento e instalação | C67: un | D67: 21541.62
A68: 308273 | B68: Aparelho de apoio metálico esférico unidirecional com capacidade de 3.000 kN - fornecimento e instalação | C68: un | D68: 24631.02
A69: 308274 | B69: Aparelho de apoio metálico esférico unidirecional com capacidade de 3.500 kN - fornecimento e instalação | C69: un | D69: 28542.71
A70: 308275 | B70: Aparelho de apoio metálico esférico unidirecional com capacidade de 4.000 kN - fornecimento e instalação | C70: un | D70: 31906.58
A71: 308276 | B71: Aparelho de apoio metálico esférico unidirecional com capacidade de 4.500 kN - fornecimento e instalação | C71: un | D71: 36591.03
A72: 308277 | B72: Aparelho de apoio metálico esférico unidirecional com capacidade de 5.000 kN - fornecimento e instalação | C72: un | D72: 41351.23
A73: 308278 | B73: Aparelho de apoio metálico esférico unidirecional com capacidade de 5.500 kN - fornecimento e instalação | C73: un | D73: 43817.49
A74: 308279 | B74: Aparelho de apoio metálico esférico unidirecional com capacidade de 6.000 kN - fornecimento e instalação | C74: un | D74: 49001.13
A75: 308280 | B75: Aparelho de apoio metálico esférico unidirecional com capacidade de 6.500 kN - fornecimento e instalação | C75: un | D75: 52467.88
A76: 308281 | B76: Aparelho de apoio metálico esférico unidirecional com capacidade de 7.000 kN - fornecimento e instalação | C76: un | D76: 56336.03
A77: 308282 | B77: Aparelho de apoio metálico esférico unidirecional com capacidade de 7.500 kN - fornecimento e instalação | C77: un | D77: 60451.35
A78: 308283 | B78: Aparelho de apoio metálico esférico unidirecional com capacidade de 8.000 kN - fornecimento e instalação | C78: un | D78: 64227.59
A79: 308284 | B79: Aparelho de apoio metálico esférico unidirecional com capacidade de 8.500 kN - fornecimento e instalação | C79: un | D79: 69211.73
A80: 308285 | B80: Aparelho de apoio metálico esférico unidirecional com capacidade de 9.000 kN - fornecimento e instalação | C80: un | D80: 73257.69
A81: 308286 | B81: Aparelho de apoio metálico esférico unidirecional com capacidade de 9.500 kN - fornecimento e instalação | C81: un | D81: 77457.12
A82: 307733 | B82: Junta de dilatação em elastômero e perfil VV - L = 20 mm e H = 40 mm - fornecimento e instalação | C82: m | D82: 269.81
A83: 307734 | B83: Junta de dilatação em elastômero e perfil VV - L = 25 mm e H = 50 mm - fornecimento e instalação | C83: m | D83: 318.25
A84: 307735 | B84: Junta de dilatação em elastômero e perfil VV - L = 35 mm e H = 60 mm - fornecimento e instalação | C84: m | D84: 417.62
A85: 307736 | B85: Junta de dilatação em elastômero e perfil VV - L = 40 mm e H = 70 mm - fornecimento e instalação | C85: m | D85: 557.27
A86: 307737 | B86: Junta de dilatação em elastômero e perfil VV - L = 50 mm e H = 80 mm - fornecimento e instalação | C86: m | D86: 587.21
A87: 307730 | B87: Junta de dilatação em perfil extrudado de borracha vulcanizada | C87: m | D87: 0
A88: 307084 | B88: Lábios poliméricos em junta de pavimento de concreto - L = 20 mm e H = 30 mm - confecção e assentamento | C88: m | D88: 33.06
A89: 407818 | B89: Armação em aço CA-25 - fornecimento, preparo e colocação | C89: kg | D89: 12.08
A90: 407819 | B90: Armação em aço CA-50 - fornecimento, preparo e colocação | C90: kg | D90: 12.47
A91: 407820 | B91: Armação em aço CA-60 - fornecimento, preparo e colocação | C91: kg | D91: 13.55
A92: 407740 | B92: Chumbador tipo espera em aço CA-25 para fixação de estrutura metálica em concreto - fornecimento e instalação | C92: kg | D92: 15.54
A93: 408037 | B93: Luva de emenda com rosca cônica para aço CA-50 - D = 12,5 mm - fornecimento e instalação | C93: un | D93: 19.35
A94: 408038 | B94: Luva de emenda com rosca cônica para aço CA-50 - D = 16 mm - fornecimento e instalação | C94: un | D94: 29.89
A95: 408039 | B95: Luva de emenda com rosca cônica para aço CA-50 - D = 20 mm - fornecimento e instalação | C95: un | D95: 41.11
A96: 408041 | B96: Luva de emenda com rosca cônica para aço CA-50 - D = 25 mm - fornecimento e instalação | C96: un | D96: 52.7
A97: 408042 | B97: Luva de emenda com rosca cônica para aço CA-50 - D = 32 mm - fornecimento e instalação | C97: un | D97: 76.91
A98: 408031 | B98: Luva de emenda prensada para aço CA-50 - D = 12,5 mm - fornecimento e instalação | C98: un | D98: 21.59
A99: 408032 | B99: Luva de emenda prensada para aço CA-50 - D = 16 mm - fornecimento e instalação | C99: un | D99: 29.37
A100: 408033 | B100: Luva de emenda prensada para aço CA-50 - D = 20 mm - fornecimento e instalação | C100: un | D100: 39.56
A101: 408035 | B101: Luva de emenda prensada para aço CA-50 - D = 25 mm - fornecimento e instalação | C101: un | D101: 67
A102: 408036 | B102: Luva de emenda prensada para aço CA-50 - D = 32 mm - fornecimento e instalação | C102: un | D102: 149.03
A103: 408067 | B103: Tela de aço eletrossoldada - fornecimento, preparo e colocação | C103: kg | D103: 10.94
A104: 407743 | B104: Treliça nervurada três barras longitudinais interligadas por duas diagonais sinusoidal - fornecimento e instalação | C104: kg | D104: 10.68
A105: 607137 | B105: Arco metálico galvanizado tipo MP 152S - arco alto - vão = 10,08 m e altura = 6,12 m - aterro rodoviário mínimo = 0,90 m e máximo = 5,00 m - areia e brita comerciais | C105: m | D105: 54914.45
A106: 606785 | B106: Arco metálico galvanizado tipo MP 152S - arco alto - vão = 10,08 m e altura = 6,12 m - aterro rodoviário mínimo = 0,90 m e máximo = 5,00 m - areia extraída e brita produzida | C106: m | D106: 54047.68
A107: 607139 | B107: Arco metálico galvanizado tipo MP 152S - arco alto - vão = 10,31 m e altura = 6,17 m - aterro rodoviário mínimo = 0,90 m e máximo = 4,90 m - areia e brita comerciais | C107: m | D107: 55666.13
A108: 606787 | B108: Arco metálico galvanizado tipo MP 152S - arco alto - vão = 10,31 m e altura = 6,17 m - aterro rodoviário mínimo = 0,90 m e máximo = 4,90 m - areia extraída e brita produzida | C108: m | D108: 54464.22
A109: 607140 | B109: Arco metálico galvanizado tipo MP 152S - arco alto - vão = 10,36 m e altura = 5,38 m - aterro rodoviário mínimo = 1,20 m e máximo = 3,60 m - areia e brita comerciais | C109: m | D109: 50729.74
A110: 606788 | B110: Arco metálico galvanizado tipo MP 152S - arco alto - vão = 10,36 m e altura = 5,38 m - aterro rodoviário mínimo = 1,20 m e máximo = 3,60 m - areia extraída e brita produzida | C110: m | D110: 50273.95
A111: 607141 | B111: Arco metálico galvanizado tipo MP 152S - arco alto - vão = 10,54 m e altura = 6,05 m - aterro rodoviário mínimo = 1,20 m e máximo = 4,20 m - areia e brita comerciais | C111: m | D111: 56736.2
A112: 606789 | B112: Arco metálico galvanizado tipo MP 152S - arco alto - vão = 10,54 m e altura = 6,05 m - aterro rodoviário mínimo = 1,20 m e máximo = 4,20 m - areia extraída e brita produzida | C112: m | D112: 55835.39
A113: 607144 | B113: Arco metálico galvanizado tipo MP 152S - arco alto - vão = 10,57 m e altura = 5,41 m - aterro rodoviário mínimo = 1,20 m e máximo = 4,10 m - areia e brita comerciais | C113: m | D113: 65528.52
A114: 606792 | B114: Arco metálico galvanizado tipo MP 152S - arco alto - vão = 10,57 m e altura = 5,41 m - aterro rodoviário mínimo = 1,20 m e máximo = 4,10 m - areia extraída e brita produzida | C114: m | D114: 64705.74
A115: 607142 | B115: Arco metálico galvanizado tipo MP 152S - arco alto - vão = 10,74 m e altura = 6,48 m - aterro rodoviário mínimo = 1,20 m e máximo = 4,70 m - areia e brita comerciais | C115: m | D115: 59565.49
A116: 606790 | B116: Arco metálico galvanizado tipo MP 152S - arco alto - vão = 10,74 m e altura = 6,48 m - aterro rodoviário mínimo = 1,20 m e máximo = 4,70 m - areia extraída e brita produzida | C116: m | D116: 58596.58
A117: 607145 | B117: Arco metálico galvanizado tipo MP 152S - arco alto - vão = 10,77 m e altura = 6,10 m - aterro rodoviário mínimo = 1,20 m e máximo = 4,70 m - areia e brita comerciais | C117: m | D117: 72562.8
A118: 606793 | B118: Arco metálico galvanizado tipo MP 152S - arco alto - vão = 10,77 m e altura = 6,10 m - aterro rodoviário mínimo = 1,20 m e máximo = 4,70 m - areia extraída e brita produzida | C118: m | D118: 71642.59
A119: 607146 | B119: Arco metálico galvanizado tipo MP 152S - arco alto - vão = 10,97 m e altura = 6,53 m - aterro rodoviário mínimo = 1,20 m e máximo = 4,70 m - areia e brita comerciais | C119: m | D119: 75680.42
A120: 606794 | B120: Arco metálico galvanizado tipo MP 152S - arco alto - vão = 10,97 m e altura = 6,53 m - aterro rodoviário mínimo = 1,20 m e máximo = 4,70 m - areia extraída e brita produzida | C120: m | D120: 74681.66
A121: 607143 | B121: Arco metálico galvanizado tipo MP 152S - arco alto - vão = 11,35 m e altura = 7,12 m - aterro rodoviário mínimo = 1,20 m e máximo = 4,70 m - areia e brita comerciais | C121: m | D121: 64380.38
A122: 606791 | B122: Arco metálico galvanizado tipo MP 152S - arco alto - vão = 11,35 m e altura = 7,12 m - aterro rodoviário mínimo = 1,20 m e máximo = 4,70 m - areia extraída e brita produzida | C122: m | D122: 63264.89
A123: 607147 | B123: Arco metálico galvanizado tipo MP 152S - arco alto - vão = 11,58 m e altura = 7,16 m - aterro rodoviário mínimo = 1,20 m e máximo = 6,40 m - areia e brita comerciais | C123: m | D123: 81680.36
A124: 606795 | B124: Arco metálico galvanizado tipo MP 152S - arco alto - vão = 11,58 m e altura = 7,16 m - aterro rodoviário mínimo = 1,20 m e máximo = 6,40 m - areia extraída e brita produzida | C124: m | D124: 80529.48
A125: 607112 | B125: Arco metálico galvanizado tipo MP 152S - arco alto - vão = 6,12 m e altura = 2,77 m - aterro rodoviário mínimo = 0,75 m e máximo = 5,40 m - areia e brita comerciais | C125: m | D125: 26630.55
A126: 606760 | B126: Arco metálico galvanizado tipo MP 152S - arco alto - vão = 6,12 m e altura = 2,77 m - aterro rodoviário mínimo = 0,75 m e máximo = 5,40 m - areia extraída e brita produzida | C126: m | D126: 26328.87
A127: 607113 | B127: Arco metálico galvanizado tipo MP 152S - arco alto - vão = 6,30 m e altura = 3,68 m - aterro rodoviário mínimo = 0,75 m e máximo = 7,50 m - areia e brita comerciais | C127: m | D127: 31362.78
A128: 606761 | B128: Arco metálico galvanizado tipo MP 152S - arco alto - vão = 6,30 m e altura = 3,68 m - aterro rodoviário mínimo = 0,75 m e máximo = 7,50 m - areia extraída e brita produzida | C128: m | D128: 31016
A129: 606762 | B129: Arco metálico galvanizado tipo MP 152S - arco alto - vão = 6,55 m e altura = 3,56 m - aterro rodoviário mínimo = 0,75 m e máximo = 4,9 m - areia extraída e brita produzida | C129: m | D129: 31316.9
A130: 607114 | B130: Arco metálico galvanizado tipo MP 152S - arco alto - vão = 6,55 m e altura = 3,56 m - aterro rodoviário mínimo = 0,75 m e máximo = 4,90 m - areia e brita comerciais | C130: m | D130: 31670.24
A131: 607116 | B131: Arco metálico galvanizado tipo MP 152S - arco alto - vão = 6,78 m e altura = 3,61 m - aterro rodoviário mínimo = 0,75 m e máximo = 4,80 m - areia e brita comerciais | C131: m | D131: 32818.93
A132: 606764 | B132: Arco metálico galvanizado tipo MP 152S - arco alto - vão = 6,78 m e altura = 3,61 m - aterro rodoviário mínimo = 0,75 m e máximo = 4,80 m - areia extraída e brita produzida | C132: m | D132: 32450.71
A133: 607115 | B133: Arco metálico galvanizado tipo MP 152S - arco alto - vão = 6,96 m e altura = 4,42 m - aterro rodoviário mínimo = 0,75 m e máximo = 8,10 m - areia e brita comerciais | C133: m | D133: 37287.47
A134: 606763 | B134: Arco metálico galvanizado tipo MP 152S - arco alto - vão = 6,96 m e altura = 4,42 m - aterro rodoviário mínimo = 0,75 m e máximo = 8,10 m - areia extraída e brita produzida | C134: m | D134: 36844.49
A135: 607117 | B135: Arco metálico galvanizado tipo MP 152S - arco alto - vão = 6,99 m e altura = 4,27 m - aterro rodoviário mínimo = 0,75 m e máximo = 5,70 m - areia e brita comerciais | C135: m | D135: 37296.97
A136: 606765 | B136: Arco metálico galvanizado tipo MP 152S - arco alto - vão = 6,99 m e altura = 4,27 m - aterro rodoviário mínimo = 0,75 m e máximo = 5,70 m - areia extraída e brita produzida | C136: m | D136: 36866.16
A137: 607118 | B137: Arco metálico galvanizado tipo MP 152S - arco alto - vão = 7,01 m e altura = 3,63 m - aterro rodoviário mínimo = 0,75 m e máximo = 4,60 m - areia e brita comerciais | C137: m | D137: 33398.54
A138: 606766 | B138: Arco metálico galvanizado tipo MP 152S - arco alto - vão = 7,01 m e altura = 3,63 m - aterro rodoviário mínimo = 0,75 m e máximo = 4,60 m - areia extraída e brita produzida | C138: m | D138: 33018.41
A139: 607120 | B139: Arco metálico galvanizado tipo MP 152S - arco alto - vão = 7,24 m e altura = 3,68 m - aterro rodoviário mínimo = 0,90 m e máximo = 4,4 m - areia e brita comerciais | C139: m | D139: 34018.97
A140: 606768 | B140: Arco metálico galvanizado tipo MP 152S - arco alto - vão = 7,24 m e altura = 3,68 m - aterro rodoviário mínimo = 0,90 m e máximo = 4,40 m - areia extraída e brita produzida | C140: m | D140: 33618.68
A141: 607119 | B141: Arco metálico galvanizado tipo MP 152S - arco alto - vão = 7,42 m e altura = 4,52 m - aterro rodoviário mínimo = 0,90 m e máximo = 6,40 m - areia e brita comerciais | C141: m | D141: 39145.25
A142: 606767 | B142: Arco metálico galvanizado tipo MP 152S - arco alto - vão = 7,42 m e altura = 4,52 m - aterro rodoviário mínimo = 0,90 m e máximo = 6,40 m - areia extraída e brita produzida | C142: m | D142: 38657.08
A143: 607121 | B143: Arco metálico galvanizado tipo MP 152S - arco alto - vão = 7,47 m e altura = 4,19 m - aterro rodoviário mínimo = 0,90 m e máximo = 4,30 m - areia e brita comerciais | C143: m | D143: 36839.46
A144: 606769 | B144: Arco metálico galvanizado tipo MP 152S - arco alto - vão = 7,47 m e altura = 4,19 m - aterro rodoviário mínimo = 0,90 m e máximo = 4,30 m - areia extraída e brita produzida | C144: m | D144: 36383.08
A145: 607123 | B145: Arco metálico galvanizado tipo MP 152S - arco alto - vão = 7,67 m e altura = 3,99 m - aterro rodoviário mínimo = 0,90 m e máximo = 4,10 m - areia e brita comerciais | C145: m | D145: 36359.72
A146: 606771 | B146: Arco metálico galvanizado tipo MP 152S - arco alto - vão = 7,67 m e altura = 3,99 m - aterro rodoviário mínimo = 0,90 m e máximo = 4,10 m - areia extraída e brita produzida | C146: m | D146: 35905.05
A147: 607122 | B147: Arco metálico galvanizado tipo MP 152S - arco alto - vão = 7,85 m e altura = 4,60 m - aterro rodoviário mínimo = 0,90 m e máximo = 6,00 m - areia e brita comerciais | C147: m | D147: 40380.46
A148: 606770 | B148: Arco metálico galvanizado tipo MP 152S - arco alto - vão = 7,85 m e altura = 4,60 m - aterro rodoviário mínimo = 0,90 m e máximo = 6,00 m - areia extraída e brita produzida | C148: m | D148: 39856.08
A149: 607125 | B149: Arco metálico galvanizado tipo MP 152S - arco alto - vão = 7,90 m e altura = 4,04 m - aterro rodoviário mínimo = 0,90 m e máximo = 4,00 m - areia e brita comerciais | C149: m | D149: 37627.35
A150: 606773 | B150: Arco metálico galvanizado tipo MP 152S - arco alto - vão = 7,90 m e altura = 4,04 m - aterro rodoviário mínimo = 0,90 m e máximo = 4,00 m - areia extraída e brita produzida | C150: m | D150: 37148.96
A151: 607124 | B151: Arco metálico galvanizado tipo MP 152S - arco alto - vão = 8,08 m e altura = 4,65 m - aterro rodoviário mínimo = 0,90 m e máximo = 5,80 m - areia e brita comerciais | C151: m | D151: 40992.44
A152: 606772 | B152: Arco metálico galvanizado tipo MP 152S - arco alto - vão = 8,08 m e altura = 4,65 m - aterro rodoviário mínimo = 0,90 m e máximo = 5,80 m - areia extraída e brita produzida | C152: m | D152: 40451.29
A153: 607126 | B153: Arco metálico galvanizado tipo MP 152S - arco alto - vão = 8,31 m e altura = 4,70 m - aterro rodoviário mínimo = 0,90 m e máximo = 5,60 m - areia e brita comerciais | C153: m | D153: 42153.78
A154: 606774 | B154: Arco metálico galvanizado tipo MP 152S - arco alto - vão = 8,31 m e altura = 4,70 m - aterro rodoviário mínimo = 0,90 m e máximo = 5,60 m - areia extraída e brita produzida | C154: m | D154: 41586.56
A155: 607127 | B155: Arco metálico galvanizado tipo MP 152S - arco alto - vão = 8,36 m e altura = 4,11 m - aterro rodoviário mínimo = 0,90 m e máximo = 3,70 m - areia e brita comerciais | C155: m | D155: 38793.28
A156: 606775 | B156: Arco metálico galvanizado tipo MP 152S - arco alto - vão = 8,36 m e altura = 4,11 m - aterro rodoviário mínimo = 0,90 m e máximo = 3,70 m - areia extraída e brita produzida | C156: m | D156: 38286.15
A157: 607129 | B157: Arco metálico galvanizado tipo MP 152S - arco alto - vão = 8,59 m e altura = 4,39 m - aterro rodoviário mínimo = 0,90 m e máximo = 3,60 m - areia e brita comerciais | C157: m | D157: 40612.89
A158: 606777 | B158: Arco metálico galvanizado tipo MP 152S - arco alto - vão = 8,59 m e altura = 4,39 m - aterro rodoviário mínimo = 0,90 m e máximo = 3,60 m - areia extraída e brita produzida | C158: m | D158: 40057.49
A159: 607128 | B159: Arco metálico galvanizado tipo MP 152S - arco alto - vão = 8,97 m e altura = 5,00 m - aterro rodoviário mínimo = 0,90 m e máximo = 5,80 m - areia e brita comerciais | C159: m | D159: 44715.33
A160: 606776 | B160: Arco metálico galvanizado tipo MP 152S - arco alto - vão = 8,97 m e altura = 5,00 m - aterro rodoviário mínimo = 0,90 m e máximo = 5,80 m - areia extraída e brita produzida | C160: m | D160: 44066.39
A161: 607130 | B161: Arco metálico galvanizado tipo MP 152S - arco alto - vão = 9,17 m e altura = 5,49 m - aterro rodoviário mínimo = 0,90 m e máximo = 5,60 m - areia e brita comerciais | C161: m | D161: 47668.81
A162: 606778 | B162: Arco metálico galvanizado tipo MP 152S - arco alto - vão = 9,17 m e altura = 5,49 m - aterro rodoviário mínimo = 0,90 m e máximo = 5,60 m - areia extraída e brita produzida | C162: m | D162: 46955.51
A163: 607131 | B163: Arco metálico galvanizado tipo MP 152S - arco alto - vão = 9,22 m e altura = 4,70 m - aterro rodoviário mínimo = 0,90 m e máximo = 4,10 m - areia e brita comerciais | C163: m | D163: 44747.13
A164: 606779 | B164: Arco metálico galvanizado tipo MP 152S - arco alto - vão = 9,22 m e altura = 4,70 m - aterro rodoviário mínimo = 0,90 m e máximo = 4,10 m - areia extraída e brita produzida | C164: m | D164: 44116.09
A165: 607133 | B165: Arco metálico galvanizado tipo MP 152S - arco alto - vão = 9,45 m e altura = 4,75 m - aterro rodoviário mínimo = 0,90 m e máximo = 4,00 m - areia e brita comerciais | C165: m | D165: 45443.78
A166: 606781 | B166: Arco metálico galvanizado tipo MP 152S - arco alto - vão = 9,45 m e altura = 4,75 m - aterro rodoviário mínimo = 0,90 m e máximo = 4,00 m - areia extraída e brita produzida | C166: m | D166: 44793.77
A167: 607132 | B167: Arco metálico galvanizado tipo MP 152S - arco alto - vão = 9,63 m e altura = 5,59 m - aterro rodoviário mínimo = 0,90 m e máximo = 5,30 m - areia e brita comerciais | C167: m | D167: 49555.68
A168: 606780 | B168: Arco metálico galvanizado tipo MP 152S - arco alto - vão = 9,63 m e altura = 5,59 m - aterro rodoviário mínimo = 0,90 m e máximo = 5,30 m - areia extraída e brita produzida | C168: m | D168: 48792.38
A169: 607134 | B169: Arco metálico galvanizado tipo MP 152S - arco alto - vão = 9,65 m e altura = 5,41 m - aterro rodoviário mínimo = 0,90 m e máximo = 4,70 m - areia e brita comerciais | C169: m | D169: 49076.16
A170: 606782 | B170: Arco metálico galvanizado tipo MP 152S - arco alto - vão = 9,65 m e altura = 5,41 m - aterro rodoviário mínimo = 0,90 m e máximo = 4,70 m - areia extraída e brita produzida | C170: m | D170: 48330.31
A171: 607136 | B171: Arco metálico galvanizado tipo MP 152S - arco alto - vão = 9,68 m e altura = 5,23 m - aterro rodoviário mínimo = 0,90 m e máximo = 3,90 m - areia e brita comerciais | C171: m | D171: 48417.37
A172: 606784 | B172: Arco metálico galvanizado tipo MP 152S - arco alto - vão = 9,68 m e altura = 5,23 m - aterro rodoviário mínimo = 0,90 m e máximo = 3,90 m - areia extraída e brita produzida | C172: m | D172: 47695.35
A173: 607135 | B173: Arco metálico galvanizado tipo MP 152S - arco alto - vão = 9,86 m e altura = 6,07 m - aterro rodoviário mínimo = 0,90 m e máximo = 5,20 m - areia e brita comerciais | C173: m | D173: 54100.43
A174: 606783 | B174: Arco metálico galvanizado tipo MP 152S - arco alto - vão = 9,86 m e altura = 6,07 m - aterro rodoviário mínimo = 0,90 m e máximo = 5,20 m - areia extraída e brita produzida | C174: m | D174: 53263.42
A175: 607138 | B175: Arco metálico galvanizado tipo MP 152S - arco alto - vão = 9,91 m e altura = 5,28 m - aterro rodoviário mínimo = 0,90 m e máximo = 3,80 m - areia e brita comerciais | C175: m | D175: 49273.41
A176: 606786 | B176: Arco metálico galvanizado tipo MP 152S - arco alto - vão = 9,91 m e altura = 5,28 m - aterro rodoviário mínimo = 0,90 m e máximo = 3,80 m - areia extraída e brita produzida | C176: m | D176: 48504.25
A177: 606842 | B177: Arco metálico galvanizado tipo MP 152S - ovoide - vão = 7,21 m e altura = 7,82 m - aterro rodoviário mínimo = 0,75 m e máximo = 6,70 m - areia e brita comerciais | C177: m | D177: 60909.07
A178: 606832 | B178: Arco metálico galvanizado tipo MP 152S - ovoide - vão = 7,21 m e altura = 7,82 m - aterro rodoviário mínimo = 0,75 m e máximo = 6,70 m - areia extraída e brita produzida | C178: m | D178: 60432.22
A179: 606843 | B179: Arco metálico galvanizado tipo MP 152S - ovoide - vão = 7,31 m e altura = 7,87 m - aterro rodoviário mínimo = 0,90 m e máximo = 6,80 m - areia e brita comerciais | C179: m | D179: 63303.42
A180: 606833 | B180: Arco metálico galvanizado tipo MP 152S - ovoide - vão = 7,31 m e altura = 7,87 m - aterro rodoviário mínimo = 0,90 m e máximo = 6,80 m - areia extraída e brita produzida | C180: m | D180: 62804
A181: 606845 | B181: Arco metálico galvanizado tipo MP 152S - ovoide - vão = 7,57 m e altura = 8,44 m - aterro rodoviário mínimo = 0,90 m e máximo = 5,60 m - areia e brita comerciais | C181: m | D181: 65650.43
A182: 606835 | B182: Arco metálico galvanizado tipo MP 152S - ovoide - vão = 7,57 m e altura = 8,44 m - aterro rodoviário mínimo = 0,90 m e máximo = 5,60 m - areia extraída e brita produzida | C182: m | D182: 65151.28
A183: 606844 | B183: Arco metálico galvanizado tipo MP 152S - ovoide - vão = 7,77 m e altura = 7,90 m - aterro rodoviário mínimo = 0,90 m e máximo = 6,80 m - areia e brita comerciais | C183: m | D183: 64289.22
A184: 606834 | B184: Arco metálico galvanizado tipo MP 152S - ovoide - vão = 7,77 m e altura = 7,90 m - aterro rodoviário mínimo = 0,90 m e máximo = 6,80 m - areia extraída e brita produzida | C184: m | D184: 63775.74
A185: 606847 | B185: Arco metálico galvanizado tipo MP 152S - ovoide - vão = 8,13 m e altura = 8,01 m - aterro rodoviário mínimo = 0,90 m e máximo = 3,50 m - areia e brita comerciais | C185: m | D185: 68653.19
A186: 606837 | B186: Arco metálico galvanizado tipo MP 152S - ovoide - vão = 8,13 m e altura = 8,01 m - aterro rodoviário mínimo = 0,90 m e máximo = 3,50 m - areia extraída e brita produzida | C186: m | D186: 68094.32
A187: 606846 | B187: Arco metálico galvanizado tipo MP 152S - ovoide - vão = 8,36 m e altura = 8,23 m - aterro rodoviário mínimo = 0,90 m e máximo = 4,30 m - areia e brita comerciais | C187: m | D187: 70365
A188: 606836 | B188: Arco metálico galvanizado tipo MP 152S - ovoide - vão = 8,36 m e altura = 8,23 m - aterro rodoviário mínimo = 0,90 m e máximo = 4,30 m - areia extraída e brita produzida | C188: m | D188: 69799.41
A189: 606848 | B189: Arco metálico galvanizado tipo MP 152S - ovoide - vão = 8,56 m e altura = 8,48 m - aterro rodoviário mínimo = 0,90 m e máximo = 5,30 m - areia e brita comerciais | C189: m | D189: 73397.67
A190: 606838 | B190: Arco metálico galvanizado tipo MP 152S - ovoide - vão = 8,56 m e altura = 8,48 m - aterro rodoviário mínimo = 0,90 m e máximo = 5,30 m - areia extraída e brita produzida | C190: m | D190: 72810.33
A191: 606849 | B191: Arco metálico galvanizado tipo MP 152S - ovoide - vão = 8,71 m e altura = 9,32 m - aterro rodoviário mínimo = 0,90 m e máximo = 6,00 m - areia e brita comerciais | C191: m | D191: 75031.63
A192: 606839 | B192: Arco metálico galvanizado tipo MP 152S - ovoide - vão = 8,71 m e altura = 9,32 m - aterro rodoviário mínimo = 0,90 m e máximo = 6,00 m - areia extraída e brita produzida | C192: m | D192: 74456.85
A193: 606850 | B193: Arco metálico galvanizado tipo MP 152S - ovoide - vão = 9,15 m e altura = 9,04 m - aterro rodoviário mínimo = 0,90 m e máximo = 4,70 m - areia e brita comerciais | C193: m | D193: 75676.88
A194: 606840 | B194: Arco metálico galvanizado tipo MP 152S - ovoide - vão = 9,15 m e altura = 9,04 m - aterro rodoviário mínimo = 0,90 m e máximo = 4,70 m - areia extraída e brita produzida | C194: m | D194: 75050.79
A195: 606851 | B195: Arco metálico galvanizado tipo MP 152S - ovoide - vão = 9,15 m e altura = 9,50 m - aterro rodoviário mínimo = 0,90 m e máximo = 5,70 m - areia e brita comerciais | C195: m | D195: 77884.25
A196: 606841 | B196: Arco metálico galvanizado tipo MP 152S - ovoide - vão = 9,15 m e altura = 9,50 m - aterro rodoviário mínimo = 0,90 m e máximo = 5,70 m - areia extraída e brita produzida | C196: m | D196: 77282.7
A197: 605604 | B197: Argamassa de solo-cimento com 10% de cimento e material de jazida - preparo e injeção em tunnel liner | C197: m³ | D197: 279.61
A198: 605695 | B198: Bueiro metálico com chapas múltiplas MP 100 com revestimento em epóxi - D = 0,60 m - brita comercial | C198: m | D198: 1461.56
A199: 605607 | B199: Bueiro metálico com chapas múltiplas MP 100 com revestimento em epóxi - D = 0,60 m - brita produzida | C199: m | D199: 1422.04
A200: 605696 | B200: Bueiro metálico com chapas múltiplas MP 100 com revestimento em epóxi - D = 0,70 m - brita comercial | C200: m | D200: 1680.13
... 6290 more rows

Sheet EQUIPAMENTO
A1: CGCIT | B1: SISTEMA DE CUSTOS REFERENCIAIS DE OBRAS - SICRO | K1: DNIT
B2: Minas Gerais - Abril /2025
A3: Código | B3: Descrição | C3: Valor de Aquisição (R$) | D3: Depreciação (R$/h) | E3: Oportunidade de Capital (R$/h) | F3: Seguros e Impostos (R$/h) | G3: Manutenção (R$/h) | H3: Operação (R$/h) | I3: Mão de Obra de Operação (R$/h) | J3: Custo Produtivo (R$/h) | K3: Custo Improdutivo (R$/h)
A4: E9001 | B4: Conjunto vibratório para tubos de concreto com encaixe PB e 3 jogos de fôrmas - D = 0,60 m - 2,20 kW | C4: 71567.5494 | D4: 9.5423 | E4: 2.2079 | F4: 0 | G4: 7.1568 | H4: 0 | I4: 0 | J4: 18.907 | K4: 11.7502
A5: E9002 | B5: Conjunto vibratório para tubos de concreto com encaixe PB e 3 jogos de fôrmas - D = 0,80 m - 2,20 kW | C5: 93069.7552 | D5: 12.4093 | E5: 2.8712 | F5: 0 | G5: 9.307 | H5: 0 | I5: 0 | J5: 24.5875 | K5: 15.2805
A6: E9003 | B6: Conjunto vibratório para tubos de concreto com encaixe PB e 3 jogos de fôrmas - D = 1,00 m - 2,20 kW | C6: 97278.4009 | D6: 12.9705 | E6: 3.001 | F6: 0 | G6: 9.7278 | H6: 0 | I6: 0 | J6: 25.6993 | K6: 15.9715
A7: E9004 | B7: Conjunto vibratório para tubos de concreto com encaixe PB e 3 jogos de fôrmas - D = 1,20 m - 2,20 kW | C7: 123338.727 | D7: 16.4452 | E7: 3.805 | F7: 0 | G7: 12.3339 | H7: 0 | I7: 0 | J7: 32.5841 | K7: 20.2502
A8: E9005 | B8: Conjunto vibratório para tubos de concreto com encaixe PB e 3 jogos de fôrmas - D = 1,50 m - 2,20 kW | C8: 145357.0283 | D8: 19.3809 | E8: 4.4843 | F8: 0 | G8: 14.5357 | H8: 0 | I8: 0 | J8: 38.4009 | K8: 23.8652
A9: E9006 | B9: Equipamento para sondagem manual | C9: 4691.7638 | D9: 0.7976 | E9: 0.1737 | F9: 0 | G9: 0.4692 | H9: 0 | I9: 0 | J9: 1.4405 | K9: 0.9713
A10: E9007 | B10: Bomba de pistão triplex com capacidade de 7,80 m³/h (130 l/min) - 8,20 kW | C10: 160530.0854 | D10: 12.8424 | E10: 2.9714 | F10: 0 | G10: 11.2371 | H10: 8.756 | I10: 0 | J10: 35.8069 | K10: 15.8138
A11: E9008 | B11: Transportador manual de tubos de concreto com capacidade de 1 t | C11: 1508.9388 | D11: 1.358 | E11: 0.0931 | F11: 0 | G11: 0.7545 | H11: 0 | I11: 0 | J11: 2.2056 | K11: 1.4511
A12: E9009 | B12: Embarcação rebocadora - 268 kW | C12: 625828.0395 | D12: 8.1488 | E12: 3.6312 | F12: 0 | G12: 18.1085 | H12: 286.1704 | I12: 137.4867 | J12: 453.5456 | K12: 149.2667
A13: E9010 | B13: Balança plataforma digital à bateria, com mesa de 75 x 75 cm e capacidade de 500 kg | C13: 4186.3854 | D13: 0.628 | E13: 0.0861 | F13: 0 | G13: 0.3489 | H13: 0 | I13: 0 | J13: 1.063 | K13: 0.7141
A14: E9011 | B14: Carro manual modelo plataforma de 200 x 80 cm com capacidade de 800 kg | C14: 1720.531 | D14: 0.3097 | E14: 0.0637 | F14: 0 | G14: 0.1721 | H14: 0 | I14: 0 | J14: 0.5455 | K14: 0.3734
A15: E9014 | B15: Deflectômetro de impacto (FWD) instalado em picape com reboque e faixa de carga de 7 a 120 kN - 147 kW | C15: 2261753.223 | D15: 180.9403 | E15: 41.8651 | F15: 0 | G15: 113.0877 | H15: 0 | I15: 34.9157 | J15: 370.8088 | K15: 257.7211
A16: E9015 | B16: Elevador de obra com capacidade de 1.000 kg - 9 kW | C16: 67946.8469 | D16: 5.4357 | E16: 1.2577 | F16: 0 | G16: 4.7563 | H16: 0 | I16: 25.4133 | J16: 36.863 | K16: 32.1067
A17: E9016 | B17: Usina misturadora móvel de reciclagem a frio com sistema de espuma de asfalto - 129,40 kW | C17: 9918142.117 | D17: 578.5583 | E17: 178.4852 | F17: 0 | G17: 743.8607 | H17: 101.8119 | I17: 46.1153 | J17: 1648.8314 | K17: 803.1588
A18: E9017 | B18: Escavadeira hidráulica sobre esteira com capacidade de 0,4 m³ - 64 kW | C18: 709510.9873 | D18: 49.6658 | E18: 13.133 | F18: 0 | G18: 49.6658 | H18: 46.7584 | I18: 35.9678 | J18: 195.1908 | K18: 98.7666
A19: E9020 | B19: Recicladora a frio - 455 kW | C19: 5306359.701 | D19: 309.5376 | E19: 95.4924 | F19: 0 | G19: 442.1966 | H19: 511.42 | I19: 46.1153 | J19: 1404.7619 | K19: 451.1453
A20: E9021 | B20: Grupo gerador - 456 kVA | C20: 328261.2433 | D20: 16.4131 | E20: 5.7868 | F20: 0 | G20: 11.7236 | H20: 389.747 | I20: 0 | J20: 423.6705 | K20: 22.1999
A21: E9022 | B21: Pórtico metálico rolante com capacidade de 25 t - 30 kW | C21: 787609.5418 | D21: 35.4424 | E21: 13.3638 | F21: 0 | G21: 27.5663 | H21: 0 | I21: 25.4133 | J21: 101.7858 | K21: 74.2195
A22: E9023 | B22: Guindaste móvel sobre esteiras com dragline com capacidade de 1,9 a 2,3 m³ - 270 kW | C22: 3991025.059 | D22: 139.6859 | E22: 67.7177 | F22: 0 | G22: 199.5513 | H22: 75.87 | I22: 46.1153 | J22: 528.9402 | K22: 253.5189
A23: E9024 | B23: Misturador de nata cimento - 1,50 kW | C23: 7998.3007 | D23: 0.6399 | E23: 0.148 | F23: 0 | G23: 0.5599 | H23: 0 | I23: 25.4133 | J23: 26.7611 | K23: 26.2012
A24: E9025 | B24: Conjunto bomba e macaco hidráulico para protensão com capacidade de 7.000 kN - 15 kW | C24: 105267.3732 | D24: 6.0153 | E24: 1.8557 | F24: 0 | G24: 6.0153 | H24: 0 | I24: 46.1153 | J24: 60.0016 | K24: 53.9863
A25: E9026 | B25: Bomba para injeção de nata de cimento com capacidade de 2 MPa - 2,20 kW | C25: 32888.9189 | D25: 2.6311 | E25: 0.6088 | F25: 0 | G25: 2.3022 | H25: 0 | I25: 0 | J25: 5.5421 | K25: 3.2399
A26: E9028 | B26: Bomba de alta pressão para hidrojateamento com capacidade de 18 MPa - 5,20 kW | C26: 5373.253 | D26: 0.4299 | E26: 0.0995 | F26: 0 | G26: 0.4836 | H26: 9.8435 | I26: 25.4133 | J26: 36.2698 | K26: 25.9427
A27: E9029 | B27: Conjunto bomba e macaco hidráulico para protensão com capacidade de 8.000 kN - 20 kW | C27: 133859.3485 | D27: 7.6491 | E27: 2.3597 | F27: 0 | G27: 7.6491 | H27: 0 | I27: 46.1153 | J27: 63.7732 | K27: 56.1241
A28: E9030 | B28: Bomba de protensão com leitura digital para tensionamento de estais - 3 kW | C28: 14614.7026 | D28: 0.8351 | E28: 0.2576 | F28: 0 | G28: 0.8351 | H28: 0 | I28: 0 | J28: 1.9278 | K28: 1.0927
A29: E9031 | B29: Elevador de cremalheira com cabine simples, com capacidade de 1.500 kg e altura de até 100 m - 15 kW | C29: 332715.0108 | D29: 26.6172 | E29: 6.1586 | F29: 0 | G29: 23.2901 | H29: 0 | I29: 25.4133 | J29: 81.4792 | K29: 58.1891
A30: E9032 | B30: Equipamento para regulagem final de estais com até 37 cordoalhas - D = 15,7 mm - 20 kW | C30: 78606.869 | D30: 4.4918 | E30: 1.3857 | F30: 0 | G30: 4.4918 | H30: 0 | I30: 46.1153 | J30: 56.4846 | K30: 51.9928
A31: E9033 | B31: Equipamento para regulagem final de estais de 38 a 55 cordoalhas - D = 15,7 mm - 30 kW | C31: 112292.0607 | D31: 6.4167 | E31: 1.9795 | F31: 0 | G31: 6.4167 | H31: 0 | I31: 46.1153 | J31: 60.9282 | K31: 54.5115
A32: E9034 | B32: Equipamento para regulagem final de estais de 56 a 73 cordoalhas - D = 15,7 mm - 40 kW | C32: 168427.7796 | D32: 9.6244 | E32: 2.9691 | F32: 0 | G32: 9.6244 | H32: 0 | I32: 46.1153 | J32: 68.3332 | K32: 58.7088
A33: E9035 | B33: Equipamento para regulagem final de estais de 74 a 91 cordoalhas - D = 15,7 mm - 50 kW | C33: 224563.6775 | D33: 12.8322 | E33: 3.9587 | F33: 0 | G33: 12.8322 | H33: 0 | I33: 46.1153 | J33: 75.7384 | K33: 62.9062
A34: E9036 | B34: Grua fixa para alturas de 60 a 102 m, com alcance de 60 m com capacidade de 1.500 kg na ponta da lança - 37 kW | C34: 3704909.679 | D34: 185.2455 | E34: 65.3123 | F34: 0 | G34: 211.7091 | H34: 0 | I34: 46.1153 | J34: 508.3822 | K34: 296.6731
A35: E9038 | B35: Macaco hidráulico monocordoalha para tensionamento de estais - 3 kW | C35: 18366.2776 | D35: 1.0495 | E35: 0.3238 | F35: 0 | G35: 1.0495 | H35: 0 | I35: 46.1153 | J35: 48.5381 | K35: 47.4886
A36: E9039 | B36: Máquina de solda por termofusão para tubos PEAD com gerador de 4 kW | C36: 115408.8892 | D36: 6.5948 | E36: 2.0345 | F36: 0 | G36: 6.5948 | H36: 4.2712 | I36: 46.1153 | J36: 65.6106 | K36: 54.7446
A37: E9040 | B37: Serra mármore - 1,45 kW | C37: 485.9214 | D37: 0.0437 | E37: 0.009 | F37: 0 | G37: 0.0243 | H37: 0 | I37: 0 | J37: 0.077 | K37: 0.0527
A38: E9042 | B38: Trator sobre esteiras com lâmina - 97 kW | C38: 1306905.394 | D38: 50.8241 | E38: 22.3989 | F38: 0 | G38: 72.6059 | H38: 76.3196 | I38: 35.9678 | J38: 258.1163 | K38: 109.1908
A39: E9043 | B39: Embarcação de alumínio com comprimento de 6 m e motor de popa - 18,60 kW | C39: 30751.3871 | D39: 0.4805 | E39: 0.1812 | F39: 0 | G39: 0.5339 | H39: 40.2392 | I39: 42.091 | J39: 83.5258 | K39: 42.7527
A40: E9044 | B40: Central de concreto com capacidade de 150 m³/h - dosadora e misturadora | C40: 1887015.918 | D40: 107.8295 | E40: 33.2654 | F40: 0 | G40: 94.3508 | H40: 0 | I40: 46.1153 | J40: 281.561 | K40: 187.2102
A41: E9045 | B41: Conjunto bomba e macaco hidráulico para elevação com capacidade de 496 kN | C41: 68422.4837 | D41: 5.4738 | E41: 1.2665 | F41: 0 | G41: 5.4738 | H41: 6.2306 | I41: 46.1153 | J41: 64.56 | K41: 52.8556
A42: E9046 | B42: Conjunto bomba e macaco hidráulico para elevação com capacidade de 929 kN | C42: 86504.4289 | D42: 6.9204 | E42: 1.6012 | F42: 0 | G42: 6.9204 | H42: 6.2306 | I42: 46.1153 | J42: 67.7879 | K42: 54.6369
A43: E9047 | B43: Conjunto bomba e macaco hidráulico para elevação com capacidade de 1.390 kN | C43: 117931.7056 | D43: 9.4345 | E43: 2.1829 | F43: 0 | G43: 9.4345 | H43: 6.2306 | I43: 46.1153 | J43: 73.3978 | K43: 57.7327
A44: E9048 | B44: Conjunto bomba e macaco hidráulico para elevação com capacidade de 1.859 kN | C44: 136517.2297 | D44: 10.9214 | E44: 2.5269 | F44: 0 | G44: 10.9214 | H44: 6.2306 | I44: 46.1153 | J44: 76.7156 | K44: 59.5636
A45: E9049 | B45: Bomba de alta pressão para hidrojateamento com capacidade de 250 MPa - 72 kW | C45: 713973.1252 | D45: 57.1179 | E45: 13.2156 | F45: 0 | G45: 64.2576 | H45: 60.696 | I45: 25.4133 | J45: 220.7004 | K45: 95.7468
A46: E9050 | B46: Guindaste móvel sobre pneus com 2 eixos com capacidade de 18 t - 97 kW | C46: 3323312.522 | D46: 166.1656 | E46: 58.5853 | F46: 0 | G46: 213.6415 | H46: 27.257 | I46: 34.9157 | J46: 500.5651 | K46: 259.6666
A47: E9051 | B47: Máquina levantadora e posicionadora de via - 7,40 kW | C47: 1018709.393 | D47: 81.4968 | E47: 18.8563 | F47: 0 | G47: 71.3097 | H47: 11.2064 | I47: 25.4133 | J47: 208.2825 | K47: 125.7664
A48: E9052 | B48: Empilhadeira a diesel com capacidade de 10 t - 82 kW | C48: 757377.743 | D48: 60.5902 | E48: 14.0191 | F48: 0 | G48: 53.0164 | H48: 69.126 | I48: 25.4133 | J48: 222.165 | K48: 100.0226
A49: E9053 | B49: Perfuratriz hidráulica montada em flutuante - 32 kW | C49: 539491.6344 | D49: 16.8591 | E49: 3.4674 | F49: 0 | G49: 14.9859 | H49: 17.984 | I49: 31.1649 | J49: 84.4613 | K49: 51.4914
A50: E9054 | B50: Equipamento sobre forma-trilho para execução e acabamento de pavimento de concreto - 13,40 kW | C50: 1703038.401 | D50: 136.2431 | E50: 31.5232 | F50: 0 | G50: 85.1519 | H50: 20.2927 | I50: 25.4133 | J50: 298.6242 | K50: 193.1796
A51: E9055 | B51: Guincho pneumático com capacidade de 2,5 t | C51: 534931.9863 | D51: 48.1439 | E51: 9.9016 | F51: 0 | G51: 26.7466 | H51: 0 | I51: 0 | J51: 84.7921 | K51: 58.0455
A52: E9056 | B52: Plataforma autoelevatória de 12 x 24 m com capacidade de 150 t | C52: 814988.4683 | D52: 6.3671 | E52: 4.5832 | F52: 0 | G52: 14.1491 | H52: 0 | I52: 112.3203 | J52: 137.4197 | K52: 123.2706
A53: E9057 | B53: Batelão sem propulsão com capacidade de 66 m³ | C53: 217940.2592 | D53: 1.7027 | E53: 1.2256 | F53: 0 | G53: 2.8378 | H53: 0 | I53: 29.1508 | J53: 34.9169 | K53: 32.0791
A54: E9058 | B54: Plataforma flutuante de 12 x 24 x 1,8 m com capacidade de 150 t | C54: 651822.237 | D54: 5.0924 | E54: 3.6657 | F54: 0 | G54: 8.4873 | H54: 0 | I54: 29.1508 | J54: 46.3962 | K54: 37.9089
A55: E9059 | B55: Plataforma autoelevatória de 12 x 24 m montada na obra com capacidade de 150 t | C55: 814988.4683 | D55: 6.3671 | E55: 4.5832 | F55: 0 | G55: 14.1491 | H55: 0 | I55: 112.3203 | J55: 137.4197 | K55: 123.2706
A56: E9060 | B56: Perfuratriz pneumática rotopercussiva montada em flutuante com pressão de 0,70 MPa e capacidade de 2.500 gpm | C56: 39052.7306 | D56: 1.2204 | E56: 0.251 | F56: 0 | G56: 1.0848 | H56: 0 | I56: 62.3298 | J56: 64.886 | K56: 63.8012
A57: E9061 | B57: Lixadeira elétrica manual angular - 2 kW | C57: 1496.3113 | D57: 0.1197 | E57: 0.0277 | F57: 0 | G57: 0.0748 | H57: 0 | I57: 0 | J57: 0.2222 | K57: 0.1474
A58: E9062 | B58: Soprador de ar quente manual - 1,60 kW | C58: 5461.5491 | D58: 0.7282 | E58: 0.1123 | F58: 0 | G58: 0.4551 | H58: 0 | I58: 0 | J58: 1.2956 | K58: 0.8405
A59: E9063 | B59: Equipamento de estabilização dinâmica da via - 300 kW | C59: 28375185.18 | D59: 1135.0074 | E59: 481.456 | F59: 0 | G59: 1135.0074 | H59: 202.32 | I59: 46.1153 | J59: 2999.9061 | K59: 1662.5787
A60: E9064 | B60: Transportador manual gerica com capacidade de 180 l | C60: 965.9581 | D60: 0.966 | E60: 0.0596 | F60: 0 | G60: 0.483 | H60: 0 | I60: 0 | J60: 1.5086 | K60: 1.0256
A61: E9065 | B61: Carro controle ferroviário - 186 kW | C61: 30459496.27 | D61: 1218.3799 | E61: 516.8215 | F61: 0 | G61: 1066.0824 | H61: 125.4384 | I61: 46.1153 | J61: 2972.8375 | K61: 1781.3167
A62: E9066 | B62: Grupo gerador - 14 kVA | C62: 70055.4197 | D62: 3.5028 | E62: 1.235 | F62: 0 | G62: 2.502 | H62: 11.7458 | I62: 0 | J62: 18.9856 | K62: 4.7378
A63: E9067 | B63: Veículo ferroviário para capina química com capacidade de 12.000 l - 115 kW | C63: 1665783.466 | D63: 66.6313 | E63: 28.2642 | F63: 0 | G63: 41.6446 | H63: 77.556 | I63: 25.4133 | J63: 239.5094 | K63: 120.3088
A64: E9068 | B64: Perfuratriz hidráulica rotopercussiva para CCPH - 123 kW | C64: 5401951.643 | D64: 360.1301 | E64: 97.2126 | F64: 0 | G64: 360.1301 | H64: 103.689 | I64: 35.9678 | J64: 957.1296 | K64: 493.3105
A65: E9069 | B65: Vibrador de imersão para concreto - 4,10 kW | C65: 4119.6724 | D65: 0.6591 | E65: 0.1525 | F65: 0 | G65: 0.412 | H65: 7.7612 | I65: 0 | J65: 8.9848 | K65: 0.8116
A66: E9070 | B66: Ponte rolante com capacidade de 5 t e vão de até 15 m - 10 kW | C66: 390246.6433 | D66: 15.6099 | E66: 6.6215 | F66: 0 | G66: 9.7562 | H66: 0 | I66: 25.4133 | J66: 57.4009 | K66: 47.6447
A67: E9071 | B67: Transportador manual carrinho de mão com capacidade de 80 l | C67: 453.6517 | D67: 0.4537 | E67: 0.028 | F67: 0 | G67: 0.2268 | H67: 0 | I67: 0 | J67: 0.7085 | K67: 0.4817
A68: E9072 | B68: Martelo hidráulico vibratório com unidade hidráulica - 486 kW | C68: 3276169.679 | D68: 218.4113 | E68: 58.9574 | F68: 0 | G68: 191.1099 | H68: 409.698 | I68: 46.1153 | J68: 924.2919 | K68: 323.484
A69: E9073 | B69: Bomba de concreto rebocável com capacidade de 30 m³/h - 74 kW | C69: 458250.0433 | D69: 36.66 | E69: 8.4822 | F69: 0 | G69: 36.66 | H69: 79.0172 | I69: 25.4133 | J69: 186.2327 | K69: 70.5555
A70: E9074 | B70: Tanque de estocagem de asfalto com agitadores de 60.000 l | C70: 889731.9949 | D70: 37.0722 | E70: 12.8664 | F70: 0 | G70: 23.1701 | H70: 0 | I70: 0 | J70: 73.1087 | K70: 49.9386
A71: E9075 | B71: Trado cavadeira de 12" | C71: 130.105 | D71: 0.0651 | E71: 0.006 | F71: 0 | G71: 0.0325 | H71: 0 | I71: 0 | J71: 0.1036 | K71: 0.0711
A72: E9076 | B72: Equipamento para pintura eletrostática com cabine dupla de 7,00 kW e estufa de 80.000 kCal | C72: 161276.082 | D72: 10.3677 | E72: 2.8431 | F72: 0 | G72: 5.7599 | H72: 0 | I72: 25.4133 | J72: 44.384 | K72: 38.6241
A73: E9077 | B73: Perfuratriz de circulação reversa tipo Wirth ou similar com unidade hidráulica (Power Pack) - 273 kW | C73: 4677835.065 | D73: 311.8557 | E73: 84.1815 | F73: 0 | G73: 311.8557 | H73: 153.426 | I73: 35.9678 | J73: 897.2867 | K73: 432.005
A74: E9078 | B74: Treliça lançadeira com capacidade de carga de 100 a 120 t e vão máximo de 45 m - 110 kW | C74: 3510500 | D74: 93.6133 | E74: 57.7594 | F74: 0 | G74: 58.5083 | H74: 0 | I74: 46.1153 | J74: 255.9963 | K74: 197.488
A75: E9079 | B75: Bomba submersível com capacidade de 360 m³/h - 23 kW | C75: 179096.3708 | D75: 14.3277 | E75: 3.3151 | F75: 0 | G75: 12.5367 | H75: 0 | I75: 0 | J75: 30.1795 | K75: 17.6428
A76: E9080 | B76: Carrelone com capacidade máxima de 70 t | C76: 1840783.921 | D76: 82.8353 | E76: 31.2335 | F76: 0 | G76: 46.0196 | H76: 0 | I76: 25.4133 | J76: 185.5017 | K76: 139.4821
A77: E9081 | B77: Fischietti simples com capacidade de 70 t | C77: 95285 | D77: 4.2878 | E77: 1.6167 | F77: 0 | G77: 2.3821 | H77: 0 | I77: 25.4133 | J77: 33.6999 | K77: 31.3178
A78: E9083 | B78: Vagão fechado FLT com capacidade de 99 t | C78: 845000 | D78: 13.3792 | E78: 13.4686 | F78: 0 | G78: 7.0417 | H78: 0 | I78: 0 | J78: 33.8895 | K78: 26.8478
A79: E9084 | B79: Vagão tanque convencional TCT com capacidade de 97 t e 103.000 l | C79: 1230000 | D79: 19.475 | E79: 19.6052 | F79: 0 | G79: 10.25 | H79: 0 | I79: 0 | J79: 49.3302 | K79: 39.0802
A80: E9085 | B80: Vagão gôndola GDE com capacidade de 93,5 t / 29 m³ | C80: 620000 | D80: 9.8167 | E80: 9.8823 | F80: 0 | G80: 5.1667 | H80: 0 | I80: 0 | J80: 24.8657 | K80: 19.699
A81: E9086 | B81: Bomba de concreto rebocável com capacidade de 41 m³/h - 74 kW | C81: 518039.5657 | D81: 41.4432 | E81: 9.5889 | F81: 0 | G81: 41.4432 | H81: 79.0172 | I81: 25.4133 | J81: 196.9058 | K81: 76.4454
A82: E9089 | B82: Roçadeira costal - 1,40 kW | C82: 3228.657 | D82: 0.4843 | E82: 0.0664 | F82: 0 | G82: 0.3767 | H82: 8.3291 | I82: 0 | J82: 9.2565 | K82: 0.5507
A83: E9093 | B83: Veículo leve - 53 kW (sem motorista) | C83: 76171.9255 | D83: 4.5703 | E83: 1.4099 | F83: 0.5713 | G83: 4.5703 | H83: 25.7985 | I83: 0 | J83: 36.9203 | K83: 6.5515
A84: E9094 | B84: Guindaste móvel sobre pneus com 6 eixos com capacidade máxima de 350 t - 450 kW | C84: 20403846.5 | D84: 1020.1923 | E84: 359.6907 | F84: 145.7418 | G84: 1311.6758 | H84: 126.45 | I84: 34.9157 | J84: 2998.6663 | K84: 1560.5405
A85: E9095 | B85: Guindaste móvel sobre pneus com 8 eixos com capacidade máxima de 500 t - 500 kW | C85: 34365731.24 | D85: 1718.2866 | E85: 605.8187 | F85: 245.4695 | G85: 2209.2256 | H85: 140.5 | I85: 34.9157 | J85: 4954.2161 | K85: 2604.4905
A86: E9096 | B86: Minicarregadeira de pneus - 45,50 kW | C86: 401463.7698 | D86: 28.1025 | E86: 7.4311 | F86: 0 | G86: 28.1025 | H86: 63.9275 | I86: 35.9678 | J86: 163.5314 | K86: 71.5014
A87: E9101 | B87: Removedora de faixas de sinalização viária - 9,69 kW | C87: 49322.1767 | D87: 3.9458 | E87: 0.913 | F87: 0 | G87: 3.4526 | H87: 18.3429 | I87: 0 | J87: 26.6543 | K87: 4.8588
A88: E9102 | B88: Extrusora para sarjeta de concreto - 10,44 kW | C88: 80863.7911 | D88: 6.4691 | E88: 1.4968 | F88: 0 | G88: 5.6605 | H88: 8.8009 | I88: 25.4133 | J88: 47.8406 | K88: 33.3792
A89: E9103 | B89: Extrusora para meio-fio de concreto - 10,44 kW | C89: 66420.5911 | D89: 5.3136 | E89: 1.2294 | F89: 0 | G89: 4.6494 | H89: 8.8009 | I89: 25.4133 | J89: 45.4066 | K89: 31.9563
A90: E9105 | B90: Embarcação empurradora multipropósito - 2 x 186 kW | C90: 5497137.858 | D90: 71.5773 | E90: 31.8956 | F90: 0 | G90: 159.0607 | H90: 397.2216 | I90: 137.4867 | J90: 797.2419 | K90: 240.9596
A91: E9106 | B91: Balsa de convés com capacidade de 200 t | C91: 1865965.466 | D91: 14.5779 | E91: 10.4936 | F91: 0 | G91: 24.2964 | H91: 0 | I91: 29.1508 | J91: 78.5187 | K91: 54.2223
A92: E9107 | B92: Compactador manual com soquete vibratório - 2,24 kW | C92: 11104.1476 | D92: 0.7403 | E92: 0.1998 | F92: 0 | G92: 0.7403 | H92: 4.2403 | I92: 0 | J92: 5.9207 | K92: 0.9401
A93: E9108 | B93: Soldadora de trilho por caldeamento na via - 400 kW | C93: 10000000 | D93: 160 | E93: 160.42 | F93: 0 | G93: 200 | H93: 269.76 | I93: 92.2306 | J93: 882.4106 | K93: 412.6506
A94: E9110 | B94: Escavadeira hidráulica sobre esteiras para rocha com caçamba com capacidade de 1,56 m³ - 118 kW | C94: 1170967.801 | D94: 117.0968 | E94: 23.2228 | F94: 0 | G94: 117.0968 | H94: 126.0004 | I94: 35.9678 | J94: 419.3846 | K94: 176.2874
A95: E9111 | B95: Jateador abrasivo úmido com capacidade de 350 kg de abrasivo | C95: 323098.2983 | D95: 29.0788 | E95: 5.9805 | F95: 0 | G95: 29.0788 | H95: 0 | I95: 25.4133 | J95: 89.5514 | K95: 60.4726
A96: E9112 | B96: Sinalizador direcional móvel com sistema fotovoltaico de energia e montado em chassi sobre pneus | C96: 21446.3357 | D96: 1.9302 | E96: 0.397 | F96: 0 | G96: 1.0723 | H96: 0 | I96: 0 | J96: 3.3995 | K96: 2.3272
A97: E9113 | B97: Painel de Mensagem Variável - PMV móvel, com sistema fotovoltaico de energia e montado em chassi sobre pneus | C97: 147320.0433 | D97: 13.2588 | E97: 2.7269 | F97: 0 | G97: 7.366 | H97: 0 | I97: 0 | J97: 23.3517 | K97: 15.9857
A98: E9116 | B98: Semáforo móvel com 3 lentes e bateria - D = 200 mm | C98: 7824.6324 | D98: 0.7042 | E98: 0.1448 | F98: 0 | G98: 0.3912 | H98: 0 | I98: 0 | J98: 1.2402 | K98: 0.849
A99: E9117 | B99: Carregadeira de pneus para rocha com capacidade de 2,50 m³ - 105 kW | C99: 977123.0063 | D99: 97.7123 | E99: 19.3784 | F99: 0 | G99: 97.7123 | H99: 112.119 | I99: 35.9678 | J99: 362.8898 | K99: 153.0585
A100: E9118 | B100: Cortadora de pavimento com disco diamantado de 450 a 1.500 mm - 55,40 kW | C100: 488579.8152 | D100: 39.0864 | E100: 9.0436 | F100: 0 | G100: 39.0864 | H100: 46.7022 | I100: 25.4133 | J100: 159.3319 | K100: 73.5433
A101: E9119 | B101: Minicarregadeira sobre pneus com valetadeira - 55,40 kW | C101: 782578.8616 | D101: 54.7805 | E101: 14.4855 | F101: 0 | G101: 54.7805 | H101: 77.837 | I101: 35.9678 | J101: 237.8513 | K101: 105.2338
A102: E9120 | B102: Equipamento de cravação sobre esteira para geodreno com haste para profundidade de até 20 m - 258 kW | C102: 2544497.479 | D102: 178.1148 | E102: 47.0986 | F102: 0 | G102: 178.1148 | H102: 188.4948 | I102: 25.4133 | J102: 617.2363 | K102: 250.6267
A103: E9122 | B103: Perfuratriz tipo Bottom Feed para coluna de brita - 194 kW | C103: 6962847.975 | D103: 464.1899 | E103: 125.3023 | F103: 0 | G103: 464.1899 | H103: 109.028 | I103: 35.9678 | J103: 1198.6779 | K103: 625.46
A104: E9125 | B104: Veículo tipo van furgão com capacidade de 1,38 t - 100 kW | C104: 228566.7942 | D104: 11.4283 | E104: 4.1132 | F104: 1.6666 | G104: 11.4283 | H104: 28.1 | I104: 28.4394 | J104: 85.1758 | K104: 45.6475
A105: E9126 | B105: Draga backhoe com capacidade de 7 m³ - 1.000 kW | C105: 187404795.6 | D105: 2108.304 | E105: 1517.6275 | F105: 0 | G105: 4685.1199 | H105: 1067.8 | I105: 64.8635 | J105: 9443.7149 | K105: 3690.795
A106: E9127 | B106: Escavadeira hidráulica com martelo hidráulico de 520 kg - 75 kW | C106: 888393.7874 | D106: 101.5307 | E106: 17.6188 | F106: 0 | G106: 126.9134 | H106: 54.795 | I106: 35.9678 | J106: 336.8257 | K106: 155.1173
A107: E9134 | B107: Miniônibus com capacidade para 30 passageiros - 111 kW | C107: 652719.8171 | D107: 27.9737 | E107: 11.5065 | F107: 4.6623 | G107: 41.9606 | H107: 118.5258 | I107: 30.1852 | J107: 234.8141 | K107: 74.3277
A108: E9141 | B108: Rebarbador hidráulico com bomba manual com capacidade de força de 9.000 kgf | C108: 95908.1655 | D108: 7.6727 | E108: 1.7753 | F108: 0 | G108: 4.7954 | H108: 0 | I108: 0 | J108: 14.2434 | K108: 9.448
A109: E9144 | B109: Pórtico metálico rolante com talha com capacidade de 5 t - 10 kW | C109: 286833.6713 | D109: 11.4733 | E109: 4.8669 | F109: 0 | G109: 7.1708 | H109: 0 | I109: 25.4133 | J109: 48.9243 | K109: 41.7535
A110: E9148 | B110: Macaco de protensão de fios com bomba - 3,72 kW | C110: 100866.3494 | D110: 5.7638 | E110: 1.7781 | F110: 0 | G110: 5.7638 | H110: 0 | I110: 46.1153 | J110: 59.421 | K110: 53.6572
A111: E9149 | B111: Máquina de aplicação e extração de grampo elástico tipo Pandrol - 6,70 kW | C111: 264431.3983 | D111: 21.1545 | E111: 4.8946 | F111: 0 | G111: 21.1545 | H111: 10.1463 | I111: 0 | J111: 57.3499 | K111: 26.0491
A112: E9151 | B112: Britador de mandíbulas móvel sobre esteiras, sem peneira, com capacidade de 140 m³/h - 170 kW | C112: 2940990.043 | D112: 168.0566 | E112: 51.8455 | F112: 0 | G112: 168.0566 | H112: 171.972 | I112: 46.1153 | J112: 606.046 | K112: 266.0174
A113: E9152 | B113: Ferramenta de fixação à pólvora de ação direta | C113: 1013.6482 | D113: 0.0862 | E113: 0.0188 | F113: 0 | G113: 0.0811 | H113: 0 | I113: 0 | J113: 0.1861 | K113: 0.105
A114: E9153 | B114: Ferramenta de fixação à pólvora e sistema à pistão | C114: 938.0934 | D114: 0.0797 | E114: 0.0174 | F114: 0 | G114: 0.075 | H114: 0 | I114: 0 | J114: 0.1721 | K114: 0.0971
A115: E9154 | B115: Equipamento para selagem com material asfáltico rebocável com capacidade de 370 l - 35 kW | C115: 466898.7606 | D115: 30.0149 | E115: 8.2308 | F115: 0 | G115: 10.005 | H115: 29.505 | I115: 25.4133 | J115: 103.169 | K115: 63.659
A116: E9155 | B116: Caldeira de asfalto rebocável com capacidade de 600 l - 5,20 kW | C116: 140740.6302 | D116: 9.0476 | E116: 2.4811 | F116: 0 | G116: 3.0159 | H116: 4.0914 | I116: 0 | J116: 18.636 | K116: 11.5287
A117: E9156 | B117: Soprador de ar costal - 2,6 kW | C117: 2472.088 | D117: 0.3955 | E117: 0.0915 | F117: 0 | G117: 0.3461 | H117: 4.9217 | I117: 0 | J117: 5.7548 | K117: 0.487
A118: E9157 | B118: Locomotiva diesel-elétrica CC - bitola métrica - 2.237 kW | C118: 8737202.288 | D118: 139.7952 | E118: 140.1622 | F118: 0 | G118: 174.744 | H118: 1508.6328 | I118: 33.6652 | J118: 1996.9994 | K118: 313.6226
A119: E9158 | B119: Locomotiva diesel-elétrica CC - bitola larga - 2.237 kW | C119: 9123489.3 | D119: 145.9758 | E119: 146.359 | F119: 0 | G119: 182.4698 | H119: 1508.6328 | I119: 33.6652 | J119: 2017.1026 | K119: 326
A120: E9159 | B120: Vagão plataforma PNE com capacidade de 82 t - bitola métrica | C120: 736000 | D120: 11.6533 | E120: 11.7312 | F120: 0 | G120: 6.1333 | H120: 0 | I120: 0 | J120: 29.5178 | K120: 23.3845
A121: E9160 | B121: Vagão plataforma PNT com capacidade de 98 t - bitola larga | C121: 960000 | D121: 15.2 | E121: 15.3016 | F121: 0 | G121: 8 | H121: 0 | I121: 0 | J121: 38.5016 | K121: 30.5016
A122: E9161 | B122: Vagão fechado com porta para carga e descarga de paletes FLD com capacidade de 64 t - bitola métrica | C122: 730000 | D122: 11.5583 | E122: 11.6356 | F122: 0 | G122: 6.0833 | H122: 0 | I122: 0 | J122: 29.2772 | K122: 23.1939
A123: E9162 | B123: Vagão fechado com porta para carga e descarga de paletes FLT com capacidade de 99 t - bitola larga | C123: 845000 | D123: 13.3792 | E123: 13.4686 | F123: 0 | G123: 7.0417 | H123: 0 | I123: 0 | J123: 33.8895 | K123: 26.8478
A124: E9163 | B124: Vagão hopper aberto com descarga automática HNE com capacidade de 45 m³ - bitola métrica | C124: 880000 | D124: 13.9333 | E124: 14.0265 | F124: 0 | G124: 7.3333 | H124: 0 | I124: 0 | J124: 35.2931 | K124: 27.9598
A125: E9164 | B125: Vagão hopper aberto com descarga automática HNT com capacidade de 63 m³ - bitola larga | C125: 1065641.667 | D125: 16.8727 | E125: 16.9854 | F125: 0 | G125: 8.8803 | H125: 0 | I125: 0 | J125: 42.7384 | K125: 33.8581
A126: E9167 | B126: Equipamento para carga e descarga de TLS de até 250 m - 90 kW | C126: 2813415 | D126: 45.0146 | E126: 45.1328 | F126: 0 | G126: 56.2683 | H126: 60.696 | I126: 46.1153 | J126: 253.227 | K126: 136.2627
A127: E9168 | B127: Carregadeira de pneus com implemento de garfo - 195 kW | C127: 1523459.331 | D127: 106.6422 | E127: 28.1992 | F127: 0 | G127: 106.6422 | H127: 87.672 | I127: 35.9678 | J127: 365.1234 | K127: 170.8092
A128: E9200 | B128: Carregadeira de pneus para rocha com capacidade de 2,50 m³ - 105 kW com periculosidade | C128: 977123.0063 | D128: 97.7123 | E128: 19.3784 | F128: 0 | G128: 97.7123 | H128: 112.119 | I128: 44.8901 | J128: 371.8121 | K128: 161.9808
A129: E9203 | B129: Escavadeira hidráulica com martelo hidráulico de 1.700 kg - 103 kW com periculosidade | C129: 2080664.142 | D129: 237.7902 | E129: 41.264 | F129: 0 | G129: 297.2377 | H129: 75.2518 | I129: 44.8901 | J129: 696.4338 | K129: 323.9443
A130: E9204 | B130: Perfuratriz sobre esteiras - 145 kW com periculosidade | C130: 2012118.601 | D130: 134.1412 | E130: 36.2098 | F130: 0 | G130: 134.1412 | H130: 122.235 | I130: 44.8901 | J130: 471.6173 | K130: 215.2411
A131: E9205 | B131: Equipamento de corte a plasma CNC - 12.000 x 5.500 mm - 19,5 kW | C131: 1048369.163 | D131: 83.8695 | E131: 19.4053 | F131: 0 | G131: 62.9021 | H131: 0 | I131: 0 | J131: 166.1769 | K131: 103.2748
A132: E9206 | B132: Equipamento de solda MIG automática com acessórios - 14,6 kVA | C132: 86409.51 | D132: 6.9128 | E132: 1.5994 | F132: 0 | G132: 6.9128 | H132: 0 | I132: 0 | J132: 15.425 | K132: 8.5122
A133: E9207 | B133: Máquina de solda elétrica retificadora 425 A - 18,70 kW | C133: 7025.9336 | D133: 0.5621 | E133: 0.1301 | F133: 0 | G133: 0.5621 | H133: 0 | I133: 0 | J133: 1.2543 | K133: 0.6922
A134: E9209 | B134: Martelete perfurador/rompedor a ar comprimido de 25 kg para rocha, com insalubridade, com capacidade de 2.040 gpm | C134: 29440.4239 | D134: 2.3552 | E134: 0.5449 | F134: 0 | G134: 2.3552 | H134: 0 | I134: 33.1912 | J134: 38.4465 | K134: 36.0913
A135: E9213 | B135: Jumbo eletro-hidráulico com 3 braços - 155 kW/237 kW com periculosidade | C135: 13559532.54 | D135: 903.9688 | E135: 244.0151 | F135: 0 | G135: 1129.961 | H135: 182.931 | I135: 58.1079 | J135: 2518.9838 | K135: 1206.0918
A136: E9231 | B136: Maçarico lança-chamas a gás liquefeito de petróleo (GLP) | C136: 86.6713 | D136: 0.0069 | E136: 0.0016 | F136: 0 | G136: 0.0069 | H136: 0 | I136: 0 | J136: 0.0154 | K136: 0.0085
A137: E9242 | B137: Estação transmissora de superfície para televisionamento | C137: 14940.7545 | D137: 0.9605 | E137: 0.2634 | F137: 0 | G137: 0.5336 | H137: 0 | I137: 0 | J137: 1.7575 | K137: 1.2239
A138: E9243 | B138: Câmara hiperbárica com filtro, serpentina e reservatório de ar para mergulho raso - D = 1,80 m e H = 2,22 m | C138: 595035.0649 | D138: 10.4131 | E138: 9.6373 | F138: 0 | G138: 14.8759 | H138: 0 | I138: 58.7273 | J138: 93.6536 | K138: 78.7777
A139: E9244 | B139: Estação transmissora de superfície para comunicação sem fio | C139: 40168.574 | D139: 2.5823 | E139: 0.7081 | F139: 0 | G139: 1.4346 | H139: 0 | I139: 0 | J139: 4.725 | K139: 3.2904
A140: E9245 | B140: Estação transmissora de superfície para comunicação com fio | C140: 6732.4443 | D140: 0.4328 | E140: 0.1187 | F140: 0 | G140: 0.2404 | H140: 0 | I140: 0 | J140: 0.7919 | K140: 0.5515
A141: E9246 | B141: Painel de controle de ar com manômetros e pneufatômetros | C141: 12919.6854 | D141: 0.8306 | E141: 0.2278 | F141: 0 | G141: 0.4614 | H141: 0 | I141: 0 | J141: 1.5198 | K141: 1.0584
A142: E9247 | B142: Sistema de Sino aberto (sinete) para mergulho até 50 m - 33,50 kW | C142: 438386.2668 | D142: 11.6903 | E142: 7.2129 | F142: 0 | G142: 11.6903 | H142: 0 | I142: 58.7273 | J142: 89.3208 | K142: 77.6305
A143: E9248 | B143: Sistema de ar comprimido para mergulho até 30 m com pressão de trabalho de 1,4 MPa - 7,46 kW | C143: 50799.9171 | D143: 3.3867 | E143: 0.9142 | F143: 0 | G143: 3.3867 | H143: 7.1273 | I143: 0 | J143: 14.8149 | K143: 4.3009
A144: E9249 | B144: Sistema de ar comprimido para mergulho até 50 m com pressão de trabalho de 1,7 MPa - 16,18 kW | C144: 81964.3503 | D144: 5.4643 | E144: 1.475 | F144: 0 | G144: 5.4643 | H144: 15.4584 | I144: 0 | J144: 27.862 | K144: 6.9393
A145: E9251 | B145: Fonte de plasma para corte manual - 65A - 15 kW | C145: 32606.3462 | D145: 2.6085 | E145: 0.6035 | F145: 0 | G145: 2.6085 | H145: 0 | I145: 0 | J145: 5.8205 | K145: 3.212
A146: E9252 | B146: Serra de esquadria com braço telescópico - D = 250 mm (10") - 1,80 kW | C146: 4051.5886 | D146: 0.3646 | E146: 0.075 | F146: 0 | G146: 0.2026 | H146: 0 | I146: 0 | J146: 0.6422 | K146: 0.4396
A147: E9253 | B147: Rebordeadeira diâmetro máximo 3,00 m - 4,85 kW | C147: 63075.417 | D147: 2.523 | E147: 1.0702 | F147: 0 | G147: 2.2076 | H147: 0 | I147: 0 | J147: 5.8008 | K147: 3.5932
A148: E9254 | B148: Dobradeira viradeira manual comprimento máximo de dobra de até 2.000 mm | C148: 15925.5594 | D148: 0.637 | E148: 0.2702 | F148: 0 | G148: 0.5574 | H148: 0 | I148: 0 | J148: 1.4646 | K148: 0.9072
A149: E9255 | B149: Fonte de plasma para corte manual - 45A - 10 kW | C149: 21573.3462 | D149: 1.7259 | E149: 0.3993 | F149: 0 | G149: 1.7259 | H149: 0 | I149: 0 | J149: 3.8511 | K149: 2.1252
A150: E9256 | B150: Equipamento para pintura com cal rebocável com dois bicos aplicadores e capacidade de 2.200 l | C150: 61997.4533 | D150: 3.5427 | E150: 1.0929 | F150: 0 | G150: 3.5427 | H150: 0 | I150: 25.4133 | J150: 33.5916 | K150: 30.0489
A151: E9259 | B151: Ventilador centrífugo média pressão com capacidade de 38 m³/min - 2,21 kW | C151: 16975.343 | D151: 1.5278 | E151: 0.3142 | F151: 0 | G151: 1.0185 | H151: 0 | I151: 0 | J151: 2.8605 | K151: 1.842
A152: E9260 | B152: Detector de gases com bomba elétrica para espaço confinado | C152: 4279.4165 | D152: 0.3424 | E152: 0.0792 | F152: 0 | G152: 0.214 | H152: 0 | I152: 0 | J152: 0.6356 | K152: 0.4216
A153: E9261 | B153: Equipamento de pintura com pistola airless - 0,90 kW | C153: 2297.1528 | D153: 0.2067 | E153: 0.0425 | F153: 0 | G153: 0.1149 | H153: 0 | I153: 0 | J153: 0.3641 | K153: 0.2492
A154: E9262 | B154: Escova rotativa com cerdas de aço para tratamento de superfície - 0,91 kW | C154: 20558.9567 | D154: 1.6447 | E154: 0.3805 | F154: 0 | G154: 1.0279 | H154: 0 | I154: 25.4133 | J154: 28.4664 | K154: 27.4385
A155: E9263 | B155: Tripé com guincho para espaço confinado | C155: 10050.4331 | D155: 0.804 | E155: 0.186 | F155: 0 | G155: 0.603 | H155: 0 | I155: 0 | J155: 1.593 | K155: 0.99
A156: E9264 | B156: Respirador purificador de ar motorizado | C156: 8868.3915 | D156: 0.7095 | E156: 0.1642 | F156: 0 | G156: 0.4434 | H156: 0 | I156: 0 | J156: 1.3171 | K156: 0.8737
A157: E9265 | B157: Respirador de adução de ar tipo linha de ar comprimido para jateamento | C157: 18103.3549 | D157: 1.4483 | E157: 0.3351 | F157: 0 | G157: 0.9052 | H157: 0 | I157: 0 | J157: 2.6886 | K157: 1.7834
A158: E9267 | B158: Exaustor centrífugo alta pressão com capacidade de 35 m³/min - 1,47 kW | C158: 5890.2249 | D158: 0.5301 | E158: 0.109 | F158: 0 | G158: 0.3534 | H158: 0 | I158: 0 | J158: 0.9925 | K158: 0.6391
A159: E9501 | B159: Ventilador axial para ventilação forçada com velocidade de saída de 32,8 m/s - D = 1.000 mm - 30 kW | C159: 457811.3373 | D159: 41.203 | E159: 8.4741 | F159: 0 | G159: 27.4687 | H159: 0 | I159: 0 | J159: 77.1458 | K159: 49.6771
A160: E9502 | B160: Bate-estaca de gravidade para 6 t - 119 kW | C160: 984189.9467 | D160: 56.2394 | E160: 17.3499 | F160: 0 | G160: 42.1796 | H160: 86.9414 | I160: 35.9678 | J160: 238.6781 | K160: 109.5571
A161: E9503 | B161: Guilhotina hidráulica 16 x 6.100 mm - 30 kW | C161: 1312522.521 | D161: 52.5009 | E161: 22.2702 | F161: 0 | G161: 45.9383 | H161: 0 | I161: 25.4133 | J161: 146.1227 | K161: 100.1844
A162: E9505 | B162: Prensa dobradeira capacidade 320 t - comprimento até 3.100 mm - 30 kW | C162: 896955.6393 | D162: 35.8782 | E162: 15.2191 | F162: 0 | G162: 31.3934 | H162: 0 | I162: 25.4133 | J162: 107.904 | K162: 76.5106
A163: E9507 | B163: Plotadora de recorte com computador e programa computacional | C163: 95422.0641 | D163: 14.3133 | E163: 1.9625 | F163: 0 | G163: 9.5422 | H163: 0 | I163: 0 | J163: 25.818 | K163: 16.2758
A164: E9510 | B164: Ventilador centrífugo baixa pressão com capacidade de 58 m³/min - 3,68 kW | C164: 13927.5823 | D164: 1.2535 | E164: 0.2578 | F164: 0 | G164: 0.8357 | H164: 0 | I164: 0 | J164: 2.347 | K164: 1.5113
A165: E9511 | B165: Carregadeira de pneus com capacidade de 3,40 m³ - 195 kW | C165: 2136823.703 | D165: 149.5777 | E165: 39.5526 | F165: 0 | G165: 149.5777 | H165: 87.672 | I165: 35.9678 | J165: 462.3478 | K165: 225.0981
A166: E9512 | B166: Veículo leve - 53 kW | C166: 76171.9255 | D166: 4.5703 | E166: 1.4099 | F166: 0.5713 | G166: 4.5703 | H166: 25.7985 | I166: 28.4394 | J166: 65.3597 | K166: 34.9909
A167: E9513 | B167: Compressor de ar portátil de 160,46 l/s (340 PCM) - 81 kW | C167: 305570.6726 | D167: 20.3714 | E167: 5.499 | F167: 0 | G167: 20.3714 | H167: 77.3874 | I167: 0 | J167: 123.6292 | K167: 25.8704
A168: E9514 | B168: Distribuidor de agregados sobre pneus autopropelido - 130 kW | C168: 950797.2809 | D168: 54.3313 | E168: 16.7612 | F168: 0 | G168: 47.5399 | H168: 138.814 | I168: 35.9678 | J168: 293.4142 | K168: 107.0603
A169: E9515 | B169: Escavadeira hidráulica sobre esteiras com caçamba com capacidade de 1,56 m³ - 118 kW | C169: 1170967.801 | D169: 81.9677 | E169: 21.6746 | F169: 0 | G169: 81.9677 | H169: 86.2108 | I169: 35.9678 | J169: 307.7886 | K169: 139.6101
A170: E9516 | B170: Perfuratriz hidráulica sobre esteiras - 283 kW | C170: 7687408.137 | D170: 512.4939 | E170: 138.3413 | F170: 0 | G170: 512.4939 | H170: 159.046 | I170: 35.9678 | J170: 1358.3429 | K170: 686.803
A171: E9518 | B171: Grade de 24 discos rebocável de D = 60 cm (24") | C171: 42035.12 | D171: 2.7023 | E171: 0.741 | F171: 0 | G171: 1.5013 | H171: 0 | I171: 0 | J171: 4.9446 | K171: 3.4433
A172: E9519 | B172: Betoneira com motor a gasolina com capacidade de 600 l - 10 kW | C172: 35856.1453 | D172: 2.8685 | E172: 0.6637 | F172: 0 | G172: 2.1514 | H172: 18.9298 | I172: 25.4133 | J172: 50.0267 | K172: 28.9455
A173: E9521 | B173: Grupo gerador - 3,2 kVA | C173: 3436.9971 | D173: 0.1718 | E173: 0.0606 | F173: 0 | G173: 0.1227 | H173: 4.4999 | I173: 0 | J173: 4.855 | K173: 0.2324
A174: E9522 | B174: Caldeira de asfalto rebocável com capacidade de 1.500 l - 6,5 kW | C174: 198861.6898 | D174: 12.784 | E174: 3.5056 | F174: 0 | G174: 4.2613 | H174: 5.1142 | I174: 0 | J174: 25.6651 | K174: 16.2896
A175: E9523 | B175: Motoscraper - 304 kW | C175: 6135034.208 | D175: 288.7075 | E175: 105.7662 | F175: 0 | G175: 324.7959 | H175: 273.3568 | I175: 35.9678 | J175: 1028.5942 | K175: 430.4415
A176: E9524 | B176: Motoniveladora - 93 kW | C176: 1283751.928 | D176: 64.1876 | E176: 22.6307 | F176: 0 | G176: 82.5269 | H176: 78.399 | I176: 35.9678 | J176: 283.712 | K176: 122.7861
A177: E9525 | B177: Ponte rolante com capacidade de 15 t e vão de até 15 m - 20 kW | C177: 3547725.296 | D177: 141.909 | E177: 60.196 | F177: 0 | G177: 88.6931 | H177: 0 | I177: 50.8266 | J177: 341.6247 | K177: 252.9316
A178: E9526 | B178: Retroescavadeira de pneus - capacidade da caçamba da pá-carregadeira de 0,76 m³ e da retroescavadeira de 0,29 m³ - 58 kW | C178: 472856.1463 | D178: 33.0999 | E178: 8.7526 | F178: 0 | G178: 33.0999 | H178: 42.3748 | I178: 35.9678 | J178: 153.295 | K178: 77.8203
A179: E9527 | B179: Martelete perfurador/rompedor a ar comprimido de 25 kg para rocha com capacidade de 2.040 gpm | C179: 29440.4239 | D179: 2.3552 | E179: 0.5449 | F179: 0 | G179: 2.3552 | H179: 0 | I179: 25.4133 | J179: 30.6686 | K179: 28.3134
A180: E9528 | B180: Empilhadeira a diesel com capacidade de 4 t - 60 kW | C180: 578368.2489 | D180: 46.2695 | E180: 10.7056 | F180: 0 | G180: 40.4858 | H180: 50.58 | I180: 25.4133 | J180: 173.4542 | K180: 82.3884
A181: E9529 | B181: Jateador para estruturas metálicas com transportador a roletes - 22 kW | C181: 4624609.334 | D181: 308.3073 | E181: 83.2237 | F181: 0 | G181: 231.2305 | H181: 0 | I181: 25.4133 | J181: 648.1748 | K181: 416.9443
A182: E9530 | B182: Rolo compactador liso vibratório autopropelido por pneus de 11 t - 97 kW | C182: 936514.5453 | D182: 62.4343 | E182: 16.8534 | F182: 0 | G182: 62.4343 | H182: 87.2224 | I182: 35.9678 | J182: 264.9122 | K182: 115.2555
A183: E9532 | B183: Equipamento de solda MIG com acessórios - 14,6 kVA | C183: 82924.56 | D183: 6.634 | E183: 1.5349 | F183: 0 | G183: 6.634 | H183: 0 | I183: 0 | J183: 14.8029 | K183: 8.1689
A184: E9535 | B184: Serra circular com bancada - D = 30 cm - 4 kW | C184: 6852.2425 | D184: 0.6167 | E184: 0.1268 | F184: 0 | G184: 0.3426 | H184: 0 | I184: 25.4133 | J184: 26.4994 | K184: 26.1568
A185: E9536 | B185: Embarcação de transporte de pessoal e apoio logístico - 30 kW | C185: 153606.8177 | D185: 2.4001 | E185: 0.905 | F185: 0 | G185: 2.6668 | H185: 64.902 | I185: 42.091 | J185: 112.9649 | K185: 45.3961
A186: E9538 | B186: Conjunto vibratório para meio tubo de concreto com encaixe PB e 3 jogos de fôrmas - D = 0,30 m - 2,20 kW | C186: 14992.9348 | D186: 1.9991 | E186: 0.4625 | F186: 0 | G186: 1.4993 | H186: 0 | I186: 0 | J186: 3.9609 | K186: 2.4616
A187: E9539 | B187: Equipamento de batimetria monofeixe | C187: 107813.5678 | D187: 6.9309 | E187: 1.9006 | F187: 0 | G187: 3.8505 | H187: 0 | I187: 36.695 | J187: 49.377 | K187: 45.5265
A188: E9540 | B188: Trator sobre esteiras com lâmina - 127 kW | C188: 1704538.726 | D188: 66.2876 | E188: 29.2139 | F188: 0 | G188: 94.6966 | H188: 99.9236 | I188: 35.9678 | J188: 326.0895 | K188: 131.4693
A189: E9541 | B189: Trator sobre esteiras com lâmina - 259 kW | C189: 4816568.892 | D189: 187.311 | E189: 82.5506 | F189: 0 | G189: 267.5872 | H189: 203.7812 | I189: 35.9678 | J189: 777.1978 | K189: 305.8294
A190: E9543 | B190: Compressor de ar respirável com capacidade de até 35 MPa e 3,58 l/s - 5,52 kW | C190: 72888.2492 | D190: 4.8592 | E190: 1.3117 | F190: 0 | G190: 4.8592 | H190: 0 | I190: 0 | J190: 11.0301 | K190: 6.1709
A191: E9544 | B191: Vassoura mecânica rebocável com largura de 2,44 m | C191: 77333.403 | D191: 6.96 | E191: 1.4314 | F191: 0 | G191: 4.64 | H191: 0 | I191: 0 | J191: 13.0314 | K191: 8.3914
A192: E9545 | B192: Vibroacabadora de asfalto sobre esteiras - 97 kW | C192: 1634027.98 | D192: 81.7014 | E192: 28.8056 | F192: 0 | G192: 105.0447 | H192: 103.5766 | I192: 46.1153 | J192: 365.2436 | K192: 156.6223
A193: E9547 | B193: Máquina de solda elétrica transformadora 250 A - 9,20 kW | C193: 1205.711 | D193: 0.0965 | E193: 0.0223 | F193: 0 | G193: 0.0965 | H193: 0 | I193: 0 | J193: 0.2153 | K193: 0.1188
A194: E9548 | B194: Bomba centrífuga com capacidade de 7,1 a 22 m³/h - 1,50 kW | C194: 2363.5866 | D194: 0.1891 | E194: 0.0437 | F194: 0 | G194: 0.1655 | H194: 0 | I194: 0 | J194: 0.3983 | K194: 0.2328
A195: E9551 | B195: Obturador mecânico simples com extensão de 12 m | C195: 4828.6437 | D195: 0.4346 | E195: 0.0894 | F195: 0 | G195: 0.2414 | H195: 0 | I195: 0 | J195: 0.7654 | K195: 0.524
A196: E9552 | B196: Nível ótico com capacidade de aumento de 32x | C196: 14145.1702 | D196: 1.1316 | E196: 0.2618 | F196: 0 | G196: 0.7073 | H196: 0 | I196: 0 | J196: 2.1007 | K196: 1.3934
A197: E9553 | B197: Estação total eletrônica com alcance máximo de 3.000 m | C197: 49181.0442 | D197: 4.4263 | E197: 0.9103 | F197: 0 | G197: 2.4591 | H197: 0 | I197: 0 | J197: 7.7957 | K197: 5.3366
A198: E9556 | B198: Compactador manual de placa vibratória - 3,00 kW | C198: 10586.0939 | D198: 0.7057 | E198: 0.1905 | F198: 0 | G198: 0.7057 | H198: 5.6789 | I198: 0 | J198: 7.2808 | K198: 0.8962
A199: E9558 | B199: Tanque de estocagem de asfalto com capacidade de 30.000 l | C199: 705615.9264 | D199: 29.4007 | E199: 10.2039 | F199: 0 | G199: 18.3754 | H199: 0 | I199: 0 | J199: 57.98 | K199: 39.6046
A200: E9559 | B200: Aquecedor de fluido térmico - 12 kW | C200: 749555.7928 | D200: 33.73 | E200: 10.4057 | F200: 0 | G200: 22.4867 | H200: 10.116 | I200: 0 | J200: 76.7384 | K200: 44.1357
... 338 more rows

Sheet Tabela diária Codevasf

Sheet CPU-VEICULO_PickUp
A5: Composição de Preços de Locação de Veículo tipo pick-up
B6: Data de atualização: | C6: 2025-07-24 | E6: CV | F6: Média | G6: Mediana | K6: CV | L6: Média | M6: Mediana | V6: CV | W6: Média | X6: Mediana
A7: CODEVASF | E7: =_xlfn.STDEV.S(E10:H10)/AVERAGE(E10:H10) -> 0.09461804749 | F7: =AVERAGE(E10:H10) -> 200477 | G7: =MEDIAN(E10:H10) -> 205565.5 | K7: =_xlfn.STDEV.S(L9:S9)/AVERAGE(L9:S9) -> 0.2049193683 | L7: =AVERAGE(L9:S9) -> 34.54857143 | M7: =MEDIAN(L9:S9) -> 30.91 | V7: =_xlfn.STDEV.S(W9:AD9)/AVERAGE(W9:AD9) -> 0.1241023561 | W7: =AVERAGE(W9:AD9) -> 499.0190625 | X7: =MEDIAN(W9:AD9) -> 499.45
A8: OBS: Preço sem BDI e sem motorista BDI= | E8: Preço FIPE | J8: PRODUTO | K8: MENOR (MÉDIA, MEDIANA) | L8: COT. 1 | M8: COT. 2 | N8: COT. 3 | O8: COT. 4 | P8: COT. 5 | Q8: COT. 6 | R8: COT. 7 | S8: COT. 8 | U8: PRODUTO | V8: MENOR (MÉDIA, MEDIANA) | W8: COT. 1 | X8: COT. 2 | Y8: COT. 3 | Z8: COT. 4 | AA8: COT. 5 | AB8: COT. 6 | AC8: COT. 7 | AD8: COT. 8
A9: Veículo tipo pick-up, cabine dupla - 2.0 16V 4x4 diesel Aut. | E9: Toro Ultra 2.0 16V 4x4 TB Diesel Aut. | F9: Toro Freedom 2.0 16V 4x4 TB Diesel Aut. | G9: Toro Volcano 2.0 16V 4x4 TB Diesel Aut. | H9: Toro Ranch 2.0 16V 4x4 TB Diesel Aut. | J9: LUBRIFICANTE 5W30 | K9: =SMALL(L7:M7,1) -> 30.91 | L9: 33.33 | M9: 26.9 | N9: 30.9 | O9: 30.9 | P9: 30.91 | Q9: 46 | R9: 42.9 | U9: Pneu 225/65 R17 | V9: =SMALL(W7:X7,1) -> 499.0190625 | W9: 499 | X9: 479.9 | Y9: 565.25 | Z9: 393.38 | AA9: 449.9 | AB9: =2059.44/4 -> 514.86 | AC9: =2359.85/4 -> 589.9625 | AD9: 499.9
B10: Custo Mensal (R$): | C10: =C51 -> 6940.400376 | E10: 215525 | F10: 175252 | G10: 196485 | H10: 214646
B11: Custo Diária (R$): | C11: =C10/22 -> 315.4727444
B12: Custo Horário (R$): | C12: =C10/176 -> 39.43409304
A13: A | B13: Depreciação mensal do equipamento
A14: A1 | B14: Preço de Aquisição | C14: =SMALL(F7:G7,1) -> 200477
A15: A2 | B15: Tempo previsto de vida útil (meses) | C15: 36
A16: A3 | B16: Previsão de recup. Na venda do bem usado | C16: 0.7
A17: A4 | B17: Custo mensal [A1-(A3xA1)]/A2 | C17: =(C14-(C16*C14))/C15 -> 1670.641667
A18: B | B18: Juros pelo Capital empregado
A19: B1 | B19: Taxa mensal de Juros * | C19: =POWER(1+C56,1/12)-1 -> 0.01171491692
A20: B2 | B20: Juros s/depreciação/aluguel (B1xA4) | C20: =C19*C17 -> 19.57142833
A21: C | B21: Conservação e manutenção ** | C21: 0.75
A22: C1 | B22: Taxa de gastos s/a deprec. Inc. seguros (%) | C22: =C21 -> 0.75 | AF22: PREÇO DO DIESEL | AG22: 6.03 | AH22: (JULHO - 2025)
A23: C2 | B23: Incidência mensal (C1xA4) | C23: =C22*C17 -> 1252.98125 | AF23: https://precos.petrobras.com.br/w/diesel/mg
A24: D | B24: Combustível
A25: D1 | B25: Média mensal de quilômetro por veículo | C25: =Memorial!H5*2*22 -> 5940 | D25: *Adotou-se 270 km/dia, considerando deslocamento (ida e vinda) entre a Barragem e Montes Claros-MG.
A26: D2 | B26: Preço do litro de combustível | C26: =AG22 -> 6.03
A27: D3 | B27: Quilômetros rodados com um litro combustivel | C27: 10
A28: D4 | B28: Combustivel (D1/D3)*D2 | C28: =(C25/C27)*C26 -> 3581.82
A29: E | B29: Lubrificantes
A30: E1 | B30: Quilometragem do Contrato (D1*12) | C30: =C25*36 -> 213840
A31: E2 | B31: Franquia por troca de óleo (km) | C31: 10000
A32: E3 | B32: Preço do litro de óleo | C32: =K9 -> 30.91
A33: E4 | B33: Quantidade de litros de óleo por troca | C33: 5
A34: E5 | B34: Quantidade de dias do Contrato | C34: =365*3 -> 1095
A35: E6 | B35: Lubrificantes E = (E1*E3*E4*30)/E2*E5 | C35: =(C30*C32*C33*30)/(C31*C34) -> 90.54512877
A36: F | B36: Pneus
A37: F1 | B37: Quilometragem do Contrato | C37: =C30 -> 213840
A38: F2 | B38: Vida do Pneu em quilômetros | C38: 45000
A39: F3 | B39: Quantidade de pneus | C39: 5
A40: F4 | B40: Preço do Pneu | C40: =V9 -> 499.0190625
A41: F5 | B41: Quantidade de dias do contrato | C41: =C34 -> 1095
A42: F6 | B42: Pneus = (F1*F3*F4*30)/(F2*F5) | C42: =(C37*C39*C40*30)/(C38*C41) -> 324.8409021
A43: G | B43: Motorista
A44: G1 | B44: Salário com encargos sociais | C44: 0
A45: H | B45: Custo Mensal
B46: Sem Motorista (A4+B2+C2+D4+E6+F6) | C46: =C17+C20+C23+C28+C35+C42 -> 6940.400376
B47: Com Motorista (A4+B2+C2+D4+E6+F6+G1) | C47: =C17+C20+C23+C28+C35+C42+C44 -> 6940.400376
A48: I | B48: Custo Direto p/ km Rodado
B49: Sem Motorista | C49: =C46/C25 -> 1.168417572
B50: Com Motorista | C50: =C47/C25 -> 1.168417572
A51: J | B51: Preço cobrado sem BDI | C51: =C46*(1+C8) -> 6940.400376
A52: J1 | B52: Sem Motorista | C52: =C51 -> 6940.400376
A53: J2 | B53: Com Motorista | C53: =C47 -> 6940.400376 | I53: https://www.google.com/search?q=lubrificante+5w30+1l&sa=X&sca_esv=c77f5342bf7e367a&tbm=shop&ei=e0uKZ-DcDNKp5OUPkOKj6QY&ved=0ahUKEwighoOy3_yKAxXSFLkGHRDxKG0Q4dUDCAg&uact=5&oq=lubrificante+5w30+1l&gs_lp=Egtwcm9kdWN0cy1jYyIUbHVicmlmaWNhbnRlIDV3MzAgMWxIgQ9Q4AlY8Q1wAHgAkAEAmAFroAGgA6oBAzEuM7gBA8gBAPgBAZgCAqAC0gHCAgUQABiABMICBhAAGAcYHsICBhAAGAgYHsICBhAAGBYYHpgDAIgGAZIHAzEuMaAHxQU&sclient=products-cc | T53: https://www.google.com/search?q=pneu+225%2F65+R17&sa=X&biw=1600&bih=757&tbm=shop&sxsrf=AJOqlzWsb-d4PS1_OUOEhKmRc2RbtSg3RQ%3A1677092596279&ei=9Gb2Y9K5ENTa5OUPvLykGA&ved=0ahUKEwjSg9Pj6Kn9AhVULbkGHTweCQMQ4dUDCAg&uact=5&oq=pneu+225%2F65+R17&gs_lcp=Cgtwcm9kdWN0cy1jYxADMgsIABCABBCxAxCDATIFCAAQgAQyBwgAEIAEEAoyBwgAEIAEEAoyBwgAEIAEEAoyBwgAEIAEEAoyBwgAEIAEEAoyBQgAEIAEMgcIABCABBAKMgcIABCABBAKOgQIIxAnOgQIABBDSgQIQRgAUABYoTJgqUBoAHAAeACAAdIFiAGUKZIBDTAuMi42LjIuMi4yLjGYAQCgAQHAAQE&sclient=products-cc
B55: OBSERVAÇÕES:
A56: * | B56: Calculado com base na taxa SELIC JULHO/2025: | C56: 0.15
B57: Taxa de Juros Selic — Português (Brasil) (www.gov.br)
A58: ** | B58: Conservação e manutenção - é calculado com o uso de um coeficiente multiplicador "k", conforme tabela abaixo, sobre a
B59: depreciação mensal do equipamento (Item A da planilha de composição de preços). Os valores de K são fornecidos por
B60: fabricantes.
B61: Metodologia conforme a bibliografia "Como Preparar Orçamentos de Obras", 3 edição, Aldo Dórea Mattos, 2019.

Sheet COTAÇÃO
A2: ITEM | B2: EMPRESA | G2: DESCRIÇÃO / OBSERVAÇÃO | H2: UNID | I2: QUANT | J2: LINK OU LOCAL DO ARQUIVO | K2: VALOR | T2: COTAÇÃO DOLAR 15/05/2025
B3: DATA | C3: EMPRESA / CNPJ | D3: RESPONSÁVEL | E3: ENDEREÇO | F3: CONTATO | K3: MAT | L3: MDO | M3: TRANSPORTE | N3: TOTAL | P3: CT-1 | R3: Unitário | T3: 5.64
A4: CT-1 | B4: 2025-05-15 | C4: Bentley / virtuosity | D4: Preço na loja online | E4: Loja Virtual | F4: https://br.virtuosity.com/contate-nos | G4: licença Anual Geostudio 2D Ultimate | H4: h | I4: 8766 | J4: https://br.virtuosity.com/geostudio-2d | K4: 33149.57 | N4: =SUM(K4:M4) -> 33149.57 | P4: Média | Q4: =AVERAGE(N4:N6) -> 34076.09667 | R4: =Q4/I4 -> 3.887302837
B5: 2025-05-15 | C5: Rocscience | D5: Preço na loja online | E5: Loja Virtual | F5: https://www.rocscience.com/about/contact | G5: Licença anual - Slide2 e RS2 | H5: h | I5: 8766 | J5: https://www.rocscience.com/plans-pricing | K5: =(2499+4599)*T3 -> 40032.72 | N5: =SUM(K5:M5) -> 40032.72 | P5: Mediana | Q5: =MEDIAN(N4:N6) -> 33149.57 | R5: =Q5/I5 -> 3.781607347
B6: 2025-05-15 | C6: Fine, spol. s r.o. | D6: Preço na loja online | E6: Loja Virtual | F6: Tel.: +420 233 089 490 email:hotline@finesoftware.eu | G6: Licença anual - GEO5 pacote MEF e Estabilidade | H6: h | I6: 8766 | J6: https://www.finesoftware.com.br/software-para-geotecnia/lista-de-precos/ | K6: =(4000+1150)*T3 -> 29046 | N6: =SUM(K6:M6) -> 29046 | P6: Menor | Q6: =SMALL(Q4:Q5,1) -> 33149.57 | R6: =Q6/I6 -> 3.781607347
A8: ITEM | B8: EMPRESA | G8: DESCRIÇÃO / OBSERVAÇÃO | H8: UNID | I8: QUANT | J8: LINK OU LOCAL DO ARQUIVO | K8: VALOR
B9: DATA | C9: EMPRESA / CNPJ | D9: RESPONSÁVEL | E9: ENDEREÇO | F9: CONTATO | K9: MAT | L9: MDO | M9: TRANSPORTE | N9: TOTAL | P9: CT-2 | R9: Unitário
A10: CT-2 | B10: 2025-05-15 | C10: Autodesk | D10: Preço na loja online | E10: Loja Virtual | F10: https://www.autodesk.com/br/support/contact-support | G10: licença anual | H10: h | I10: 8766 | J10: https://www.autodesk.com/br/products/autocad/overview | K10: 8095 | N10: =SUM(K10:M10) -> 8095 | P10: Média | Q10: =AVERAGE(N10:N12) -> 7557.59 | R10: =Q10/I10 -> 0.8621480721
B11: 2025-05-15 | C11: Bricsys | D11: Preço na loja online | E11: Loja Virtual | F11: https://www.bricsys.com/pt-br/contact-sales | G11: licença anual | H11: h | I11: 8766 | J11: https://www.bricsys.com/pt-br/store/bricscad/configurator?ld=12&lv=1 | K11: =1180*T3 -> 6655.2 | N11: =SUM(K11:M11) -> 6655.2 | P11: Mediana | Q11: =MEDIAN(N10:N12) -> 7922.57 | R11: =Q11/I11 -> 0.9037839379
B12: 2025-05-15 | C12: Bentley / virtuosity | D12: Preço na loja online | E12: Loja Virtual | F12: https://br.virtuosity.com/contate-nos | G12: Licença anual | H12: h | I12: 8766 | J12: https://br.virtuosity.com/microstation | K12: 7922.57 | N12: 7922.57 | P12: Menor | Q12: =SMALL(Q10:Q11,1) -> 7557.59 | R12: =Q12/I12 -> 0.8621480721
